Workbook

Sheet IAAR
B2: IAAR PP - INFORME DE AVANCE DE ACCIONES REALIZADAS DE LOS PROGRAMAS PRESUPUESTARIOS
B3: EJERCICIO FISCAL 2023
B4: Datos de la Unidad Responsable del Gasto
B6: Clave del Centro Gestor | C6: 02CD14 | E6: Unidad Responsable del Gasto | F6: =IFERROR(VLOOKUP(C6,Estrv!C:D,2,FALSE),"") -> Alcaldia Tlalpan | K6: Periodo | L6: 2do Trimestre
B8: RESULTADOS
B9: Clave del Pp | C9: Denominación del Pp | E9: Acción | H9: Descripción de la meta anual (Dma) | I9: Avance absoluto al trimestre (Aat) | J9: Población estimada anual | K9: Población beneficiada al periodo | L9: Referencia de meta relativa de la acción programada | M9: Avance al trimestre (Aat/Dma)*100
A10: =$C$6&N10 -> 02CD14_1 | B10: =IFERROR(VLOOKUP(A10,Base!B:E,3,FALSE),"") -> E185 | C10: =IFERROR(VLOOKUP(A10,Base!B:E,4,FALSE),"") -> GOBIERNO Y ATENCION CIUDADANA | E10: =IFERROR(VLOOKUP(A10,Base!B:F,5,FALSE),"") -> Actualización de censos de asentamientos irregulares. | H10: =IFERROR(VLOOKUP($A10,Base!B:M,11,FALSE),"") -> Se programó la aplicación de 1,500 cédulas censales en 15 Asentamientos Humanos Irregulares en Suelo de Conservación de la Alcaldía Tlalpan. | I10: Se aplicarón XXX cédulas censales en XXX Asentamientos Humanos Irregulares en Suelo de Conservación de la Alcaldía Tlalpan, lo que representa el XXX por ciento de los 1,500 cédulas y 15 asentamientos programados para el presente ejercicio fiscal. | L10: =IFERROR(VLOOKUP(A10,Base!B:L,7,FALSE),"") -> 0.5 | N10: _1 | O10: =IFERROR(M10*VLOOKUP(A10,Base!B:K,10,FALSE),"") -> 0
A11: =$C$6&N11 -> 02CD14_2 | B11: =IFERROR(VLOOKUP(A11,Base!B:E,3,FALSE),"") -> E185 | C11: =IFERROR(VLOOKUP(A11,Base!B:E,4,FALSE),"") -> GOBIERNO Y ATENCION CIUDADANA | E11: =IFERROR(VLOOKUP(A11,Base!B:F,5,FALSE),"") -> Trámites y servicios en materia de: giros mercantiles. | H11: =IFERROR(VLOOKUP($A11,Base!B:M,11,FALSE),"") -> Se estima atender 3,000 trámites y servicios relativos a giros mercantiles, mismos que se recibirán a través de diversos medios tales como: 1,600 del Sistema Electrónico de Avisos, Permisos de Establecimientos Mercantiles (si@pem); 520 de la Ventanilla Única de Trámites (VUT); 220 del Centro de Servicios y Atención Ciudadana (CESAC) y 660 personas atendidas de forma presencial. | I11: Se atendieron XXX trámites y servicios relativos de giros mercantiles, lo que representa un avance del XXX por ciento de las 3,000 solicitudes prográmadas para el presente ejercicio fisca, las cuales fueron recibidas a traves de los medios siguiente: XXX Sistema Electrónico de Avisos y Permisos de Establecimientos Mercantiles (si@pem), XXX de la Ventanilla Única (VU), XXX del Centro de Servicios y Atención Ciudadana (CESAC) y XXX a personas atendidas de manera presencial. | L11: =IFERROR(VLOOKUP(A11,Base!B:L,7,FALSE),"") -> 0.5 | N11: _2 | O11: =IFERROR(M11*VLOOKUP(A11,Base!B:K,10,FALSE),"") -> 0
A12: 02CD14_3 | B12: =IFERROR(VLOOKUP(A12,Base!B:E,3,FALSE),"") -> E185 | C12: =IFERROR(VLOOKUP(A12,Base!B:E,4,FALSE),"") -> GOBIERNO Y ATENCION CIUDADANA | E12: =IFERROR(VLOOKUP(A12,Base!B:F,5,FALSE),"") -> Servicios de asesorías jurídicas y promoción de los Derechos Humanos. | H12: =IFERROR(VLOOKUP($A12,Base!B:M,11,FALSE),"") -> Se programo la atención de XXX requerimientos y/o quejas en materia Jurídica y de derechos humanos; así como, 200 asesorías, las cuales se clasifican de la siguiente manera: 60 asesorías en materia penal, 60 asesorías en materia civil, 60 asesorías en materia civil familiar; 10 asesorías en materia de arrendamiento y 10 asesorías en materia de trámites en general. | I12: Se atendieron XXX requerimientos en materia jurídica y de derechos humanos y se otorgarón XXX asesorias, lo que representa un avance del XXX por ciento de las 50 y 200 programadas para el presente ejercicio fiscal, las cuales corresponden a: XXX asesorías en materia penal, XXX asesorías en materia civil, XXX asesorías en materia civil familiar; XXX asesorías en materia de arrendamiento y XXX asesorías en materia de trámites en general. | L12: =IFERROR(VLOOKUP(A12,Base!B:L,7,FALSE),"") -> 0.5 | N12: _3 | O12: =IFERROR(M12*VLOOKUP(A12,Base!B:K,10,FALSE),"") -> 0
A13: 02CD14_4 | B13: =IFERROR(VLOOKUP(A13,Base!B:E,3,FALSE),"") -> E185 | C13: =IFERROR(VLOOKUP(A13,Base!B:E,4,FALSE),"") -> GOBIERNO Y ATENCION CIUDADANA | E13: =IFERROR(VLOOKUP(A13,Base!B:F,5,FALSE),"") -> Orientaciones en materia de colaboración, vinculación, concertación y participación ciudadana. | H13: =IFERROR(VLOOKUP($A13,Base!B:M,11,FALSE),"") -> Se programarón 432 asesorías, las cuales se dividen en: 1,000 colaboraciones, 500 vinculaciones, 860 concertaciones y 72 de participación ciudadana. | I13: Se realizaron XXX asesorías, lo que representa el XXX por ciento de las 432 programadas para el presente ejercicio fiscal, mismas que corresponden a: XXX colaboración; XXX vinculación; XXX concertación y XXX de participación ciudadana. | L13: =IFERROR(VLOOKUP(A13,Base!B:L,7,FALSE),"") -> 0.5 | N13: _4 | O13: =IFERROR(M13*VLOOKUP(A13,Base!B:K,10,FALSE),"") -> 0
A14: 02CD14_5 | B14: =IFERROR(VLOOKUP(A14,Base!B:E,3,FALSE),"") -> E185 | C14: =IFERROR(VLOOKUP(A14,Base!B:E,4,FALSE),"") -> GOBIERNO Y ATENCION CIUDADANA | E14: =IFERROR(VLOOKUP(A14,Base!B:F,5,FALSE),"") -> Levantar diagnósticos de necesidades en colonias, barrios y pueblos. | H14: =IFERROR(VLOOKUP($A14,Base!B:M,11,FALSE),"") -> Se programarón 192 diagnósticos de necesidades en: 175 colonias, 7 barrios y 10 pueblos. | I14: Se aplicaron XXX diagnosticos de necesidades, lo que representa el XXX por ciento de los 192 programados para el presente ejercicio fiscal, mismos que corresponden a:XXX colonias, XXX barrios y XXX pueblos. | L14: =IFERROR(VLOOKUP(A14,Base!B:L,7,FALSE),"") -> 0.5 | N14: _5 | O14: =IFERROR(M14*VLOOKUP(A14,Base!B:K,10,FALSE),"") -> 0
A15: 02CD14_6 | B15: =IFERROR(VLOOKUP(A15,Base!B:E,3,FALSE),"") -> E185 | C15: =IFERROR(VLOOKUP(A15,Base!B:E,4,FALSE),"") -> GOBIERNO Y ATENCION CIUDADANA | E15: =IFERROR(VLOOKUP(A15,Base!B:F,5,FALSE),"") -> Atender las solicitudes de Información Pública y solventación de requerimientos a través de los INFOMEX. | H15: =IFERROR(VLOOKUP($A15,Base!B:M,11,FALSE),"") -> Se programó atender 2,100 solicitudes de Información Pública a través de la Plataforma Nacional de Transparencia SISAI 2.0; las cuales corresponden a: 1,600 folios de Acceso a la Información Pública; 400 folios de Datos Personales; 50 folios de Recursos de Revisión y 50 folios desechados por la plataforma. | I15: Se atendieron XXX solicitudes de información Pública, lo que representa un avance del XXX por ciento de las 2,100 programadas para el presente ejercicio fiscal, mismas que corresponden a: XXX folios de Acceso a la Información Pública; XXX folios de Datos Personales; XXX folios de Recursos de Revisión y XXX folios desechados por la plataforma. | L15: =IFERROR(VLOOKUP(A15,Base!B:L,7,FALSE),"") -> 0.5 | N15: _6 | O15: =IFERROR(M15*VLOOKUP(A15,Base!B:K,10,FALSE),"") -> 0
A16: 02CD14_7 | B16: =IFERROR(VLOOKUP(A16,Base!B:E,3,FALSE),"") -> E185 | C16: =IFERROR(VLOOKUP(A16,Base!B:E,4,FALSE),"") -> GOBIERNO Y ATENCION CIUDADANA | E16: =IFERROR(VLOOKUP(A16,Base!B:F,5,FALSE),"") -> Atención de requerimientos de información por parte de los órganos de fiscalización. | H16: =IFERROR(VLOOKUP($A16,Base!B:M,11,FALSE),"") -> Se programó atender 100 requerimientos de información de auditorías practicadas por diferentes entes públicos, mismos que corresponden a: 41 por el Órgano Interno de Control, 30 de la Auditoría Superior de la Ciudad de México, 22 de la Auditoría Superior de la Federación y 7 de la Secretaría de Administración y Finanzas, la Secretaría de la Contraloria General de la Ciudad de México y la Fiscalía General de la República. | I16: Se atendieron XXX requerimientos de información de auditorías practicadas por diferentes entes públicos, lo que representa el XXX por ciento de las 100 programadas para el presente ejercicio fiscal, mismas que corresponden a: XXX fueron del Órgano Interno de Control , XXX de la Auditoría Superior de la Ciudad de México, XXX de la Auditoría Superior de la Federación y XXX de la Secretaría de Administración y Finanzas, la Secretaría de la Contraloria General de la Ciudad de México y la Fiscalía General de la República. | L16: =IFERROR(VLOOKUP(A16,Base!B:L,7,FALSE),"") -> 0.5 | N16: _7 | O16: =IFERROR(M16*VLOOKUP(A16,Base!B:K,10,FALSE),"") -> 0
A17: 02CD14_8 | B17: =IFERROR(VLOOKUP(A17,Base!B:E,3,FALSE),"") -> E185 | C17: =IFERROR(VLOOKUP(A17,Base!B:E,4,FALSE),"") -> GOBIERNO Y ATENCION CIUDADANA | E17: =IFERROR(VLOOKUP(A17,Base!B:F,5,FALSE),"") -> Difusión de las actividades que se realizan en la Alcaldía Tlalpan. | H17: =IFERROR(VLOOKUP($A17,Base!B:M,11,FALSE),"") -> Se programaron 14,986 difusiones, eventos y análisis de carpetas de prensa relativas a actividades de la Alcaldía, mismas que corresponden a: 300 carteles, 300 folletos (díptico, trípticos), 600 lonas, 300 vinilos, y 4,510 diseños de logos, credenciales, sellos, reconocimientos, hojas membretadas, inserciones, portadas, publicaciones y banners para redes sociales, así como, la Autorización de Imagen Institucional del Gobierno de la Ciudad de México, 1,478 a través de la página Web, 592 actualizaciones electrónicas y 886 alimentación de la página Web; 592 eventos cubiertos para toma de fotografías, 396 eventos cubiertos para ser publicados en redes sociales (Twitter, Facebook, Instagram, y You Tube) y 988 demanda ciudadana captada a través de las redes sociales (Twitter, Facebook, Instagram y You Tube), y 354 prensa escrita, 922 boletines de prensa, eventos cubiertos, entrevistas, transmisiones en vivo, radio, TV e internet, 497 levantamiento de imágenes y videos. | I17: Se realizaron XXXX difusiones, eventos y análisis de carpetas de prensa relativas a actividades de la Alcaldía, lo que representa el XXXX por ciento de las 14,986 programadas para el presente ejercicio fiscal, mismas que corresponden a: XXX carteles, XXX folletos (díptico, trípticos), XXX lonas, XXX vinilos, y XXX diseños de logos, credenciales, sellos, reconocimientos, hojas membretadas, inserciones, portadas, publicaciones y banners para redes sociales, así como, la Autorización de Imagen Institucional del Gobierno de la Ciudad de México, XXX a través de la página Web, XXX actualizaciones electrónicas y XXX alimentación de la página Web; XXX eventos cubiertos para toma de fotografías, XXX eventos cubiertos para ser publicados en redes sociales (Twitter, Facebook, Instagram, y You Tube) y XXX demanda ciudadana captada a través de las redes sociales (Twitter, Facebook, Instagram y You Tube), y XXX prensa escrita, XXX boletines de prensa, eventos cubiertos, entrevistas, transmisiones en vivo, radio, TV e internet, XXX levantamiento de imágenes y videos. | L17: =IFERROR(VLOOKUP(A17,Base!B:L,7,FALSE),"") -> 0.5 | N17: _8 | O17: =IFERROR(M17*VLOOKUP(A17,Base!B:K,10,FALSE),"") -> 0
A18: 02CD14_9 | B18: =IFERROR(VLOOKUP(A18,Base!B:E,3,FALSE),"") -> E185 | C18: =IFERROR(VLOOKUP(A18,Base!B:E,4,FALSE),"") -> GOBIERNO Y ATENCION CIUDADANA | E18: =IFERROR(VLOOKUP(A18,Base!B:F,5,FALSE),"") -> Implementar el Modelo Integral de Atención Ciudadana y asegurar su cumplimiento y funcionamiento y Establecer mecanismos de evaluación que contemplen aspectos de satisfacción ciudadana como encuestas, reuniones o análisis estadístico. | H18: =IFERROR(VLOOKUP($A18,Base!B:M,11,FALSE),"") -> Se estima recibir 54,000 solicitudes de servicios públicos sobre abasto de agua, servicios hidráulicos, construcciones y obras, espectáculos públicos, mercados públicos, Protección Civil, servicios legales, mismos que corresponderán a: 48,000 a través del Centro de Servicios y Atención Ciudadana (CESAC) y 6,000 mediante la Ventanilla Única de Trámites (VUT). | I18: Se brindo la atención de XXX solicitudes de servicios públicos sobre abasto de agua, servicios hidráulicos, construcciones y obras, espectáculos públicos, mercados públicos, Protección Civil, servicios legales, lo que representa un avance del XXX por ciento de las 54,000 programadas para el presente ejercicio fiscal, mismas que fueron corresponden a: XXX a través del Centro de Servicios y Atención Ciudadana (CESAC) y XXX mediante la Ventanilla Única de Trámites (VUT) | L18: =IFERROR(VLOOKUP(A18,Base!B:L,7,FALSE),"") -> 0.5 | N18: _9 | O18: =IFERROR(M18*VLOOKUP(A18,Base!B:K,10,FALSE),"") -> 0
A19: 02CD14_10 | B19: =IFERROR(VLOOKUP(A19,Base!B:E,3,FALSE),"") -> E186 | C19: =IFERROR(VLOOKUP(A19,Base!B:E,4,FALSE),"") -> SEGURIDAD EN ALCALDIAS | E19: =IFERROR(VLOOKUP(A19,Base!B:F,5,FALSE),"") -> Operativos de Seguridad en las colonias, barrios y pueblos de la Alcaldía. | H19: =IFERROR(VLOOKUP($A19,Base!B:M,11,FALSE),"") -> Se programaron 350 Operativos de Seguridad distribuidos de la siguiente manera: 60 en colonias y 10 en los pueblos de la Alcaldía | I19: Se realizaron 170 operativos de Seguridad, lo que representa el 48.47 por ciento de avance de los 350 programados para el presente ejercicio fiscal, los cuales se distribuyeron de la siguiente manera: 98 en colonias y 72 en pueblos de la Alcaldía. | J19: 16456 | K19: 7949 | L19: =IFERROR(VLOOKUP(A19,Base!B:L,7,FALSE),"") -> 0.5 | M19: 0.48 | N19: _10 | O19: =IFERROR(M19*VLOOKUP(A19,Base!B:K,10,FALSE),"") -> 0.12
A20: 02CD14_11 | B20: =IFERROR(VLOOKUP(A20,Base!B:E,3,FALSE),"") -> E186 | C20: =IFERROR(VLOOKUP(A20,Base!B:E,4,FALSE),"") -> SEGURIDAD EN ALCALDIAS | E20: =IFERROR(VLOOKUP(A20,Base!B:F,5,FALSE),"") -> Remisión y acompañamiento institucional ante el juzgado cívico y la fiscalía. | H20: =IFERROR(VLOOKUP($A20,Base!B:M,11,FALSE),"") -> Se estima atender 1,350 procesos policiales los cuales se dividen en: 1,200 remisiones al Juez Cívico/Ministerio Público y 150 acompañamientos con diferentes autoridades locales. | I20: Se llevaron a cabo 663 procesos policiales, lo que representa un avance del 49.11 por ciento de los 1,350 programados para el presente ejercicio fiscal, mismos que corresponden a: 578 remisiones al Juez Cívico/Ministerio Público y 85 acompañamientos con diferentes autoridades locales. | J20: 15000 | K20: 7350 | L20: =IFERROR(VLOOKUP(A20,Base!B:L,7,FALSE),"") -> 0.5 | M20: 0.49 | N20: _11 | O20: =IFERROR(M20*VLOOKUP(A20,Base!B:K,10,FALSE),"") -> 0.1225
A21: 02CD14_12 | B21: =IFERROR(VLOOKUP(A21,Base!B:E,3,FALSE),"") -> E186 | C21: =IFERROR(VLOOKUP(A21,Base!B:E,4,FALSE),"") -> SEGURIDAD EN ALCALDIAS | E21: =IFERROR(VLOOKUP(A21,Base!B:F,5,FALSE),"") -> Estrategias operativas atención integral para apoyo a los habitantes de las colonias con mayor índice delictivo. | H21: =IFERROR(VLOOKUP($A21,Base!B:M,11,FALSE),"") -> Se programaron 48 operativos de atención integral para los habitantes de las colonias con mayor índice delictivo. | I21: Se llevaron a cabo 23 operativos de atención integral para los habitantes de las colonias con mayor índice delictivo, lo que representa un avance del 47.91 por ciento de los 48 programados para el presente ejercicio fiscal. | J21: 12000 | K21: 5640 | L21: =IFERROR(VLOOKUP(A21,Base!B:L,7,FALSE),"") -> 0.5 | M21: 0.48 | N21: _12 | O21: =IFERROR(M21*VLOOKUP(A21,Base!B:K,10,FALSE),"") -> 0.12
A22: 02CD14_13 | B22: =IFERROR(VLOOKUP(A22,Base!B:E,3,FALSE),"") -> E186 | C22: =IFERROR(VLOOKUP(A22,Base!B:E,4,FALSE),"") -> SEGURIDAD EN ALCALDIAS | E22: =IFERROR(VLOOKUP(A22,Base!B:F,5,FALSE),"") -> Talleres en materia de prevención de la violencia y cultura de la denuncia. | H22: =IFERROR(VLOOKUP($A22,Base!B:M,11,FALSE),"") -> Se programaron 180 talleres a la ciudadania, mismos que correspondonden a: 90 de prevención de la violencia y 90 de cultura de la denuncia. | I22: Se brindaron 40 talleres a la ciudadania, lo que representa un avance del 22.22 por ciento de los 180 programados para el presente ejercicio fiscal, mismos que corresponden a: 20 de prevención de la violencia y 20 de cultura de la denuncia. | J22: 4000 | K22: 1440 | L22: =IFERROR(VLOOKUP(A22,Base!B:L,7,FALSE),"") -> 0.5 | M22: 0.22 | N22: _13 | O22: =IFERROR(M22*VLOOKUP(A22,Base!B:K,10,FALSE),"") -> 0.055
A23: 02CD14_14 | B23: =IFERROR(VLOOKUP(A23,Base!B:E,3,FALSE),"") -> E187 | C23: =IFERROR(VLOOKUP(A23,Base!B:E,4,FALSE),"") -> SERVICIOS PUBLICOS | E23: =IFERROR(VLOOKUP(A23,Base!B:F,5,FALSE),"") -> Recolección domiciliaria de residuos orgánicos, inorgánicos e industriales | H23: =IFERROR(VLOOKUP($A23,Base!B:M,11,FALSE),"") -> Se programó la recolección de 410,000 toneladas de residuos sólidos orgánicos e inorgánicos, mismos que corresponden a: 1,116 de residuos industriales, 617 en barrido con equipo mecánico, 265,099 de basura domiciliaria; 9,986 de recolección en contenedores de metal, 4,483 de contenedores de plástico, 5,274 de Escuela limpia, 9,173 de cascajo, 193 en tiraderos clandestinos, 7,936 de contenedores terminales, 7,149 en mercados, 1,725 en tianguis, 55 de papeleras, 96,300 de barrido manual, 594 en jornadas y 300 de arrastre de lluvias. | I23: Se recolectaron XXX toneladas de residuos orgánicos, inorgánicos e industriales, lo que representa un avance del XXX por ciento de las 410,000 programadas para el presente ejercicio fiscal, mismas que corresponden a: XXX toneladas de recolección de residuos industriales, XXX toneladas en barrido con equipo mecánico, XXX toneladas de basura domiciliaria, XXX toneladas de recolección en contenedores de metal, XXX toneladas de recolección en contenedores de plástico, XXX toneladas del Escuela limpia, XXX toneladas de cascajo; XXX toneladas en tiraderos clandestinos, XXX toneladas de contenedores terminales, XXX toneladas en mercados, XXX toneladas en Tianguis, XXX toneladas de papeleras, XXX toneladas de barrido manual, XXX toneladas en jornadas y XXX toneladas de arrastre de lluvias. | L23: =IFERROR(VLOOKUP(A23,Base!B:L,7,FALSE),"") -> 0.5 | N23: _14 | O23: =IFERROR(M23*VLOOKUP(A23,Base!B:K,10,FALSE),"") -> 0
A24: 02CD14_15 | B24: =IFERROR(VLOOKUP(A24,Base!B:E,3,FALSE),"") -> E187 | C24: =IFERROR(VLOOKUP(A24,Base!B:E,4,FALSE),"") -> SERVICIOS PUBLICOS | E24: =IFERROR(VLOOKUP(A24,Base!B:F,5,FALSE),"") -> Rehabilitar, conservar y mantener luminarias de la Red Alumbrado Público, con el cambio y actualización de nuevas tecnologías de iluminación y ahorro de energía y la conservación de la infraestructura existente con mantenimiento preventivo y correctivo en calles, vialidades secundarias y espacios públicos. | H24: =IFERROR(VLOOKUP($A24,Base!B:M,11,FALSE),"") -> Se programaron 12,045 mantenimientos, rehabilitaciones, sustitución, instalación y conservación del alumbrado público, mismas corresponden a: 11,300 reparaciones, 200 instalaciones de leds nuevas, 440 transformaciones, 60 instalaciones de reflectores y adicionalmente 45 supervisiones para detección de luminarias inservibles. | I24: Se llevaron a cabo XXX mantenimientos, rehabilitaciones, sustitución, instalación y conservación del alumbrado público, lo que representa el XXX por ciento de los 24,045 programados para el presente ejercicio fiscal, mismos que corresponden a: XXX reparaciones, XXX instalaciones de luminarias de leds nuevas, XXX transformaciones, XXX instalaciones de reflectores y XXX supervisiones para detección de luminarias apagadas. | L24: =IFERROR(VLOOKUP(A24,Base!B:L,7,FALSE),"") -> 0.5 | N24: _15 | O24: =IFERROR(M24*VLOOKUP(A24,Base!B:K,10,FALSE),"") -> 0
A25: 02CD14_16 | B25: =IFERROR(VLOOKUP(A25,Base!B:E,3,FALSE),"") -> E187 | C25: =IFERROR(VLOOKUP(A25,Base!B:E,4,FALSE),"") -> SERVICIOS PUBLICOS | E25: =IFERROR(VLOOKUP(A25,Base!B:F,5,FALSE),"") -> Actividades de mejoramiento en la movilidad y el ordenamiento urbano en intervenciones, con la aplicación de pintura para balizamiento, realización de señalamientos y adecuaciones geométricas, a efecto de mejorar la vialidad y seguridad de las personas. | H25: =IFERROR(VLOOKUP($A25,Base!B:M,11,FALSE),"") -> Se programarón 200 mejoramientos en la movilidad y ordenamiento urbano, mismas que corresponden a: 85 balizamientos vehiculares y peatonales, 6 fondeo de bardas para aplicación de pintura en dos espacios públicos, 20 aplicación de pintura en una barda para eliminación de grafiti y 9 aplicación de pintura en espacios con aparatos de ejercicio y gimnasio al aire libre, 45 aplicación de pintura en mobiliario urbano en espacio público, 20 aplicación de pintura en bardas, 10 aplicación de pintura en protecciones y barandales metálicos, 5 aplicación de pintura con rotulación institucional. | I25: Se realizaron XXX mejoramientos en la movilidad y ordenamiento urbano, lo que representa el 22 por ciento de los 200 programados para el presente ejercicio fiscal, los cuales se desarrollan de la siguiente manera: XXX balizamientos vehiculares y peatonales, XXX fondeo de bardas para aplicación de pintura en dos espacios públicos, XXX aplicación de pintura en una barda para eliminación de grafiti y XXX aplicación de pintura en espacios con aparatos de ejercicio y gimnasio al aire libre, XXX aplicación de pintura en mobiliario urbano en espacio público, XXX aplicación de pintura en bardas, XXX aplicación de pintura en protecciones y barandales metálicos, XXX aplicación de pintura con rotulación institucional. | L25: =IFERROR(VLOOKUP(A25,Base!B:L,7,FALSE),"") -> 0.5 | N25: _16 | O25: =IFERROR(M25*VLOOKUP(A25,Base!B:K,10,FALSE),"") -> 0
A26: 02CD14_17 | B26: =IFERROR(VLOOKUP(A26,Base!B:E,3,FALSE),"") -> E187 | C26: =IFERROR(VLOOKUP(A26,Base!B:E,4,FALSE),"") -> SERVICIOS PUBLICOS | E26: =IFERROR(VLOOKUP(A26,Base!B:F,5,FALSE),"") -> Mantenimiento de áreas verdes en parques, jardines, camellones, plazas y espacios públicos, conservándolos limpios y seguros con actividades de poda de árboles, poda de pasto, riego de áreas verdes, barrido de áreas verdes, retiro de hierba y maleza. | H26: =IFERROR(VLOOKUP($A26,Base!B:M,11,FALSE),"") -> Se programaron 14 actividades de mantenimiento y conservación de áreas verdes, las cuales corresponden a: 400,000 metros cuadrados de barrido de áreas verdes, 280,000 metros cuadrados riego de áreas verdes, 320,000 metros cuadrados desmonte (retiro de maleza), 3,960 metros cúbicos de acarreo manual de basura vegetal, 8,760 metros lineales de aflojado de tierra, 35,000 metros lineales de poda de seto, 22,000 metros cúbicos de retiro de basura vegetal, 10,052 de poda árboles, 600 retiros de árboles, 610 liberaciones de luminarias, 1,759 metros lineales de limpieza de canaleta, 35,220 metros lineales de retiro de hierba en banqueta y guarniciones y 28 piezas de retiro de tocón. | I26: Se llevaron a cabo XXX actividades de mantenimiento y conservación de áreas verdes, lo que representa el XXX por ciento de las 14 programadas para el presente ejercicio fiscal, las cuales corresponden a: XXX metros cuadrados de barrido de áreas verdes, XXX metros cuadrados riego de áreas verdes, XXX metros cuadrados desmonte (retiro de maleza), XXX metros cúbicos de acarreo manual de basura vegetal, XXX metros lineales de aflojado de tierra, XXX metros lineales de poda de seto, XXX metros cúbicos de retiro de basura vegetal, XXX de poda árboles, XXX retiros de árboles, XXX liberaciones de luminarias, XXX metros lineales de limpieza de canaleta, XXX metros lineales de retiro de hierba en banqueta y guarniciones y XXX piezas de retiro de tocón | L26: =IFERROR(VLOOKUP(A26,Base!B:L,7,FALSE),"") -> 0.5 | N26: _17 | O26: =IFERROR(M26*VLOOKUP(A26,Base!B:K,10,FALSE),"") -> 0
A27: 02CD14_18 | B27: =IFERROR(VLOOKUP(A27,Base!B:E,3,FALSE),"") -> E187 | C27: =IFERROR(VLOOKUP(A27,Base!B:E,4,FALSE),"") -> SERVICIOS PUBLICOS | E27: =IFERROR(VLOOKUP(A27,Base!B:F,5,FALSE),"") -> Mantenimiento y conservación del mobiliario urbano en espacios públicos como: kioscos, fuentes ornamentales, bustos, monumentos, bajo puentes, etc. con trabajos de eliminación y borrado de grafiti con la aplicación de pintura en muros y bardas, colocación de malla ciclónica, etc. | H27: =IFERROR(VLOOKUP($A27,Base!B:M,11,FALSE),"") -> Se programaron 13 mantenimientos, rehabilitaciones y conservación de 360 espacios públicos, mismos que corresponden a: 25 rehabilitaciones de juegos infantiles, 24 instalaciones de malla ciclónica, 65 aplicaciones de pintura en muros y bardas en diversos sitios, 55 atenciones integrales en plazas y/o espacios públicos, 45 aplicación de pintura en canchas y módulos deportivo, 12 mantenimientos en fuentes ornamentales, 20 aplicación de pintura en juegos infantiles, 22 retiro de pegas y colguijes, 16 parques públicos, 5 colocaciones de mobiliario urbano en plazas públicas, 5 aplicación de pintura en centro educativo o escuela pública, 18 rotulaciones y colocación de letreros prohibitivos, atención integral a 8 panteones, 12 aplicación de pintura en mobiliario urbano, 6 rehabilitación de barandales y protecciones metálicas y 22 reparaciones de banqueta. | I27: Se realizaron XXX mantenimientos, rehabilitaciones y conservación de 360 espacios públicos, lo que representa un avance del XXX por ciento de los 13 programados para el presente ejercicio fiscal, mismos que corresponden a: XXX rehabilitaciones de juegos infantiles, XXX instalaciones de malla ciclónica, XXX aplicaciones de pintura en muros y bardas en diversos sitios, XXX atenciones integrales en plazas y/o espacios públicos, XXX aplicación de pintura en canchas y módulos deportivo, XXX mantenimientos en fuentes ornamentales, XXX aplicación de pintura en juegos infantiles, XXX retiro de pegas y colguijes, 16 parques públicos, XXX colocaciones de mobiliario urbano en plazas públicas, XXX aplicación de pintura en centro educativo o escuela pública, XXX rotulaciones y colocación de letreros prohibitivos, atención integral a 8 panteones, XXX aplicación de pintura en mobiliario urbano, XXX rehabilitación de barandales y protecciones metálicas y XXX reparaciones de banqueta. | L27: =IFERROR(VLOOKUP(A27,Base!B:L,7,FALSE),"") -> 0.5 | N27: _18 | O27: =IFERROR(M27*VLOOKUP(A27,Base!B:K,10,FALSE),"") -> 0
A28: 02CD14_19 | B28: =IFERROR(VLOOKUP(A28,Base!B:E,3,FALSE),"") -> E187 | C28: =IFERROR(VLOOKUP(A28,Base!B:E,4,FALSE),"") -> SERVICIOS PUBLICOS | E28: =IFERROR(VLOOKUP(A28,Base!B:F,5,FALSE),"") -> Otorgar servicios funerarios y dar mantenimiento a panteones. | H28: =IFERROR(VLOOKUP($A28,Base!B:M,11,FALSE),"") -> Se estima la recepción de 2,700 trámites y servicios funerarios, los cuales se componen de: 350 servicios de exhumación, 740 servicio de inhumación, 270 servicios de re-inhumación y 1,300 cremaciones; y 32 jornadas de mantenimiento a panteones, 5 mantenimientos preventivos al módulo de cremación, 3 mantenimientos correctivos al módulo de cremación. | I28: Se dió atención a XXX trámites y servicios, lo que representa un avance del XXX por ciento de los 2,700 programados para el presente ejercicio fiscal; los cuales se componen de: XXX servicios de exhumación; XXX servicio de inhumación; XXX servicios de re-inhumación; XXX servicios de cremación; y XXX jornadas de mantenimiento a los panteones, XXX mantenimientos preventivos al módulo de cremación, XXX mantenimientos correctivos al módulo de cremación. | L28: =IFERROR(VLOOKUP(A28,Base!B:L,7,FALSE),"") -> 0.5 | N28: _19 | O28: =IFERROR(M28*VLOOKUP(A28,Base!B:K,10,FALSE),"") -> 0
A29: 02CD14_20 | B29: =IFERROR(VLOOKUP(A29,Base!B:E,3,FALSE),"") -> E187 | C29: =IFERROR(VLOOKUP(A29,Base!B:E,4,FALSE),"") -> SERVICIOS PUBLICOS | E29: =IFERROR(VLOOKUP(A29,Base!B:F,5,FALSE),"") -> Contribuir al derecho de la población a contar con el agua potable en sus viviendas, principalmente en las zonas de marginación. | H29: =IFERROR(VLOOKUP($A29,Base!B:M,11,FALSE),"") -> Se programo la repartición de 1,400,000 m³ de agua mediante camiones tipo pipas en zonas con un alto índice de marginación. | I29: Se llevó a cabo la repartición de XXX m³ de agua mediante camiones tipo pipas en zonas con un alto índice de marginación, lo que representa un avance del XXX por ciento de 1,400,000 m³ programados para este ejercicio fiscal. | L29: =IFERROR(VLOOKUP(A29,Base!B:L,7,FALSE),"") -> 0.5 | N29: _20 | O29: =IFERROR(M29*VLOOKUP(A29,Base!B:K,10,FALSE),"") -> 0
A30: 02CD14_21 | B30: =IFERROR(VLOOKUP(A30,Base!B:E,3,FALSE),"") -> E187 | C30: =IFERROR(VLOOKUP(A30,Base!B:E,4,FALSE),"") -> SERVICIOS PUBLICOS | E30: =IFERROR(VLOOKUP(A30,Base!B:F,5,FALSE),"") -> Difusión de información sobre el cuidado del medio ambiente, el desarrollo sustentable, el cambio climático, los efectos de la contaminación y conservación de la biodiversidad entre la población tlalpense. | H30: =IFERROR(VLOOKUP($A30,Base!B:M,11,FALSE),"") -> Se programaron XXX difusiones a través de diversos medios con temas relacionados con el cuidado del medio ambiente, desarrollo sustentable, cambio climático, efectos contaminante y conservación de la biodiversidad. | I30: Se llevaron a cabo XXX difusiones a través de diversos medios con temas relacionados con el cuidado del medo ambiente, desarrollo sustentable, cambio climático, efectos contaminante y conservación de la biodiversidadlo que representa un avance del XXX por ciento de las XXX programadas para el presente ejercicio fiscal. | L30: =IFERROR(VLOOKUP(A30,Base!B:L,7,FALSE),"") -> 0.5 | N30: _21 | O30: =IFERROR(M30*VLOOKUP(A30,Base!B:K,10,FALSE),"") -> 0
A31: 02CD14_22 | B31: =IFERROR(VLOOKUP(A31,Base!B:E,3,FALSE),"") -> E187 | C31: =IFERROR(VLOOKUP(A31,Base!B:E,4,FALSE),"") -> SERVICIOS PUBLICOS | E31: =IFERROR(VLOOKUP(A31,Base!B:F,5,FALSE),"") -> Capacitación a inspectores, dictaminadores, funcionarios y personal de la alcaldía, en temas ambientales. | H31: =IFERROR(VLOOKUP($A31,Base!B:M,11,FALSE),"") -> Se programaron XXX capacitaciones a dictaminadores, funcionarios y personal de la alcadía en temas ambientales. | I31: Se brindaron XXXcapacitaciones a dictaminadores, funcionarios y personal de la alcadía en temas ambientales lo que representa un avance del XXX por ciento de las XXX programadas para el presente ejercicio fiscal. | L31: =IFERROR(VLOOKUP(A31,Base!B:L,7,FALSE),"") -> 0.5 | N31: _22 | O31: =IFERROR(M31*VLOOKUP(A31,Base!B:K,10,FALSE),"") -> 0
A32: 02CD14_23 | B32: =IFERROR(VLOOKUP(A32,Base!B:E,3,FALSE),"") -> E187 | C32: =IFERROR(VLOOKUP(A32,Base!B:E,4,FALSE),"") -> SERVICIOS PUBLICOS | E32: =IFERROR(VLOOKUP(A32,Base!B:F,5,FALSE),"") -> Contribución a la protección, preservación y conservación de los recursos naturales. | H32: =IFERROR(VLOOKUP($A32,Base!B:M,11,FALSE),"") -> Se programaron XXX activiades en materia de proteccion, preserbación y conservación de los recursos naturales. | I32: Se realizaron XXX activiades en materia de proteccion, preserbación y conservación de los recursos naturales, lo que representa un avance del XXX por ciento de las XXX programadas para el presente ejercicio fiscal. | L32: =IFERROR(VLOOKUP(A32,Base!B:L,7,FALSE),"") -> 0.5 | N32: _23 | O32: =IFERROR(M32*VLOOKUP(A32,Base!B:K,10,FALSE),"") -> 0
A33: 02CD14_24 | B33: =IFERROR(VLOOKUP(A33,Base!B:E,3,FALSE),"") -> E188 | C33: =IFERROR(VLOOKUP(A33,Base!B:E,4,FALSE),"") -> EDUCACION, CULTURA, DEPORTE Y RECREACION | E33: =IFERROR(VLOOKUP(A33,Base!B:F,5,FALSE),"") -> Realizar actividades culturales de diversas expresiones artísticas (como fotografía, escultura, música, danza, literatura, teatro, etc.). | H33: =IFERROR(VLOOKUP($A33,Base!B:M,11,FALSE),"") -> Se programarón XXX actividades culturales de diversas expresiones; mismas que corresponden a: XXX de fotografia, XXX escultura, XXX música, XXX de danza, XXX de literatura y XXX teatro. | I33: Se llevaron a cabo XXX taleres culturales de diversas expresiones, lo que representa un avance del XXX por ciento de los XXX programamdos para el presente ejercicio fiscal; mismas que corresponden a: XXX de fotografia, XXX escultura, XXX música, XXX de danza, XXX de literatura y XXX teatro. | L33: =IFERROR(VLOOKUP(A33,Base!B:L,7,FALSE),"") -> 0.5 | N33: _24 | O33: =IFERROR(M33*VLOOKUP(A33,Base!B:K,10,FALSE),"") -> 0
A34: 02CD14_25 | B34: =IFERROR(VLOOKUP(A34,Base!B:E,3,FALSE),"") -> E188 | C34: =IFERROR(VLOOKUP(A34,Base!B:E,4,FALSE),"") -> EDUCACION, CULTURA, DEPORTE Y RECREACION | E34: =IFERROR(VLOOKUP(A34,Base!B:F,5,FALSE),"") -> Implementar actividades culturales. | H34: =IFERROR(VLOOKUP($A34,Base!B:M,11,FALSE),"") -> Se programaron XXX actividades y servicios culturales en espacios públicos, plazas al aire libre, recintos culturales y en los 16 Centros Comunitarios, los cuales se desarrollaran de la siguiente manera: XXX presentaciones y XXX servicios que incluyen clases de dibujo, danza, académicas, salud y oficios. | I34: Se llevaron a cabo XXX actividades y servicios culturales en espacios públicos, plazas al aire libre, recintos culturales y en los 16 Centros Comunitarios, lo que representa un avance del XXX por ciento de las XXX programadas para el presente ejercicio fiscal, mismas que se desarrollaran de la siguiente manera: XXX presentaciones en distintas áreas y XXX servicios que incluyen clases de dibujo, danza, académicas, salud y oficios. | L34: =IFERROR(VLOOKUP(A34,Base!B:L,7,FALSE),"") -> 0.5 | N34: _25 | O34: =IFERROR(M34*VLOOKUP(A34,Base!B:K,10,FALSE),"") -> 0
A35: 02CD14_26 | B35: =IFERROR(VLOOKUP(A35,Base!B:E,3,FALSE),"") -> E188 | C35: =IFERROR(VLOOKUP(A35,Base!B:E,4,FALSE),"") -> EDUCACION, CULTURA, DEPORTE Y RECREACION | E35: =IFERROR(VLOOKUP(A35,Base!B:F,5,FALSE),"") -> Impartir de clases deportivas en Módulos y Centros Deportivos a través de las Escuelas Técnico Deportivas. | H35: =IFERROR(VLOOKUP($A35,Base!B:M,11,FALSE),"") -> Se programaron XXX clases en las Escuelas Técnico Deportivas, mismas que se desarrollaran de la siguiente manera: XXX atletismo, XXX Basquetbol, XXX Boxeo, XXX Deporte Adaptado, XXX Handball, XXX Judo, XXX Luchas Asociadas, XXX Nado artístico, XXX Natación, XXX Patinaje Artístico, XXX Tae-kwon-do, XXX Remo, XXX Polo Acuático y XXX Clavados. | I35: Se imparieron XXX clases en las Escuelas Técnico Deportivas, lo que representa un avance del XXX por ciento de las XXX programadas para el presente ejercicio fiscal; mismas que se desarrollaran de la siguiente manera: XXX atletismo, XXX Basquetbol, XXX Boxeo, XXX Deporte Adaptado, XXX Handball, XXX Judo, XXX Luchas Asociadas, XXX Nado artístico, XXX Natación, XXX Patinaje Artístico, XXX Tae-kwon-do, XXX Remo, XXX Polo Acuático y XXX Clavados. | L35: =IFERROR(VLOOKUP(A35,Base!B:L,7,FALSE),"") -> 0.5 | N35: _26 | O35: =IFERROR(M35*VLOOKUP(A35,Base!B:K,10,FALSE),"") -> 0
A36: 02CD14_27 | B36: =IFERROR(VLOOKUP(A36,Base!B:E,3,FALSE),"") -> E188 | C36: =IFERROR(VLOOKUP(A36,Base!B:E,4,FALSE),"") -> EDUCACION, CULTURA, DEPORTE Y RECREACION | E36: =IFERROR(VLOOKUP(A36,Base!B:F,5,FALSE),"") -> Fomentar la cultura física y promoción deportiva organizando eventos deportivos gratuitos. | H36: =IFERROR(VLOOKUP($A36,Base!B:M,11,FALSE),"") -> Se programaron XXX Eventos Competitivos de las Escuelas Técnico Deportivas, mismos que se desarrollaran de la siguiente manera: XXX atletismo, XXX basquetbol, XXX boxeo, XXX deporte adaptado, XXX handball, XXX judo, XXX luchas asociadas, XXX nado artístico, XXX natación, XXX patinaje Artístico, XXX tae kwon do, XXX polo acuático, XXX remo y XXX clavados. | I36: Se llevaron a cabo XXX Eventos competitivos de las Escuelas Técnico Deportivas, lo que representa el XXX por ciento de los XXX programados para el presente ejercicio fiscal; mismos que se corresponden a: XXX atletismo, XXX basquetbol, XXX boxeo, XXX deporte adaptado, XXX handball, XXX judo, XXX luchas asociadas, XXX nado artístico, XXX natación, XXX patinaje Artístico, XXX tae kwon do, XXX polo acuático, XXX remo y XXX clavados. | L36: =IFERROR(VLOOKUP(A36,Base!B:L,7,FALSE),"") -> 0.5 | N36: _27 | O36: =IFERROR(M36*VLOOKUP(A36,Base!B:K,10,FALSE),"") -> 0
A37: 02CD14_28 | B37: =IFERROR(VLOOKUP(A37,Base!B:E,3,FALSE),"") -> E188 | C37: =IFERROR(VLOOKUP(A37,Base!B:E,4,FALSE),"") -> EDUCACION, CULTURA, DEPORTE Y RECREACION | E37: =IFERROR(VLOOKUP(A37,Base!B:F,5,FALSE),"") -> Realizar actividades de mantenimiento menor a Centros y Módulos Deportivos a cargo de la Alcaldía Tlalpan. | H37: =IFERROR(VLOOKUP($A37,Base!B:M,11,FALSE),"") -> Se estiman XXX mantenimientos menores de los Centros y Módulos Deportivos. | I37: Se realizaron XXX mantenimientos menores de los Centros y Módulos Deportivos, lo que representa un avance del XXX por ciento de los XXX estimados para el presente ejercicio fiscal. | L37: =IFERROR(VLOOKUP(A37,Base!B:L,7,FALSE),"") -> 0.5 | N37: _28 | O37: =IFERROR(M37*VLOOKUP(A37,Base!B:K,10,FALSE),"") -> 0
A38: 02CD14_29 | B38: =IFERROR(VLOOKUP(A38,Base!B:E,3,FALSE),"") -> E189 | C38: =IFERROR(VLOOKUP(A38,Base!B:E,4,FALSE),"") -> SERVICIOS DE SALUD EN ALCALDIAS | E38: =IFERROR(VLOOKUP(A38,Base!B:F,5,FALSE),"") -> Otorgar Consultas Médica tales como: Odontológica, Optometrista, Nutricional y Alternativa. | H38: =IFERROR(VLOOKUP($A38,Base!B:M,11,FALSE),"") -> Se programaron XXX consultas médica en las Casas de Salud y Caravanas de Salud; mismas que correponden a: XXX odontológicas, XXX optometría, XXX nutricionales y médicina alternativa. En Casas de Salud y Caravanas de Salud. | I38: Se otorgaron XXX consultas médica en las Casas de Salud y Caravanas de Salud, lo que representa el XXX por ciento de las XXX programadas para el presente ejercicio fiscal; mismas que correponden a: XXX odontológicas, XXX optometría, XXX nutricionales y médicina alternativa. En Casas de Salud y Caravanas de Salud. | L38: =IFERROR(VLOOKUP(A38,Base!B:L,7,FALSE),"") -> 0.5 | N38: _29 | O38: =IFERROR(M38*VLOOKUP(A38,Base!B:K,10,FALSE),"") -> 0
A39: 02CD14_30 | B39: =IFERROR(VLOOKUP(A39,Base!B:E,3,FALSE),"") -> E189 | C39: =IFERROR(VLOOKUP(A39,Base!B:E,4,FALSE),"") -> SERVICIOS DE SALUD EN ALCALDIAS | E39: =IFERROR(VLOOKUP(A39,Base!B:F,5,FALSE),"") -> Brindar Servicios de Salud Mental (Atención Psicológica, Talleres de Crianza Positiva y Grupos Focales de Prevención de Adicciones). | H39: =IFERROR(VLOOKUP($A39,Base!B:M,11,FALSE),"") -> Se programarón 2,394 servicios de salud mental en el Centro Integral de Esparcimiento Lúdico y Orientación (CIELO); mismas que corresponden a: XXX atenciones psicológicas, XXX talleres de crianza positiva y XXX a Grupos Focales de Prevención de Adicciones. | I39: Se brindaron XXX servicios de salud mental en el Centro Integral de Esparcimiento Lúdico y Orientación (CIELO), lo que representa el XXX por ciento de los XXX programados para el presente ejercicio fiscal; mismas que corresponden a: XXX atenciones psicológicas, XXX talleres de crianza positiva y XXX a Grupos Focales de Prevención de Adicciones. | L39: =IFERROR(VLOOKUP(A39,Base!B:L,7,FALSE),"") -> 0.5 | N39: _30 | O39: =IFERROR(M39*VLOOKUP(A39,Base!B:K,10,FALSE),"") -> 0
A40: 02CD14_31 | B40: =IFERROR(VLOOKUP(A40,Base!B:E,3,FALSE),"") -> E189 | C40: =IFERROR(VLOOKUP(A40,Base!B:E,4,FALSE),"") -> SERVICIOS DE SALUD EN ALCALDIAS | E40: =IFERROR(VLOOKUP(A40,Base!B:F,5,FALSE),"") -> Proporcionar Servicios de Detecciones: Presión arterial, glicemia capilar, cáncer de mama, cervicouterino, cáncer de próstata y VIH. | H40: =IFERROR(VLOOKUP($A40,Base!B:M,11,FALSE),"") -> Se programaron XXX servicios en Caravanas de Salud, mismos que corresponden a: XXX de presión arterial, XXX de glicemia capilar, XXX cáncer de mama, XXX de carnce cervicouterino; de céncer de prostata y XXX de VIH. | I40: Se brindaron XXX servicios en Caravanas de Salud, lo que representa un avance del XXX por ciento de los XXX programados para el presente ejercicio fiscal; mismos que corresponden a: XXX de presión arterial, XXX de glicemia capilar, XXX cáncer de mama, XXX de carnce cervicouterino; de céncer de prostata y XXX de VIH. | L40: =IFERROR(VLOOKUP(A40,Base!B:L,7,FALSE),"") -> 0.5 | N40: _31 | O40: =IFERROR(M40*VLOOKUP(A40,Base!B:K,10,FALSE),"") -> 0
A41: 02CD14_32 | B41: =IFERROR(VLOOKUP(A41,Base!B:E,3,FALSE),"") -> E189 | C41: =IFERROR(VLOOKUP(A41,Base!B:E,4,FALSE),"") -> SERVICIOS DE SALUD EN ALCALDIAS | E41: =IFERROR(VLOOKUP(A41,Base!B:F,5,FALSE),"") -> Brindará Servicios de Salud Preventiva como: Vacunación, Somatometría, Primeros Auxilios, Prevención y Promoción a la Salud. | H41: =IFERROR(VLOOKUP($A41,Base!B:M,11,FALSE),"") -> Se programaron XXX servicios de orientación preventiva de salud en Caravanas de Salud, mismos que corresponden a: XXX vacunaciones, XXX somatometrías, XXX promeros Auxilios, XXX prevención y promoción de la salud. | I41: Se brindaron XXX servicios de orientación preventiva de salud en Caravanas de Salud, lo que representa un avance del XXX por ciento de las XXX programadas para el presente ejercicio fiscal; mismos que corresponden a: XXX vacunaciones, XXX somatometrías, XXX promeros Auxilios, XXX prevención y promoción de la salud. | L41: =IFERROR(VLOOKUP(A41,Base!B:L,7,FALSE),"") -> 0.5 | N41: _32 | O41: =IFERROR(M41*VLOOKUP(A41,Base!B:K,10,FALSE),"") -> 0
A42: 02CD14_33 | B42: =IFERROR(VLOOKUP(A42,Base!B:E,3,FALSE),"") -> E189 | C42: =IFERROR(VLOOKUP(A42,Base!B:E,4,FALSE),"") -> SERVICIOS DE SALUD EN ALCALDIAS | E42: =IFERROR(VLOOKUP(A42,Base!B:F,5,FALSE),"") -> Realizar el seguimiento de atención temprana en el neurodesarrollo a niñas y niños entre 0 y 4 años 6 meses de edad cumplidos, mediante Evaluaciones del Desarrollo Infantil. | H42: =IFERROR(VLOOKUP($A42,Base!B:M,11,FALSE),"") -> Se programaron XXX evaluaciones de desarrollo infantil para la atención temprana del neurodesarrollo infantil en niños de 0 a 4.6 años de edad. | I42: Se programaron XXX evaluaciones de desarrollo infantil para la atención temprana del neurodesarrollo infantil en niños de 0 a 4.6 años de edad, lo que representa un avance del XXX por ciento de las XXX programadas para el presente ejercicio fiscal. | L42: =IFERROR(VLOOKUP(A42,Base!B:L,7,FALSE),"") -> 0.5 | N42: _33 | O42: =IFERROR(M42*VLOOKUP(A42,Base!B:K,10,FALSE),"") -> 0
A43: 02CD14_34 | B43: =IFERROR(VLOOKUP(A43,Base!B:E,3,FALSE),"") -> E189 | C43: =IFERROR(VLOOKUP(A43,Base!B:E,4,FALSE),"") -> SERVICIOS DE SALUD EN ALCALDIAS | E43: =IFERROR(VLOOKUP(A43,Base!B:F,5,FALSE),"") -> Realizar servicios de detección, manejo y rehabilitación músculo esquelética. | H43: =IFERROR(VLOOKUP($A43,Base!B:M,11,FALSE),"") -> Se programaron XXX servicios de salud ortopédica; mismos que corresponden a: XXX detecciones y XXX rehabilitaciones músculo esquelética. | I43: Se brindaron XXX servicios de salud ortopédica, lo que represemta un avance del XXX por ciento de las XXX programadas para el presente ejercicio fiscal; mismos que corresponden a: XXX detecciones y XXX rehabilitaciones músculo esquelética. | L43: =IFERROR(VLOOKUP(A43,Base!B:L,7,FALSE),"") -> 0.5 | N43: _34 | O43: =IFERROR(M43*VLOOKUP(A43,Base!B:K,10,FALSE),"") -> 0
A44: 02CD14_35 | B44: =IFERROR(VLOOKUP(A44,Base!B:E,3,FALSE),"") -> E189 | C44: =IFERROR(VLOOKUP(A44,Base!B:E,4,FALSE),"") -> SERVICIOS DE SALUD EN ALCALDIAS | E44: =IFERROR(VLOOKUP(A44,Base!B:F,5,FALSE),"") -> Brindar talleres sobre Derechos de las Personas con Discapacidad, lenguaje incluyente, Lengua de Señas Mexicanas y Sistema de lecto-escritura Braille. | H44: =IFERROR(VLOOKUP($A44,Base!B:M,11,FALSE),"") -> Se programaron XXX talleres para personas con capacidades diferentes, mismos que corresponden a: XXX específicos de Derechos de las Personas con Discapacidad, XXX de Lenguaje de Señas Mexicanas, XXX Lenguaje Incluyente y XXX de Sistema Braille (lecto-escritura) . | I44: Se llevaron a cabo XXX talleres para personas con capacidades diferentes, lo que representa un avance del XXX por ciento de los XXX programados para el presente ejercicio fiscal; mismos que corresponden a: XXX específicos de Derechos de las Personas con Discapacidad, XXX de Lenguaje de Señas Mexicanas, XXX Lenguaje Incluyente y XXX de Sistema Braille (lecto-escritura) . | L44: =IFERROR(VLOOKUP(A44,Base!B:L,7,FALSE),"") -> 0.5 | N44: _35 | O44: =IFERROR(M44*VLOOKUP(A44,Base!B:K,10,FALSE),"") -> 0
A45: 02CD14_36 | B45: =IFERROR(VLOOKUP(A45,Base!B:E,3,FALSE),"") -> E190 | C45: =IFERROR(VLOOKUP(A45,Base!B:E,4,FALSE),"") -> SERVICIOS DE ATENCION ANIMAL | E45: =IFERROR(VLOOKUP(A45,Base!B:F,5,FALSE),"") -> Contribuir a la salud animal entre los que destacan las cirugías, esterilizaciones y vacunas. | H45: =IFERROR(VLOOKUP($A45,Base!B:M,11,FALSE),"") -> Se programaron XXX servicios de salud animal a caninos y felinos, mismos que corresponden a: XXX cirugías generales, XXX esterilizaciones y XXX aplicaciones de vacunas. | I45: Se llevaron a cabo XXX servicios de salud animal a caninos y felinos, lo que representa un avance del XXX por ciento de los XXX programados para el presente ejercicio fiscal; mismos que corresponden a: XXX cirugías generales, XXX esterilizaciones y XXX aplicaciones de vacunas. | L45: =IFERROR(VLOOKUP(A45,Base!B:L,7,FALSE),"") -> 0.5 | N45: _36 | O45: =IFERROR(M45*VLOOKUP(A45,Base!B:K,10,FALSE),"") -> 0
A46: 02CD14_37 | B46: =IFERROR(VLOOKUP(A46,Base!B:E,3,FALSE),"") -> E190 | C46: =IFERROR(VLOOKUP(A46,Base!B:E,4,FALSE),"") -> SERVICIOS DE ATENCION ANIMAL | E46: =IFERROR(VLOOKUP(A46,Base!B:F,5,FALSE),"") -> Proporcionar servicios a animales de compañía como rehabilitaciones, adiestramiento, adopciones, etc. | H46: =IFERROR(VLOOKUP($A46,Base!B:M,11,FALSE),"") -> Se programaron XXX servicios para animales de compañía; mismos que corresponden a: XXX rehabilitaciones, XXX adiestramiento. | I46: Se llevaron a cabo XXX servicios para animales de compañía, lo que representa un avance del XXX por ciento de los XXX programados para el presente ejercicio fiscal; mismos que corresponden a: XXX rehabilitaciones, XXX adiestramiento. | L46: =IFERROR(VLOOKUP(A46,Base!B:L,7,FALSE),"") -> 0.5 | N46: _37 | O46: =IFERROR(M46*VLOOKUP(A46,Base!B:K,10,FALSE),"") -> 0
A47: 02CD14_38 | B47: =IFERROR(VLOOKUP(A47,Base!B:E,3,FALSE),"") -> E190 | C47: =IFERROR(VLOOKUP(A47,Base!B:E,4,FALSE),"") -> SERVICIOS DE ATENCION ANIMAL | E47: =IFERROR(VLOOKUP(A47,Base!B:F,5,FALSE),"") -> Recepción de animales donados voluntariamente a razón de lo comprendido en el Artículo 51 de la Ley de Protección a los Animales de la Ciudad de México. | H47: =IFERROR(VLOOKUP($A47,Base!B:M,11,FALSE),"") -> Se estima recibir XXX animales donados al Centro de Atención Canina y Felina o en las Clínicas Veterinarias de la Demarcación; mismos que corresponden a: XXX perros y XXX gatos. | I47: Se recepcionaron XXX animales donados al Centro de Atención Canina y Felina o en las Clínicas Veterinarias de la Demarcación, lo que representa un avance del XXX por ciento de los XXX estimados para el presente ejercicio fiscal; mismos que corresponden a: XXX perros y XXX gatos. | L47: =IFERROR(VLOOKUP(A47,Base!B:L,7,FALSE),"") -> 0.5 | N47: _38 | O47: =IFERROR(M47*VLOOKUP(A47,Base!B:K,10,FALSE),"") -> 0
A48: 02CD14_39 | B48: =IFERROR(VLOOKUP(A48,Base!B:E,3,FALSE),"") -> E190 | C48: =IFERROR(VLOOKUP(A48,Base!B:E,4,FALSE),"") -> SERVICIOS DE ATENCION ANIMAL | E48: =IFERROR(VLOOKUP(A48,Base!B:F,5,FALSE),"") -> Difusión en redes oficiales a través de materiales pedagógicos para dar Atención a personas sobre la tutela responsable de animales de compañía y el respeto por la vida. | H48: =IFERROR(VLOOKUP($A48,Base!B:M,11,FALSE),"") -> Se programaron XXX difusiones de información en redes sociales oficiales acerca del cuidado animal; mismos que corresponden a: XXX materiales pedagógicos sobre tutela responsable de animales de compañía y XXX para el respeto por la vida de los animales de compañia. | I48: Se llevaron a cabo XXX difusiones de información en redes sociales oficiales acerca del cuidado animal, lo ; mismos que corresponden a: XXX materiales pedagógicos sobre tutela responsable de animales de compañía y XXX para el respeto por la vida de los animales de compañia. | L48: =IFERROR(VLOOKUP(A48,Base!B:L,7,FALSE),"") -> 0.5 | N48: _39 | O48: =IFERROR(M48*VLOOKUP(A48,Base!B:K,10,FALSE),"") -> 0
A49: 02CD14_40 | B49: =IFERROR(VLOOKUP(A49,Base!B:E,3,FALSE),"") -> E190 | C49: =IFERROR(VLOOKUP(A49,Base!B:E,4,FALSE),"") -> SERVICIOS DE ATENCION ANIMAL | E49: =IFERROR(VLOOKUP(A49,Base!B:F,5,FALSE),"") -> Realizar desparasitaciones internas de la población canina y felina en las instalaciones de la clínica veterinaria para la prevención de enfermedades transmitidas entre animales y humanos. | H49: =IFERROR(VLOOKUP($A49,Base!B:M,11,FALSE),"") -> Se programaron XXX servicios de desparacitación en la Clínica Veterinaria de la Alcaldía a animales de compañia; mismos que corresponden a; XXX caninos y XXX felinos. | I49: Se brindaron XXX servicios de desparacitación en la Clínica Veterinaria de la Alcaldía a animales de compañía, lo que representa un avance del XXX por ciento de los XXX programados para el presente ejercicio fiscal; mismos que corresponden a; XXX caninos y XXX felinos. | L49: =IFERROR(VLOOKUP(A49,Base!B:L,7,FALSE),"") -> 0.5 | N49: _40 | O49: =IFERROR(M49*VLOOKUP(A49,Base!B:K,10,FALSE),"") -> 0
A50: 02CD14_41 | B50: =IFERROR(VLOOKUP(A50,Base!B:E,3,FALSE),"") -> E190 | C50: =IFERROR(VLOOKUP(A50,Base!B:E,4,FALSE),"") -> SERVICIOS DE ATENCION ANIMAL | E50: =IFERROR(VLOOKUP(A50,Base!B:F,5,FALSE),"") -> Brindar asesorías médicas veterinarias en las instalaciones de la clínica veterinaria. | H50: =IFERROR(VLOOKUP($A50,Base!B:M,11,FALSE),"") -> Se programaron XXX servicios de asesoría médica en la Clínica Veterinaria de la Alcaldía a XXX personas con animales de compañía (perros y gatos). | I50: Se brindaron XXX servicios de asesoría médica en la Clínica Veterinaria de la Alcaldía a XXX personas con animales de compañía (perros y gatos), lo que representa un avance del XXX por ciento de los XXX programados para el presente ejercicio fiscal. | L50: =IFERROR(VLOOKUP(A50,Base!B:L,7,FALSE),"") -> 0.5 | N50: _41 | O50: =IFERROR(M50*VLOOKUP(A50,Base!B:K,10,FALSE),"") -> 0
A51: 02CD14_42 | B51: =IFERROR(VLOOKUP(A51,Base!B:E,3,FALSE),"") -> E198 | C51: =IFERROR(VLOOKUP(A51,Base!B:E,4,FALSE),"") -> SERVICIOS DE CUIDADO INFANTIL | E51: =IFERROR(VLOOKUP(A51,Base!B:F,5,FALSE),"") -> Realizar acciones de consolidación del Consejo de niñas y niños como parte del proyecto internacional Ciudad de las niñas y niños, para promover el derecho a la participación, al juego y a la autonomía de las niñas y niños, con ello integrar la participación de las infancias como parámetro para la propuesta y ejecución de iniciativas de gobierno. Dar voz a las infancias y adolescentes. | H51: =IFERROR(VLOOKUP($A51,Base!B:M,11,FALSE),"") -> Se programaron XXX Sesiones Ordinarias del Sistema (SIPINNA) para dar voz a las infancias y adolescencias en la puesta y poner en marcha las acciones de participación en la iniciativa de gobierno. | I51: Se realizaron XXX Sesiones Ordinarias del Sistema (SIPINNA) para dar voz a las infancias y adolescencias en la puesta y poner en marcha las acciones de participación en la iniciativa de gobierno, lo que representa un avance del XXX por ciento de los XXX programados para el presente ejercicio fiscal. | L51: =IFERROR(VLOOKUP(A51,Base!B:L,7,FALSE),"") -> 0.5 | N51: _42 | O51: =IFERROR(M51*VLOOKUP(A51,Base!B:K,10,FALSE),"") -> 0
A52: 02CD14_43 | B52: =IFERROR(VLOOKUP(A52,Base!B:E,3,FALSE),"") -> E198 | C52: =IFERROR(VLOOKUP(A52,Base!B:E,4,FALSE),"") -> SERVICIOS DE CUIDADO INFANTIL | E52: =IFERROR(VLOOKUP(A52,Base!B:F,5,FALSE),"") -> Realizar acciones de consolidación del Sistema Protección de las Niñas, Niños y Adolescentes SIPINNA Tlalpan, respondiendo al mandato de la Ley General de los derechos de las niñas, niños y adolescentes, así como a la Convención de los derechos del niño. | H52: =IFERROR(VLOOKUP($A52,Base!B:M,11,FALSE),"") -> Se programaron XXX Sesiones Ordinarias del Sistema (SIPINNA) para la implementación de estrategias en la Comisión de la Primera Infancia. | I52: Se realizaron XXX Sesiones Ordinarias del Sistema (SIPINNA) para la implementación de estrategias en la Comisión de la Primera Infancia, lo que representa un avance del XXX por ciento de los XXX programados para el presente ejercicio fiscal. | L52: =IFERROR(VLOOKUP(A52,Base!B:L,7,FALSE),"") -> 0.5 | N52: _43 | O52: =IFERROR(M52*VLOOKUP(A52,Base!B:K,10,FALSE),"") -> 0
A53: 02CD14_44 | B53: =IFERROR(VLOOKUP(A53,Base!B:E,3,FALSE),"") -> E198 | C53: =IFERROR(VLOOKUP(A53,Base!B:E,4,FALSE),"") -> SERVICIOS DE CUIDADO INFANTIL | E53: =IFERROR(VLOOKUP(A53,Base!B:F,5,FALSE),"") -> Implementar Audiencias Públicas Infantiles, con el objetivo de generar un espacio de diálogo-escucha para y con niñas y niños de la Alcaldía Tlalpan. | H53: =IFERROR(VLOOKUP($A53,Base!B:M,11,FALSE),"") -> Se programaron XXX audiencias públicas infantiles en los espacios públicos de la Alcaldía Tlalpan | I53: Se realizaron XXX audiencias públicas infantiles en los espacios públicos de la Alcaldía Tlalpan, lo que representa un avance del XXX por ciento de los XXX programados para el presente ejercicio fiscal. | L53: =IFERROR(VLOOKUP(A53,Base!B:L,7,FALSE),"") -> 0.5 | N53: _44 | O53: =IFERROR(M53*VLOOKUP(A53,Base!B:K,10,FALSE),"") -> 0
A54: 02CD14_45 | B54: =IFERROR(VLOOKUP(A54,Base!B:E,3,FALSE),"") -> E198 | C54: =IFERROR(VLOOKUP(A54,Base!B:E,4,FALSE),"") -> SERVICIOS DE CUIDADO INFANTIL | E54: =IFERROR(VLOOKUP(A54,Base!B:F,5,FALSE),"") -> Creación de una campaña promoción de los derechos de las niñas, niños y adolescentes, con la finalidad de contribuir a una cultura del respeto a sus derechos. | H54: =IFERROR(VLOOKUP($A54,Base!B:M,11,FALSE),"") -> Se programaron XXX talleres de promoción de los derechos de las niñas y niños. | I54: Se llevaron a cabo XXX talleres de promoción de los derechos de las niñas y niños, lo que representa un avance del XXX por ciento de los XXX programados para el presente ejercicio fiscal. | L54: =IFERROR(VLOOKUP(A54,Base!B:L,7,FALSE),"") -> 0.5 | N54: _45 | O54: =IFERROR(M54*VLOOKUP(A54,Base!B:K,10,FALSE),"") -> 0
A55: 02CD14_46 | B55: =IFERROR(VLOOKUP(A55,Base!B:E,3,FALSE),"") -> F037 | C55: =IFERROR(VLOOKUP(A55,Base!B:E,4,FALSE),"") -> TURISMO, EMPLEO Y FOMENTO ECONOMICO | E55: =IFERROR(VLOOKUP(A55,Base!B:F,5,FALSE),"") -> Organizar ferias relacionadas al sector primario de los sectores de la economía. | H55: =IFERROR(VLOOKUP($A55,Base!B:M,11,FALSE),"") -> Se programaron XXX ferias del Empleo con la participación de Empresas Privadas, Instancias Públicas y la Población Tlalpense. | I55: Se realizaron XXX ferias del Empleo con la participación de Empresas Privadas, Instancias Públicas y la Población Tlalpense, lo que representa un avance del XXX por ciento de las programadas para el presente ejercicio fiscal. | L55: =IFERROR(VLOOKUP(A55,Base!B:L,7,FALSE),"") -> 0.5 | N55: _46 | O55: =IFERROR(M55*VLOOKUP(A55,Base!B:K,10,FALSE),"") -> 0
A56: 02CD14_47 | B56: =IFERROR(VLOOKUP(A56,Base!B:E,3,FALSE),"") -> F037 | C56: =IFERROR(VLOOKUP(A56,Base!B:E,4,FALSE),"") -> TURISMO, EMPLEO Y FOMENTO ECONOMICO | E56: =IFERROR(VLOOKUP(A56,Base!B:F,5,FALSE),"") -> Coordinar ferias para la promoción de empleo y de bienes y servicios locales, para apoyar al comercio y productores locales. | H56: =IFERROR(VLOOKUP($A56,Base!B:M,11,FALSE),"") -> Se programó la difusión para XXX ferias del Empleo con productores locales a través de diversos medios impresos, mismos que corresponden a: XXX calendarios, XXX convocatorias, XXX carteles, y XXX triticos y dipticos. | I56: Se realizó la difusión para XXX ferias del Empleo con productores locales a través de diversos medios impresos, lo que representa un avance del XXX porciento de los programados para el presente ejercicio fiscal; mismos que corresponden a: XXX calendarios, XXX convocatorias, XXX carteles, y XXX triticos y dipticos. | L56: =IFERROR(VLOOKUP(A56,Base!B:L,7,FALSE),"") -> 0.5 | N56: _47 | O56: =IFERROR(M56*VLOOKUP(A56,Base!B:K,10,FALSE),"") -> 0
A57: 02CD14_48 | B57: =IFERROR(VLOOKUP(A57,Base!B:E,3,FALSE),"") -> F037 | C57: =IFERROR(VLOOKUP(A57,Base!B:E,4,FALSE),"") -> TURISMO, EMPLEO Y FOMENTO ECONOMICO | E57: =IFERROR(VLOOKUP(A57,Base!B:F,5,FALSE),"") -> Contactar agentes económicos y realizar actividades relacionadas con el sector de servicios. | H57: =IFERROR(VLOOKUP($A57,Base!B:M,11,FALSE),"") -> Se programaron XXX consultas con agentes económicos para el desarrollo adecuados del sector de servicios. | I57: Se llevaron a cabo XXX consultas con agentes económicos para el desarrollo adecuados del sector de servicios, lo que representa un avance del XXX por ciento de las XXX programadas para el presente ejercicio fiscal. | L57: =IFERROR(VLOOKUP(A57,Base!B:L,7,FALSE),"") -> 0.5 | N57: _48 | O57: =IFERROR(M57*VLOOKUP(A57,Base!B:K,10,FALSE),"") -> 0
A58: 02CD14_49 | B58: =IFERROR(VLOOKUP(A58,Base!B:E,3,FALSE),"") -> F037 | C58: =IFERROR(VLOOKUP(A58,Base!B:E,4,FALSE),"") -> TURISMO, EMPLEO Y FOMENTO ECONOMICO | E58: =IFERROR(VLOOKUP(A58,Base!B:F,5,FALSE),"") -> Realizar actividades para fomentar el desarrollo de MYPIMES y sociedades cooperativas. | H58: =IFERROR(VLOOKUP($A58,Base!B:M,11,FALSE),"") -> Se programaron XXX capacitaciones para fomentar el desarrollo de las MYPIMES y las Sociedades Cooperativas | I58: Se brindaron XXX capacitaciones para fomentar el desarrollo de las MYPIMES y las Sociedades Cooperativas, lo que representa un avance del XXX por ciento de las programadas para el presente ejercicio fiscal. | L58: =IFERROR(VLOOKUP(A58,Base!B:L,7,FALSE),"") -> 0.5 | N58: _49 | O58: =IFERROR(M58*VLOOKUP(A58,Base!B:K,10,FALSE),"") -> 0
A59: 02CD14_50 | B59: =IFERROR(VLOOKUP(A59,Base!B:E,3,FALSE),"") -> F037 | C59: =IFERROR(VLOOKUP(A59,Base!B:E,4,FALSE),"") -> TURISMO, EMPLEO Y FOMENTO ECONOMICO | E59: =IFERROR(VLOOKUP(A59,Base!B:F,5,FALSE),"") -> Generar capacitaciones para el trabajo y promoción del autoempleo para personas jóvenes. | H59: =IFERROR(VLOOKUP($A59,Base!B:M,11,FALSE),"") -> Se programaron XXX capacitaciones para la promoción del Autoempleo encaminado a las personas jóvenes. | I59: Se brindaron XXX capacitaciones para la promoción del Autoempleo encaminado a las personas jóvenes, lo que representa un avance del XXX por ciento de las programadas para el presente ejercicio fiscal. | L59: =IFERROR(VLOOKUP(A59,Base!B:L,7,FALSE),"") -> 0.5 | N59: _50 | O59: =IFERROR(M59*VLOOKUP(A59,Base!B:K,10,FALSE),"") -> 0
A60: 02CD14_51 | B60: =IFERROR(VLOOKUP(A60,Base!B:E,3,FALSE),"") -> F037 | C60: =IFERROR(VLOOKUP(A60,Base!B:E,4,FALSE),"") -> TURISMO, EMPLEO Y FOMENTO ECONOMICO | E60: =IFERROR(VLOOKUP(A60,Base!B:F,5,FALSE),"") -> Facilitar créditos y financiamientos a personas dedicadas a la producción agrícola y aquellas que se encuentran en condición de desempleo o no cuentan con los recursos necesarios para emprender. | H60: =IFERROR(VLOOKUP($A60,Base!B:M,11,FALSE),"") -> Se programaron XXX apoyos económicos a emprendedores, personas dedicadas a la producción agrícola y que se encuentren desempleados. | I60: Se entregaron XXX apoyos económicos a emprendedores, personas dedicadas a la producción agrícola y que se encuentren desempleados, lo que representa un avance del XXX por ciento de las programadas para el presente ejercicio fiscal. | L60: =IFERROR(VLOOKUP(A60,Base!B:L,7,FALSE),"") -> 0.5 | N60: _51 | O60: =IFERROR(M60*VLOOKUP(A60,Base!B:K,10,FALSE),"") -> 0
A61: 02CD14_52 | B61: =IFERROR(VLOOKUP(A61,Base!B:E,3,FALSE),"") -> F037 | C61: =IFERROR(VLOOKUP(A61,Base!B:E,4,FALSE),"") -> TURISMO, EMPLEO Y FOMENTO ECONOMICO | E61: =IFERROR(VLOOKUP(A61,Base!B:F,5,FALSE),"") -> Generar capacitaciones para el trabajo y promoción del autoempleo para personas adultas. | H61: =IFERROR(VLOOKUP($A61,Base!B:M,11,FALSE),"") -> Se programaron XXX capacitaciones para el autoempleo a grupos de Personas Adultas Mayores. | I61: Se programaron XXX capacitaciones para el autoempleo a grupos de Personas Adultas Mayores, lo que representa un avance del XXX por ciento de las programadas para el presente ejercicio fiscal. | L61: =IFERROR(VLOOKUP(A61,Base!B:L,7,FALSE),"") -> 0.5 | N61: _52 | O61: =IFERROR(M61*VLOOKUP(A61,Base!B:K,10,FALSE),"") -> 0
A62: 02CD14_53 | B62: =IFERROR(VLOOKUP(A62,Base!B:E,3,FALSE),"") -> F037 | C62: =IFERROR(VLOOKUP(A62,Base!B:E,4,FALSE),"") -> TURISMO, EMPLEO Y FOMENTO ECONOMICO | E62: =IFERROR(VLOOKUP(A62,Base!B:F,5,FALSE),"") -> Realizar actividades para fomentar y Promocionar el Turismo en la Alcaldía Tlalpan. | H62: =IFERROR(VLOOKUP($A62,Base!B:M,11,FALSE),"") -> Se programaron XXX recorridos por los distintos puntos turísticos para el fomento y promoción del turismo en la Alcaldía Tlalpan. | I62: Se programaron XXX recorridos por los distintos puntos turísticos para el fomento y promoción del turismo en la Alcaldía Tlalpan, lo que representa un avance del XXX por ciento de las programadas para el presente ejercicio fiscal. | L62: =IFERROR(VLOOKUP(A62,Base!B:L,7,FALSE),"") -> 0.5 | N62: _53 | O62: =IFERROR(M62*VLOOKUP(A62,Base!B:K,10,FALSE),"") -> 0
A63: 02CD14_54 | B63: =IFERROR(VLOOKUP(A63,Base!B:E,3,FALSE),"") -> K023 | C63: =IFERROR(VLOOKUP(A63,Base!B:E,4,FALSE),"") -> INFRAESTRUCTURA URBANA | E63: =IFERROR(VLOOKUP(A63,Base!B:F,5,FALSE),"") -> Construcción, ampliación, rehabilitación, mantenimiento, mejoramiento de inmuebles deportivos, culturales, educativos y sociales en diversas ubicaciones de la Alcaldía, con el objetivo de elevar la calidad de vida de la población. | H63: =IFERROR(VLOOKUP($A63,Base!B:M,11,FALSE),"") -> Se programaron XXX construcciones, ampliaciones, rehabilitaciones, mantenimientos y mejoramientos; mismas que corresponden a: 16 Deportivos, 5 Bibliotecas, 42 Planteles de Educación Básica y 7 Inmuebles de Infraestructura Social. | I63: Se realizaron XXX construcciones, ampliaciones, rehabilitaciones, mantenimientos y mejoramientos, lo que representa un avance del XXX por ciento de las XXX programadas para el presente ejercicio fiscal; mismas que corresponden a: 16 Deportivos, 5 Bibliotecas, 42 Planteles de Educación Básica y 7 Inmuebles de Infraestructura Social. | L63: =IFERROR(VLOOKUP(A63,Base!B:L,7,FALSE),"") -> 0.5 | N63: _54 | O63: =IFERROR(M63*VLOOKUP(A63,Base!B:K,10,FALSE),"") -> 0
A64: 02CD14_55 | B64: =IFERROR(VLOOKUP(A64,Base!B:E,3,FALSE),"") -> K023 | C64: =IFERROR(VLOOKUP(A64,Base!B:E,4,FALSE),"") -> INFRAESTRUCTURA URBANA | E64: =IFERROR(VLOOKUP(A64,Base!B:F,5,FALSE),"") -> Construcción, ampliación, rehabilitación, mantenimiento, mejoramiento de edificios públicos en diversas ubicaciones de la Alcaldía, con el objetivo de mejorar la calidad de los servicios. | H64: =IFERROR(VLOOKUP($A64,Base!B:M,11,FALSE),"") -> Se programaron XXX construcciones, ampliaciones, rehabilitaciones, mantenimientos y mejoramientos; mismos que corresponden a: 40 Edificios Públicos y 3 Mercados Públicos. | I64: Se realizaron XXX construcciones, ampliaciones, rehabilitaciones, mantenimientos y mejoramientos; mismos que corresponden a: 40 Edificios Públicos y 3 Mercados Públicos. | L64: =IFERROR(VLOOKUP(A64,Base!B:L,7,FALSE),"") -> 0.5 | N64: _55 | O64: =IFERROR(M64*VLOOKUP(A64,Base!B:K,10,FALSE),"") -> 0
A65: 02CD14_56 | B65: =IFERROR(VLOOKUP(A65,Base!B:E,3,FALSE),"") -> K023 | C65: =IFERROR(VLOOKUP(A65,Base!B:E,4,FALSE),"") -> INFRAESTRUCTURA URBANA | E65: =IFERROR(VLOOKUP(A65,Base!B:F,5,FALSE),"") -> Construcción, ampliación, rehabilitación, mantenimiento, mejoramiento de espacios públicos, así como proyectos de alumbrado público en diversas ubicaciones de la Alcaldía, con el objetivo de dotar a la población de espacios para esparcimiento. | H65: =IFERROR(VLOOKUP($A65,Base!B:M,11,FALSE),"") -> Se programaron XXX construcciones, ampliaciones, rehabilitaciones, mantenimientos y mejoramientos; mismos que corresponden a 18 Espacios Públicos de la Alcaldía Tlalpan. | I65: Se realizaron XXX construcciones, ampliaciones, rehabilitaciones, mantenimientos y mejoramientos, lo que representa un avance del XXX por ciento de los XXX programados para el presente ejercicio fiscal; mismos que corresponden a 18 Espacios Públicos de la Alcaldía Tlalpan. | L65: =IFERROR(VLOOKUP(A65,Base!B:L,7,FALSE),"") -> 0.5 | N65: _56 | O65: =IFERROR(M65*VLOOKUP(A65,Base!B:K,10,FALSE),"") -> 0
A66: 02CD14_57 | B66: =IFERROR(VLOOKUP(A66,Base!B:E,3,FALSE),"") -> K023 | C66: =IFERROR(VLOOKUP(A66,Base!B:E,4,FALSE),"") -> INFRAESTRUCTURA URBANA | E66: =IFERROR(VLOOKUP(A66,Base!B:F,5,FALSE),"") -> Construcción, ampliación, rehabilitación, mantenimiento, mejoramiento de asfalto y balizamiento en vialidades secundarias, en diversas ubicaciones de la Alcaldía, garantizando un libre tránsito peatonal y vehicular más eficiente y seguro. | H66: =IFERROR(VLOOKUP($A66,Base!B:M,11,FALSE),"") -> Se estimaron XXX construcciones, ampliaciones, rehabilitaciones, mantenimientos y mejoramientos; mismos que corresponden a: 256,979.53 m² de Carpeta Asfáltica de la Red Secundaria de Vialidades y 52,000 metros lineales de Balizamiento, en la Alcaldía Tlalpan. | I66: Se realizaron XXX construcciones, ampliaciones, rehabilitaciones, mantenimientos y mejoramientos, lo que representa un avance del XXX por ciento de los XXX programados para el presente ejercicio fiscal; mismos que corresponden a: 256,979.53 m² de Carpeta Asfáltica de la Red Secundaria de Vialidades y 52,000 metros lineales de Balizamiento, en la Alcaldía Tlalpan. | L66: =IFERROR(VLOOKUP(A66,Base!B:L,7,FALSE),"") -> 0.5 | N66: _57 | O66: =IFERROR(M66*VLOOKUP(A66,Base!B:K,10,FALSE),"") -> 0
A67: 02CD14_58 | B67: =IFERROR(VLOOKUP(A67,Base!B:E,3,FALSE),"") -> K023 | C67: =IFERROR(VLOOKUP(A67,Base!B:E,4,FALSE),"") -> INFRAESTRUCTURA URBANA | E67: =IFERROR(VLOOKUP(A67,Base!B:F,5,FALSE),"") -> Construcción, ampliación, rehabilitación, mantenimiento, obra para la mitigación de riesgos, en diversas ubicaciones de la Alcaldía, con el fin de evitar derrumbes, deslaves, en zonas de alto riesgo. | H67: =IFERROR(VLOOKUP($A67,Base!B:M,11,FALSE),"") -> Se programaron 3 construcciones, ampliaciones, rehabilitaciones y mantenimientos de Obra que incluye trabajos de supervisión y Proyectos Ejecutivos para la mitigación de riesgos. | I67: Se realizaron 3 construcciones, ampliaciones, rehabilitaciones y mantenimientos de Obra que incluye trabajos de supervisión y Proyectos Ejecutivos para la mitigación de riesgos, lo que representa un avance del XXX por ciento de los XXX programados para el presente ejercicio fiscal. | L67: =IFERROR(VLOOKUP(A67,Base!B:L,7,FALSE),"") -> 0.5 | N67: _58 | O67: =IFERROR(M67*VLOOKUP(A67,Base!B:K,10,FALSE),"") -> 0
A68: 02CD14_59 | B68: =IFERROR(VLOOKUP(A68,Base!B:E,3,FALSE),"") -> K023 | C68: =IFERROR(VLOOKUP(A68,Base!B:E,4,FALSE),"") -> INFRAESTRUCTURA URBANA | E68: =IFERROR(VLOOKUP(A68,Base!B:F,5,FALSE),"") -> Construcción, ampliación, rehabilitación, mantenimiento, mejoramiento en de banquetas en diversas ubicaciones de la Alcaldía, con el objetivo de garantizar un libre tránsito peatonal más eficiente, seguro y con accesibilidad para personas con capacidades diferentes. | H68: =IFERROR(VLOOKUP($A68,Base!B:M,11,FALSE),"") -> Se programaron 3,500 m² de mantenimientos a banquetas que incluye trabajos de Supervisión y Proyectos Ejecutivos en calles de la Alcaldía Tlalpan. | I68: Se realizaron XXX m² de mantenimientos a banquetas que incluye trabajos de Supervisión y Proyectos Ejecutivos en calles de la Alcaldía Tlalpan, lo que representa un avance del XXX por ciento de los XXX programados para el presente ejercicio fiscal. | L68: =IFERROR(VLOOKUP(A68,Base!B:L,7,FALSE),"") -> 0.5 | N68: _59 | O68: =IFERROR(M68*VLOOKUP(A68,Base!B:K,10,FALSE),"") -> 0
A69: 02CD14_60 | B69: =IFERROR(VLOOKUP(A69,Base!B:E,3,FALSE),"") -> K023 | C69: =IFERROR(VLOOKUP(A69,Base!B:E,4,FALSE),"") -> INFRAESTRUCTURA URBANA | E69: =IFERROR(VLOOKUP(A69,Base!B:F,5,FALSE),"") -> Actividades de mejoramiento en la movilidad y el ordenamiento urbano en intervenciones, mejorando la circulación y tránsito en las calles y vialidades secundarias de esta Alcaldía, con la aplicación de pintura para balizamiento, la realización de señalamientos y adecuaciones geométricas, a efecto de mejorar la vialidad y seguridad de las personas. | H69: =IFERROR(VLOOKUP($A69,Base!B:M,11,FALSE),"") -> Se programaron XXX mejoramientos en la movilidad y ordenamiento urbano a efecto de mejorar la vialidad y seguridad de las personas. | I69: Se realizaron XXX mejoramientos en la movilidad y ordenamiento urbano a efecto de mejorar la vialidad y seguridad de las personas, lo que representa un avance del XXX por ciento de los XXX programados para el presente ejercicio fiscal. | L69: =IFERROR(VLOOKUP(A69,Base!B:L,7,FALSE),"") -> 0.5 | N69: _60 | O69: =IFERROR(M69*VLOOKUP(A69,Base!B:K,10,FALSE),"") -> 0
A70: 02CD14_61 | B70: =IFERROR(VLOOKUP(A70,Base!B:E,3,FALSE),"") -> K023 | C70: =IFERROR(VLOOKUP(A70,Base!B:E,4,FALSE),"") -> INFRAESTRUCTURA URBANA | E70: =IFERROR(VLOOKUP(A70,Base!B:F,5,FALSE),"") -> Mantenimiento de áreas verdes en parques, jardines, camellones, plazas y espacios públicos, conservándolos limpios y seguros con actividades de poda de árboles, poda de pasto, riego de áreas verdes, barrido de áreas verdes, retiro de hierba y maleza. | H70: =IFERROR(VLOOKUP($A70,Base!B:M,11,FALSE),"") -> Se programaron XXX mantenimientos de áreas verdes en parques, jardines, camellones, plazas y espacios públicos con la finalidad de conservarlos limpios y seguros. | I70: Se realizaron XXX mantenimientos de áreas verdes en parques, jardines, camellones, plazas y espacios públicos con la finalidad de conservarlos limpios y seguros, lo que representa un avance del XXX por ciento de los XXX programados para el presente ejercicio fiscal. | L70: =IFERROR(VLOOKUP(A70,Base!B:L,7,FALSE),"") -> 0.5 | N70: _61 | O70: =IFERROR(M70*VLOOKUP(A70,Base!B:K,10,FALSE),"") -> 0
A71: 02CD14_62 | B71: =IFERROR(VLOOKUP(A71,Base!B:E,3,FALSE),"") -> K023 | C71: =IFERROR(VLOOKUP(A71,Base!B:E,4,FALSE),"") -> INFRAESTRUCTURA URBANA | E71: =IFERROR(VLOOKUP(A71,Base!B:F,5,FALSE),"") -> Mantenimiento y conservación del mobiliario urbano en espacios públicos como: kioscos, fuentes ornamentales, bustos, monumentos, bajo puentes, etc. con trabajos de eliminación y borrado de grafiti con la aplicación de pintura en muros y bardas, colocación de malla ciclónica, etc. | H71: =IFERROR(VLOOKUP($A71,Base!B:M,11,FALSE),"") -> Se programaron XXX mantenimientos de mobiliario urbano en espacios públicos. | I71: Se programaron XXX mantenimientos de mobiliario urbano en espacios públicos, lo que representa un avance del XXX por ciento de los XXX programados para el presente ejercicio fiscal. | L71: =IFERROR(VLOOKUP(A71,Base!B:L,7,FALSE),"") -> 0.5 | N71: _62 | O71: =IFERROR(M71*VLOOKUP(A71,Base!B:K,10,FALSE),"") -> 0
A72: 02CD14_63 | B72: =IFERROR(VLOOKUP(A72,Base!B:E,3,FALSE),"") -> K023 | C72: =IFERROR(VLOOKUP(A72,Base!B:E,4,FALSE),"") -> INFRAESTRUCTURA URBANA | E72: =IFERROR(VLOOKUP(A72,Base!B:F,5,FALSE),"") -> Rehabilitar, conservar y mantener luminarias de la Red Alumbrado Público, con el cambio y actualización de nuevas tecnologías de iluminación y ahorro de energía y la conservación de la infraestructura existente con mantenimiento preventivo y correctivo en calles, vialidades secundarias y espacios públicos. | H72: =IFERROR(VLOOKUP($A72,Base!B:M,11,FALSE),"") -> Se programaron XXX mantenimientos preventivos y correctivos de la Red de Alumbrado Público, con el cambio y actualización de nuevas tecnologías de iluminación y ahorro de energía en las vialidades secundarias y espacios públicos. | I72: Se realizaron XXX mantenimientos preventivos y correctivos de la Red de Alumbrado Público, con el cambio y actualización de nuevas tecnologías de iluminación y ahorro de energía en las vialidades secundarias y espacios públicos, lo que representa un avance del XXX por ciento de los XXX programados para el presente ejercicio fiscal. | L72: =IFERROR(VLOOKUP(A72,Base!B:L,7,FALSE),"") -> 0.5 | N72: _63 | O72: =IFERROR(M72*VLOOKUP(A72,Base!B:K,10,FALSE),"") -> 0
A73: 02CD14_64 | B73: =IFERROR(VLOOKUP(A73,Base!B:E,3,FALSE),"") -> K026 | C73: =IFERROR(VLOOKUP(A73,Base!B:E,4,FALSE),"") -> INFRAESTRUCTURA DE AGUA POTABLE EN ALCALDIAS | E73: =IFERROR(VLOOKUP(A73,Base!B:F,5,FALSE),"") -> Construcción, ampliación, rehabilitación, mantenimiento, mejoramiento en metros de la red de agua potable en diversas ubicaciones de la Alcaldía, con el objetivo de que la población cuente con más y mejores servicios. | H73: =IFERROR(VLOOKUP($A73,Base!B:M,11,FALSE),"") -> Se programaron 45,600 metros lineales de construcciones, ampliaciones, rehabilitaciones, mantenimientos y mejoramientos de la Red de Agua Potable se incluyen trabajos de Supervision y Proyectos Ejecutivos. | I73: Se realizaron XXX metros lineales de construcciones, ampliaciones, rehabilitaciones, mantenimientos y mejoramientos de la Red de Agua Potable se incluyen trabajos de sSupervision y Proyectos Ejecutivos, lo que representa un avance del XXX por ciento de los XXX programados para el presente ejercicio fiscal. | L73: =IFERROR(VLOOKUP(A73,Base!B:L,7,FALSE),"") -> 0.5 | N73: _64 | O73: =IFERROR(M73*VLOOKUP(A73,Base!B:K,10,FALSE),"") -> 0
A74: 02CD14_65 | B74: =IFERROR(VLOOKUP(A74,Base!B:E,3,FALSE),"") -> K027 | C74: =IFERROR(VLOOKUP(A74,Base!B:E,4,FALSE),"") -> INFRAESTRUCTURA DE DRENAJE, ALCANTARILLADO Y SANEAMIENTO EN ALCALDIAS | E74: =IFERROR(VLOOKUP(A74,Base!B:F,5,FALSE),"") -> Construcción, ampliación, rehabilitación, mantenimiento, mejoramiento, desazolve de la red de drenaje en diversas ubicaciones de la Alcaldía, con el objetivo que la población cuente con más y mejores servicios. | H74: =IFERROR(VLOOKUP($A74,Base!B:M,11,FALSE),"") -> Se programaron 183,645 metros lineales de construcción, ampliación, rehabilitación, mantenimiento y mejoramiento de desazolve de la Red de Drenaje incluyendo Trabajos de Supervision y Proyectos Ejecutivos. | I74: Se programaron 183,645 metros lineales de construcción, ampliación, rehabilitación, mantenimiento y mejoramiento de desazolve de la Red de Drenaje incluyendo Trabajos de Supervision y Proyectos Ejecutivos, lo que representa un avance del XXX por ciento de los XXX programados para el presente ejercicio fiscal. | L74: =IFERROR(VLOOKUP(A74,Base!B:L,7,FALSE),"") -> 0.5 | N74: _65 | O74: =IFERROR(M74*VLOOKUP(A74,Base!B:K,10,FALSE),"") -> 0
A75: =$C$6&N75 -> 02CD14_66 | B75: =IFERROR(VLOOKUP(A75,Base!B:E,3,FALSE),"") -> K027 | C75: =IFERROR(VLOOKUP(A75,Base!B:E,4,FALSE),"") -> INFRAESTRUCTURA DE DRENAJE, ALCANTARILLADO Y SANEAMIENTO EN ALCALDIAS | E75: =IFERROR(VLOOKUP(A75,Base!B:F,5,FALSE),"") -> Construcción, ampliación, rehabilitación, mantenimiento, mejoramiento en resumideros. | H75: =IFERROR(VLOOKUP($A75,Base!B:M,11,FALSE),"") -> Se programaron 8 construcciones, ampliaciones, rehabilitaciones, mantenimientos y mejoramientos a Resumideros, trabajos que incluyen Supervisión y Proyectos Ejecutivos. | I75: Se realizaron XXX construcciones, ampliaciones, rehabilitaciones, mantenimientos y mejoramientos a Resumideros, trabajos que incluyen Supervisión y Proyectos Ejecutivos, lo que representa un avance del XXX por ciento de los 8 programados para este ejercicio fiscal. | L75: =IFERROR(VLOOKUP(A75,Base!B:L,7,FALSE),"") -> 0.5 | N75: _66 | O75: =IFERROR(M75*VLOOKUP(A75,Base!B:K,10,FALSE),"") -> 0
A76: 02CD14_67 | B76: =IFERROR(VLOOKUP(A76,Base!B:E,3,FALSE),"") -> K027 | C76: =IFERROR(VLOOKUP(A76,Base!B:E,4,FALSE),"") -> INFRAESTRUCTURA DE DRENAJE, ALCANTARILLADO Y SANEAMIENTO EN ALCALDIAS | E76: =IFERROR(VLOOKUP(A76,Base!B:F,5,FALSE),"") -> Construcción, ampliación, rehabilitación, mantenimiento, mejoramiento, de la red de drenaje en diversas ubicaciones de la Alcaldía, con el objetivo que la población cuente con más y mejores servicios. | H76: =IFERROR(VLOOKUP($A76,Base!B:M,11,FALSE),"") -> Se programaron 363.56 Kilómetros de construcción, ampliación, rehabilitación, mantenimiento y mejoramiento de la Red de Drenaje, incluyendo trabajos de Supervisión y Proyectos Ejecutivos. | I76: Se realizaron XXX Kilómetros de construcción, ampliación, rehabilitación, mantenimiento y mejoramiento a la Red de Drenaje que incluye trabajos de Supervisión y Proyectos Ejecutivos, lo que representa un avance del XXX por ciento de los 363.56 Kilómetros programados para este ejercicio fiscal. | L76: =IFERROR(VLOOKUP(A76,Base!B:L,7,FALSE),"") -> 0.5 | N76: _67 | O76: =IFERROR(M76*VLOOKUP(A76,Base!B:K,10,FALSE),"") -> 0
A77: 02CD14_68 | B77: =IFERROR(VLOOKUP(A77,Base!B:E,3,FALSE),"") -> M001 | C77: =IFERROR(VLOOKUP(A77,Base!B:E,4,FALSE),"") -> ACTIVIDADES DE APOYO ADMINISTRATIVO | E77: =IFERROR(VLOOKUP(A77,Base!B:F,5,FALSE),"") -> Recursos Materiales necesarios para la operación de la Alcaldía. | H77: =IFERROR(VLOOKUP($A77,Base!B:M,11,FALSE),"") -> Se programaron 961 atenciones de solicitudes de servicio y requisiciones de compra, mismas que corresponden a: 183 solicitudes de servicio y 778 requisiciones de compra. | I77: Se atendieron XXX solicitudes de servicio y requisiciones de compra, lo que representa un avance del XXX por ciento de los 961 programados para el presente ejercicio fiscal; ismos que corresponden a: XXX solicitudes de servicio y XXX requisiciones de compra. | L77: =IFERROR(VLOOKUP(A77,Base!B:L,7,FALSE),"") -> 0.5 | N77: _68 | O77: =IFERROR(M77*VLOOKUP(A77,Base!B:K,10,FALSE),"") -> 0
A78: 02CD14_69 | B78: =IFERROR(VLOOKUP(A78,Base!B:E,3,FALSE),"") -> M001 | C78: =IFERROR(VLOOKUP(A78,Base!B:E,4,FALSE),"") -> ACTIVIDADES DE APOYO ADMINISTRATIVO | E78: =IFERROR(VLOOKUP(A78,Base!B:F,5,FALSE),"") -> Servicios generales necesarios para la operación de la Alcaldía. | H78: =IFERROR(VLOOKUP($A78,Base!B:M,11,FALSE),"") -> Se programaron 7,552 solicitudes de servicios generales; mismos que corresponden a: 894 para mantenimiento correctivo y preventivo al parque vehicular, 2,902 de apoyo logístico y 3,756 de limpieza. | I78: Se atendieron XXX solicitudes de servicios generales, lo que representa un avance del XXX por ciento de los 7,552 programados para el ejercicio fiscal; mismos que corresponden a: 427 mantenimientos correctivos y preventivos al parque vehicular, 498 de apoyo logístico y 582 de limpieza. | L78: =IFERROR(VLOOKUP(A78,Base!B:L,7,FALSE),"") -> 0.5 | N78: _69 | O78: =IFERROR(M78*VLOOKUP(A78,Base!B:K,10,FALSE),"") -> 0
A79: 02CD14_70 | B79: =IFERROR(VLOOKUP(A79,Base!B:E,3,FALSE),"") -> M002 | C79: =IFERROR(VLOOKUP(A79,Base!B:E,4,FALSE),"") -> PROVISIONES PARA CONTINGENCIAS | E79: =IFERROR(VLOOKUP(A79,Base!B:F,5,FALSE),"") -> Brindar recursos para cubrir las obligaciones que deriven de laudos emitidos o sentencias definitivas dictadas por autoridad competente. | H79: =IFERROR(VLOOKUP($A79,Base!B:M,11,FALSE),"") -> Se programaron 10 MDP para el pago de Laudos y/o sentencias, conforme a las solicitudes recibidas para el cumplimiento de esta obligación. | I79: Se efectuo el pagó de 2,360 MDP por concepto del pago de 2 sentencias, el importe que representa un avance del XXX por ciento de los 10MDP programados para el presente ejercicio fiscal. | L79: =IFERROR(VLOOKUP(A79,Base!B:L,7,FALSE),"") -> 0.5 | N79: _70 | O79: =IFERROR(M79*VLOOKUP(A79,Base!B:K,10,FALSE),"") -> 0
A80: 02CD14_71 | B80: =IFERROR(VLOOKUP(A80,Base!B:E,3,FALSE),"") -> N001 | C80: =IFERROR(VLOOKUP(A80,Base!B:E,4,FALSE),"") -> CUMPLIMIENTO DE LOS PROGRAMAS DE PROTECCION CIVIL | E80: =IFERROR(VLOOKUP(A80,Base!B:F,5,FALSE),"") -> Reconocimientos y vigilancia de medidas de seguridad en los establecimientos mercantiles, así como la revisión de sus programas internos en materia de protección civil. | H80: =IFERROR(VLOOKUP($A80,Base!B:M,11,FALSE),"") -> Se programaron 600 verificaciones de cumplimiento a Programas Internos de Protección Civil, para conocer y vigilar las medidas de seguridad con las que cuentan los establecimientos mercantiles. | I80: Se realizaron XXXX verificaciones de cumplimiento a los Programas Internos de Protección Civil, para conocer y vigilar las medidas de seguridad con las que cuentan los establecimientos mercantiles, lo que representa un avance del XXX por ciento de los 600 programados para este ejercicio fiscal. | L80: =IFERROR(VLOOKUP(A80,Base!B:L,7,FALSE),"") -> 0.5 | N80: _71 | O80: =IFERROR(M80*VLOOKUP(A80,Base!B:K,10,FALSE),"") -> 0
A81: 02CD14_72 | B81: =IFERROR(VLOOKUP(A81,Base!B:E,3,FALSE),"") -> N001 | C81: =IFERROR(VLOOKUP(A81,Base!B:E,4,FALSE),"") -> CUMPLIMIENTO DE LOS PROGRAMAS DE PROTECCION CIVIL | E81: =IFERROR(VLOOKUP(A81,Base!B:F,5,FALSE),"") -> Emisión de dictámenes de riesgo sustentados en un análisis técnico profesional, garantizando la integridad del individuo, sus bienes y entorno. | H81: =IFERROR(VLOOKUP($A81,Base!B:M,11,FALSE),"") -> Se programaron 800 emisiones de dictámenes de Riesgo, sustentados en análisis técnico profesional, para la mitigación de riesgos. | I81: Se realizaron XXX emisiones de dictámenes de Riesgo, sustentados en análisis técnico profesional, para la mitigación de riesgos, lo que representa un avance del XXX por ciento de los 800 programados para este ejercicio fiscal. | L81: =IFERROR(VLOOKUP(A81,Base!B:L,7,FALSE),"") -> 0.5 | N81: _72 | O81: =IFERROR(M81*VLOOKUP(A81,Base!B:K,10,FALSE),"") -> 0
A82: 02CD14_73 | B82: =IFERROR(VLOOKUP(A82,Base!B:E,3,FALSE),"") -> N001 | C82: =IFERROR(VLOOKUP(A82,Base!B:E,4,FALSE),"") -> CUMPLIMIENTO DE LOS PROGRAMAS DE PROTECCION CIVIL | E82: =IFERROR(VLOOKUP(A82,Base!B:F,5,FALSE),"") -> Respuesta a las solicitudes o llamados de emergencias para salvaguardar la integridad física de la población, de sus bienes y entorno. | H82: =IFERROR(VLOOKUP($A82,Base!B:M,11,FALSE),"") -> Se estimaron 700 solicitudes de emergencia para salvaguardar la vida y bienes de los individuos de la Alcaldía Tlalpan. | I82: Se atendieron XXX solicitudes de emergencia para salvaguardar la vida y bienes de los individuos, lo que representa un avance del XXX por ciento de las 700 solicitudes programadas para el presente ejercicio fiscal. | L82: =IFERROR(VLOOKUP(A82,Base!B:L,7,FALSE),"") -> 0.5 | N82: _73 | O82: =IFERROR(M82*VLOOKUP(A82,Base!B:K,10,FALSE),"") -> 0
A83: 02CD14_74 | B83: =IFERROR(VLOOKUP(A83,Base!B:E,3,FALSE),"") -> N001 | C83: =IFERROR(VLOOKUP(A83,Base!B:E,4,FALSE),"") -> CUMPLIMIENTO DE LOS PROGRAMAS DE PROTECCION CIVIL | E83: =IFERROR(VLOOKUP(A83,Base!B:F,5,FALSE),"") -> Capacitación de simulacros y asesorías en temas como: Primeros auxilios; prevención, evacuación, repliegue y combate de incendios; brigadas de Protección Civil, Plan Familiar de Protección Civil. | H83: =IFERROR(VLOOKUP($A83,Base!B:M,11,FALSE),"") -> Se programaron 50 actividades en cumplimiento al Programa de Protección civil; mismas que corresponden a: XXX capacitaciones y XXX simulacros, con el fin de incrementar la capacidad individual y colectiva para salvaguardar las vidas ante una eventualidad provocada por algún fenómeno perturbador. | I83: Se realizaron XXX actividades en cumplimiento al Programa de Protección Civil, lo que representan un avance del 26 por ciento de 50 programadas para presente ejercicio fiscal; mismas que corresponden a: XXX capacitaciones y XXX simulacros con el fin de incrementar la capacidad individual y colectiva para salvaguardar vidas ante una eventualidad provocada por algún fenómeno perturbador. | L83: =IFERROR(VLOOKUP(A83,Base!B:L,7,FALSE),"") -> 0.5 | N83: _74 | O83: =IFERROR(M83*VLOOKUP(A83,Base!B:K,10,FALSE),"") -> 0
A84: 02CD14_75 | B84: =IFERROR(VLOOKUP(A84,Base!B:E,3,FALSE),"") -> R002 | C84: =IFERROR(VLOOKUP(A84,Base!B:E,4,FALSE),"") -> PRESUPUESTO PARTICIPATIVO | E84: =IFERROR(VLOOKUP(A84,Base!B:F,5,FALSE),"") -> Llevar a cabo los procedimientos necesarios, para ejecutar los Proyectos ganadores, correspondientes a los 179 comités ciudadano del Programa de Presupuesto Participativo 2023 de la Alcaldía. | H84: =IFERROR(VLOOKUP($A84,Base!B:M,11,FALSE),"") -> Se programaron 179 comités para elección de los proyectos de presupuesto participativo 2023, en diferentes unidades territoriales de la Alcaldía Tlalpan . | I84: Se realizarón XXXX comités para elección de proyectos de presupuesto participativo 2023, en diferentes unidades territoriales, lo que representa un avance del XXXX por ciento, de los 179 programados para el presente ejercicio fiscal. | L84: =IFERROR(VLOOKUP(A84,Base!B:L,7,FALSE),"") -> 0.5 | N84: _75 | O84: =IFERROR(M84*VLOOKUP(A84,Base!B:K,10,FALSE),"") -> 0
A85: 02CD14_76 | B85: =IFERROR(VLOOKUP(A85,Base!B:E,3,FALSE),"") -> R002 | C85: =IFERROR(VLOOKUP(A85,Base!B:E,4,FALSE),"") -> PRESUPUESTO PARTICIPATIVO | E85: =IFERROR(VLOOKUP(A85,Base!B:F,5,FALSE),"") -> Se llevarán a cabo obras en Vialidades, Luminarias, Banquetas y Guarniciones, Espacios Públicos, Drenaje, áreas comunes de Unidades Habitacionales, etc. en el Marco del Presupuesto Participativo en 179 Comités Ciudadanos en diversas ubicaciones del perímetro de la Alcaldía. | H85: =IFERROR(VLOOKUP($A85,Base!B:M,11,FALSE),"") -> Se programaron XXX proyectos del Presupuesto Participativo en la Alcaldía Tlalpan. | I85: Se llevaron a cabo XXX proyectos del Presupuesto Participativo en la Alcaldía Tlalpan, lo que representa un avance del XXXX por ciento, de los XXX elegidos para el presente ejercicio fiscal. | L85: =IFERROR(VLOOKUP(A85,Base!B:L,7,FALSE),"") -> 0.5 | N85: _76 | O85: =IFERROR(M85*VLOOKUP(A85,Base!B:K,10,FALSE),"") -> 0
A86: 02CD14_77 | B86: =IFERROR(VLOOKUP(A86,Base!B:E,3,FALSE),"") -> R002 | C86: =IFERROR(VLOOKUP(A86,Base!B:E,4,FALSE),"") -> PRESUPUESTO PARTICIPATIVO | E86: =IFERROR(VLOOKUP(A86,Base!B:F,5,FALSE),"") -> Seguimiento de los avances en los proyectos del Programa de Presupuesto Participativo a través de los comités ciudadanos e informar a las áreas correspondientes. | H86: =IFERROR(VLOOKUP($A86,Base!B:M,11,FALSE),"") -> Se programaron XXX actividades de seguimiento a los Programas de Presupuesto Participativo elegidos. | I86: Se llevaron a cabo XXX actividades de seguimiento a los Programas de Presupuesto Participativo elegidos, lo que representa un avance del XXXX por ciento, de los XXX elegidos para el presente ejercicio fiscal. | L86: =IFERROR(VLOOKUP(A86,Base!B:L,7,FALSE),"") -> 0.5 | N86: _77 | O86: =IFERROR(M86*VLOOKUP(A86,Base!B:K,10,FALSE),"") -> 0
A87: 02CD14_78 | B87: =IFERROR(VLOOKUP(A87,Base!B:E,3,FALSE),"") -> S229 | C87: =IFERROR(VLOOKUP(A87,Base!B:E,4,FALSE),"") -> APOYO PARA EL DESARROLLO INTEGRAL DE LA MUJER | E87: =IFERROR(VLOOKUP(A87,Base!B:F,5,FALSE),"") -> Otorgar apoyos económicos o en especie a mujeres habitantes de la Alcaldía Tlalpan que sean víctimas de violencia de género y con ello contribuir a mejorar su calidad de vida. | H87: =IFERROR(VLOOKUP($A87,Base!B:M,11,FALSE),"") -> Se programaron XXX actividades en cumplimiento al Programa Social Mujeres Libres y en Igualdad; así como el apoyo económico a XXX facilitadores del programa; mismas que corresponden a: XXX talleres y XXX asesorías jurídicas, psicológicas y médicas, en materia de derechos humanos, por violencia de género y en derechos sexuales y reproductivos, beneficiando a XXX mujeres y XXX hombres. | I87: Se llevaron a cabo XXX actividades en cumplimiento al Programa Social Mujeres Libres y en Igualdad; así como el apoyo económico a XXX facilitadores del programa, lo que representa un avance del XXX por ciento de los XXX programados para el presente ejercicio fiscal; mismas que corresponden a: XXX talleres y XXX asesorías jurídicas, psicológicas y médicas, en materia de derechos humanos, por violencia de género y en derechos sexuales y reproductivos, beneficiando a XXX mujeres y XXX hombres. | L87: =IFERROR(VLOOKUP(A87,Base!B:L,7,FALSE),"") -> 0.4 | N87: _78 | O87: =IFERROR(M87*VLOOKUP(A87,Base!B:K,10,FALSE),"") -> 0
A88: 02CD14_79 | B88: =IFERROR(VLOOKUP(A88,Base!B:E,3,FALSE),"") -> S229 | C88: =IFERROR(VLOOKUP(A88,Base!B:E,4,FALSE),"") -> APOYO PARA EL DESARROLLO INTEGRAL DE LA MUJER | E88: =IFERROR(VLOOKUP(A88,Base!B:F,5,FALSE),"") -> Otorgar apoyos económicos a personas beneficiarias denominadas facilitadores que coadyuven a desarrollar las siguientes actividades: 1) Capacitaciones a la población adolescente en temas de derechos sexuales, reproductivos y la prevención del embarazo adolescente no deseado, para el ejercicio del derecho a una vida libre de violencia en las mujeres de 15 años y más que habitan en zonas con mayores índices de delitos de género. 2) difunda servicios de asesoría y primera atención psicológica y jurídica a la violencia de género disponibles en el Centro de Atención Integral para mujeres víctimas de violencia de género. Justa Hernández Farfán. | H88: =IFERROR(VLOOKUP($A88,Base!B:M,11,FALSE),"") -> Se programaron XXX actividades en cumplimiento al Programa Social Con Prevención yo Decido; así como el apoyo económico a XXX facilitadores del programa; mismas que corresponden a: XXX jornadas de informativas y XXX talleres y XXX consejerías en materia de derechos sexuales y reproductivos, beneficiando a XXX mujeres y XXX hombres. | I88: Se llevaron a cabo XXX actividades en cumplimiento al Programa Social Con Prevención yo Decido; así como el apoyo económico a XXX facilitadores del programa, lo que representa un avance del XXX por ciento de los XXX programados para el presente ejercicio fiscal; mismas que corresponden a: XXX jornadas de informativas y XXX talleres y XXX consejerías en materia de derechos sexuales y reproductivos, beneficiando a XXX mujeres y XXX hombres. | L88: =IFERROR(VLOOKUP(A88,Base!B:L,7,FALSE),"") -> 0.4 | N88: _79 | O88: =IFERROR(M88*VLOOKUP(A88,Base!B:K,10,FALSE),"") -> 0
A89: 02CD14_80 | B89: =IFERROR(VLOOKUP(A89,Base!B:E,3,FALSE),"") -> S229 | C89: =IFERROR(VLOOKUP(A89,Base!B:E,4,FALSE),"") -> APOYO PARA EL DESARROLLO INTEGRAL DE LA MUJER | E89: =IFERROR(VLOOKUP(A89,Base!B:F,5,FALSE),"") -> Otorgar apoyos económicos o en especie a mujeres habitantes de la Alcaldía Tlalpan que desarrollen proyectos económicos, comunitarios, culturales, educativos. | H89: =IFERROR(VLOOKUP($A89,Base!B:M,11,FALSE),"") -> Se programaron XXX apoyos económicos o en especie a mujeres habitantes de la Alcaldía Tlalpan que desarrollen proyectos económicos, comunitarios, culturales, educativos. | I89: Se otorgaron XXX apoyos económicos o en especie a mujeres habitantes de la Alcaldía Tlalpan que desarrollen proyectos económicos, comunitarios, culturales, educativos, lo que representa un avance del XXX por ciento de los XXX programados para el presente ejercicio fiscal. | L89: =IFERROR(VLOOKUP(A89,Base!B:L,7,FALSE),"") -> 0.4 | N89: _80 | O89: =IFERROR(M89*VLOOKUP(A89,Base!B:K,10,FALSE),"") -> 0
A90: 02CD14_81 | B90: =IFERROR(VLOOKUP(A90,Base!B:E,3,FALSE),"") -> S231 | C90: =IFERROR(VLOOKUP(A90,Base!B:E,4,FALSE),"") -> PROGRAMA PARA EL IMPULSO AGROALIMENTARIO | E90: =IFERROR(VLOOKUP(A90,Base!B:F,5,FALSE),"") -> Economía Sustentable: Impulsar la creación y fortalecimiento de micro, pequeñas y medianas empresas, sociedades cooperativas, proyectos ecoturísticos, así como, impulsar emprendimientos en las áreas de comercialización y capacitación en temas específicos contando con la supervisión y acompañamiento en campo por parte de la Unidad Técnico Operativa a las unidades económicas apoyadas, con el objetivo de coadyuvar a la sostenibilidad de las unidades económicas en el mercado, incorporando a personas en condición de desempleo con alguna vocación productiva. | H90: =IFERROR(VLOOKUP($A90,Base!B:M,11,FALSE),"") -> Se programarón 295 apoyos económicos que permitirán la creación, el impulso y el fortalecimiento de micro, pequeñas y medianas empresas, así como de sociedades cooperativas, a través de la adquisición de maquinaria, equipo, herramientas, insumos, adecuaciones y mejoras en la infraestructura. | I90: Se otorgaron XXX apoyos económicos que permitirán la creación, el impulso y el fortalecimiento de micro, pequeñas y medianas empresas, así como de sociedades cooperativas, a través de la adquisición de maquinaria, equipo, herramientas, insumos, adecuaciones y mejoras en la infraestructura, lo que representa un avance del XXX por ciento de los XXX programados para el presente ejercicio fiscal. | L90: =IFERROR(VLOOKUP(A90,Base!B:L,7,FALSE),"") -> 0.25 | N90: _81 | O90: =IFERROR(M90*VLOOKUP(A90,Base!B:K,10,FALSE),"") -> 0
A91: 02CD14_82 | B91: =IFERROR(VLOOKUP(A91,Base!B:E,3,FALSE),"") -> S231 | C91: =IFERROR(VLOOKUP(A91,Base!B:E,4,FALSE),"") -> PROGRAMA PARA EL IMPULSO AGROALIMENTARIO | E91: =IFERROR(VLOOKUP(A91,Base!B:F,5,FALSE),"") -> Manejo de recursos naturales: Implementar proyectos que vayan encaminados a la protección y conservación del ambiente, fomentando la participación activa de las y los posesionarios o usufructuarios de este territorio, permitiendo a los posesionarios de tierras, bosques y comunidades de hecho y a los habitantes de los pueblos originarios ubicados dentro de la Alcaldía Tlalpan, realizar actividades de conservación, mantenimiento y restauración del suelo, agua y monitoreo de la biodiversidad del suelo de conservación para mantener los servicios ecosistémicos y la protección de Áreas Naturales Protegidas en sus distintas categorías. | H91: =IFERROR(VLOOKUP($A91,Base!B:M,11,FALSE),"") -> Se programaron 30 proyectos encaminados a la protección y conservación del ambiente. | I91: Se programaron 30 proyectos encaminados a la protección y conservación del ambiente, lo que representa un avance del XXX por ciento de los XXX programados para el presente ejercicio fiscal. | L91: =IFERROR(VLOOKUP(A91,Base!B:L,7,FALSE),"") -> 0.25 | N91: _82 | O91: =IFERROR(M91*VLOOKUP(A91,Base!B:K,10,FALSE),"") -> 0
A92: 02CD14_83 | B92: =IFERROR(VLOOKUP(A92,Base!B:E,3,FALSE),"") -> S231 | C92: =IFERROR(VLOOKUP(A92,Base!B:E,4,FALSE),"") -> PROGRAMA PARA EL IMPULSO AGROALIMENTARIO | E92: =IFERROR(VLOOKUP(A92,Base!B:F,5,FALSE),"") -> Producción Agropecuaria: Con el fin de fomentar las actividades productivas rurales sustentables de la Alcaldía Tlalpan, se otorgará apoyos económicos a las mujeres y los hombres de ejidos y comunidades, a las y los pequeños propietarios y a las y los posesionarios o arrendatarios que se interesen y/o realicen actividades agropecuarias, apoyando los programas de trabajo que contribuyan a la recuperación de tierras ociosas y al impulso de los cultivos nativos de Tlalpan, así mismo se brindara capacitación de manera virtual o presencial que promueva entre los productores involucrarse en el diseño e implementación de acciones que contribuyan con alcanzar el objetivo denominado hambre cero, a través del aprendizaje técnico de buenas prácticas para mejorar la producción y comercialización de sus productos. | H92: =IFERROR(VLOOKUP($A92,Base!B:M,11,FALSE),"") -> Se programaron 250 apoyos económicos para fomentar la producción rural sostenible. | I92: Se otorgaron 250 apoyos económicos para fomentar la producción rural sostenible, lo que representa un avance del XXX por ciento de los XXX programados para el presente ejercicio fiscal. | L92: =IFERROR(VLOOKUP(A92,Base!B:L,7,FALSE),"") -> 0.25 | N92: _83 | O92: =IFERROR(M92*VLOOKUP(A92,Base!B:K,10,FALSE),"") -> 0
A93: 02CD14_84 | B93: =IFERROR(VLOOKUP(A93,Base!B:E,3,FALSE),"") -> S231 | C93: =IFERROR(VLOOKUP(A93,Base!B:E,4,FALSE),"") -> PROGRAMA PARA EL IMPULSO AGROALIMENTARIO | E93: =IFERROR(VLOOKUP(A93,Base!B:F,5,FALSE),"") -> Ecotecnologías: Se pretende reducir el problema de abastecimiento de agua, disminuir el gasto familiar por la obtención del recurso y capacitar a los habitantes en materia de educación ambiental acerca del cuidado y aprovechamiento racional del agua, a través de un proceso de capacitación y concientización previo para el beneficiario sobre las implicaciones de implementar eco tecnologías y los hábitos que requieren adaptarse al proceso de cosecha de agua de lluvia y de energía solar a través de paneles solares, se pretende reducir el problema de abastecimiento de agua, disminuir el gasto familiar por la obtención del recurso y capacitar a los habitantes en materia de educación ambiental acerca del cuidado y aprovechamiento racional del agua. | H93: =IFERROR(VLOOKUP($A93,Base!B:M,11,FALSE),"") -> Se programaron 2,223 apoyos en especie y económicos a través de la entrega de captadores de agua, paneles solares, regaderas ahorradoras, mediante procesos de cosecha de agua de lluvia y de almacenaje y conversión de energía solar a través de paneles solares. | I93: Se otorgaron 2,223 apoyos en especie y económicos a través de la entrega de captadores de agua, paneles solares, regaderas ahorradoras, mediante procesos de cosecha de agua de lluvia y de almacenaje y conversión de energía solar a través de paneles solares, lo que representa un avance del XXX por ciento de los XXX programados para el presente ejercicio fiscal. | L93: =IFERROR(VLOOKUP(A93,Base!B:L,7,FALSE),"") -> 0.25 | N93: _84 | O93: =IFERROR(M93*VLOOKUP(A93,Base!B:K,10,FALSE),"") -> 0
A94: 02CD14_85 | B94: =IFERROR(VLOOKUP(A94,Base!B:E,3,FALSE),"") -> S233 | C94: =IFERROR(VLOOKUP(A94,Base!B:E,4,FALSE),"") -> APOYO DE ALIMENTACION Y REFUGIO PARA PERSONAS VULNERABLES | E94: =IFERROR(VLOOKUP(A94,Base!B:F,5,FALSE),"") -> Otorgar apoyos económicos para que niñas y niñas entre 1 año y 3 años 11 meses de edad, incluyendo niñas y niños con discapacidad cuyas madres, padres o tutores legales residan preferentemente en la Alcaldía Tlalpan, o que tengan su centro de trabajo en la Alcaldía Tlalpan reciben el servicio de cuidado y atención infantil. | H94: =IFERROR(VLOOKUP($A94,Base!B:M,11,FALSE),"") -> Se programaron 450 Servicios de Atención en los 5 Centros de Desarrollo Infantil de Tlalpan (CENDIS), beneficiando a XXX infantes inscritos. | I94: Se brindaron 450 Servicios de Atención en los 5 Centros de Desarrollo Infantil de Tlalpan (CENDIS), beneficiando a XXX infantes inscritos., lo que representa un avance del XXX por ciento de los XXX programados en el presente ejercicio fiscal. | L94: =IFERROR(VLOOKUP(A94,Base!B:L,7,FALSE),"") -> 0.4 | N94: _85 | O94: =IFERROR(M94*VLOOKUP(A94,Base!B:K,10,FALSE),"") -> 0
A95: 02CD14_86 | B95: =IFERROR(VLOOKUP(A95,Base!B:E,3,FALSE),"") -> S234 | C95: =IFERROR(VLOOKUP(A95,Base!B:E,4,FALSE),"") -> PROGRAMA DE APOYO PARA EL BIENESTAR FAMILIAR | E95: =IFERROR(VLOOKUP(A95,Base!B:F,5,FALSE),"") -> Otorgar apoyos económicos o en especie, a jóvenes de tercer grado de secundaria, y aquellos que han concluido este nivel educativo provenientes de cualquiera de las escuelas secundarias públicas ubicadas en la Alcaldía Tlalpan y jóvenes residentes de la demarcación, interesados en presentar el examen del Concurso de Asignación a la EMS 2023, convocado por la COMIPEMS. | H95: =IFERROR(VLOOKUP($A95,Base!B:M,11,FALSE),"") -> Se programaron 126 asesorías para personas jóvenes que concluyeron el tercer grado de Secundaria y estan interesadas en presentar el examen COMIPEMS. | I95: Se realizaron XXX asesorías para personas jóvenes que concluyeron el tercer grado de Secundaria y estan interesadas en presentar el examen COMIPEMS, lo que representa un avance del XXX por ciento de los 126 programados para el presente ejercicio fiscal. | L95: =IFERROR(VLOOKUP(A95,Base!B:L,7,FALSE),"") -> 0.4 | N95: _86 | O95: =IFERROR(M95*VLOOKUP(A95,Base!B:K,10,FALSE),"") -> 0
A96: 02CD14_87 | B96: =IFERROR(VLOOKUP(A96,Base!B:E,3,FALSE),"") -> S234 | C96: =IFERROR(VLOOKUP(A96,Base!B:E,4,FALSE),"") -> PROGRAMA DE APOYO PARA EL BIENESTAR FAMILIAR | E96: =IFERROR(VLOOKUP(A96,Base!B:F,5,FALSE),"") -> Otorgar apoyos económicos o en especie con el fin de proveer del servicio de Internet a niños con rezago educativo y que encuentran en desigualdad de oportunidades, que se residan en las zonas de bajo índice de desarrollo social en la alcaldía Tlalpan, asimismo se capacitaran facilitadores que coadyuvaran en el seguimiento del programa social que se implemente. Contribuyendo a mejorar su calidad de vida y solventar sus necesidades básicas. | H96: =IFERROR(VLOOKUP($A96,Base!B:M,11,FALSE),"") -> Se programarón XXX talleres en los Centros de Artes y oficios para personas inscritas o matriculadas en nivel básico (primarias y secundarias) en escuelas públicas ubicadas en zonas de bajo desarrollo social y de muy alto índice de marginación social. | I96: Se brindaron XXX talleres en los Centros de Artes y oficios para personas inscritas o matriculadas en nivel básico (primarias y secundarias) en escuelas públicas ubicadas en zonas de bajo desarrollo social y de muy alto índice de marginación social, lo que representa un avance del XXX por ciento de los XXX programados para el presente ejercicio fiscal. | L96: =IFERROR(VLOOKUP(A96,Base!B:L,7,FALSE),"") -> 0.4 | N96: _87 | O96: =IFERROR(M96*VLOOKUP(A96,Base!B:K,10,FALSE),"") -> 0
A97: 02CD14_88 | B97: =IFERROR(VLOOKUP(A97,Base!B:E,3,FALSE),"") -> S234 | C97: =IFERROR(VLOOKUP(A97,Base!B:E,4,FALSE),"") -> PROGRAMA DE APOYO PARA EL BIENESTAR FAMILIAR | E97: =IFERROR(VLOOKUP(A97,Base!B:F,5,FALSE),"") -> Otorgar apoyos económicos o en especie para la formación musical de los integrantes de la Camerata infantil y Juvenil de Tlalpan, para extender y ampliar los derechos sociales de la atención a grupos vulnerables y no vulnerables, garantizando el acceso a la formación musical, promoviendo el pleno ejercicio de los derechos culturales, mejorando la calidad de vida de los habitantes de esta Alcaldía. | H97: =IFERROR(VLOOKUP($A97,Base!B:M,11,FALSE),"") -> Se programoron XXX clases de musica para crear una Camerata Infantil y Juvenil de Tlalpan, compuesta por 25 integrantes, con el fin de garantizar el acceso a la formación musical de personas de 12 a 29 años. | I97: Se llevaron a cabo XXX clases de musica para crear una Camerata Infantil y Juvenil de Tlalpan, compuesta por 25 integrantes, con el fin de garantizar el acceso a la formación musical de personas de 12 a 29 años, lo que representa un avance del XXX por ciento de las XXX programadas para el presente ejercicio fiscal. | L97: =IFERROR(VLOOKUP(A97,Base!B:L,7,FALSE),"") -> 0.4 | N97: _88 | O97: =IFERROR(M97*VLOOKUP(A97,Base!B:K,10,FALSE),"") -> 0
A98: 02CD14_89 | B98: =IFERROR(VLOOKUP(A98,Base!B:E,3,FALSE),"") -> S234 | C98: =IFERROR(VLOOKUP(A98,Base!B:E,4,FALSE),"") -> PROGRAMA DE APOYO PARA EL BIENESTAR FAMILIAR | E98: =IFERROR(VLOOKUP(A98,Base!B:F,5,FALSE),"") -> Otorgar apoyos económicos o en especie a niñas, niños y adolescentes a través de sus cuidadores y/o tutores, que permitan contribuir a su desarrollo, promoviendo el ejercicio de los derechos humanos de niñas, niños y adolescentes en condición de orfandad mediante talleres, actividades y acciones didácticas y contribuir a mejorar su calidad de vida y con ello solventen sus necesidades básicas. | H98: =IFERROR(VLOOKUP($A98,Base!B:M,11,FALSE),"") -> Se programaron XXX apoyos económicos del Programa Social "Estancias Infantiles Tlalpan". | I98: Se otorgaron XXX apoyos económicos del Programa Social "Estancias Infantiles Tlalpan", lo que representa el XXX por ciento de los XXX programados para el presente ejercicio fiscal. | L98: =IFERROR(VLOOKUP(A98,Base!B:L,7,FALSE),"") -> 0.4 | N98: _89 | O98: =IFERROR(M98*VLOOKUP(A98,Base!B:K,10,FALSE),"") -> 0
A99: 02CD14_90 | B99: =IFERROR(VLOOKUP(A99,Base!B:E,3,FALSE),"") -> S234 | C99: =IFERROR(VLOOKUP(A99,Base!B:E,4,FALSE),"") -> PROGRAMA DE APOYO PARA EL BIENESTAR FAMILIAR | E99: =IFERROR(VLOOKUP(A99,Base!B:F,5,FALSE),"") -> Otorgar apoyos económicos o en especie a habitantes de la Alcaldía Tlalpan en la promoción de la salud relacionadas con la tutela responsable de animales de compañía y la prevención de enfermedades zoonóticas de manera presencial y a distancia. | H99: =IFERROR(VLOOKUP($A99,Base!B:M,11,FALSE),"") -> Se programaron XXX apoyos en cumplimiento del Programa Social "Amigo Fiel". | I99: Se otorgaron XXX apoyos económicos o en espefice en cumplimiento al Programa Social "Amigo Fiel", lo que representa un avance del XXX por ciento de los XXX programados para el presente ejercicio fiscal. | L99: =IFERROR(VLOOKUP(A99,Base!B:L,7,FALSE),"") -> 0.4 | N99: _90 | O99: =IFERROR(M99*VLOOKUP(A99,Base!B:K,10,FALSE),"") -> 0
A100: 02CD14_91 | B100: =IFERROR(VLOOKUP(A100,Base!B:E,3,FALSE),"") -> S234 | C100: =IFERROR(VLOOKUP(A100,Base!B:E,4,FALSE),"") -> PROGRAMA DE APOYO PARA EL BIENESTAR FAMILIAR | E100: =IFERROR(VLOOKUP(A100,Base!B:F,5,FALSE),"") -> Otorgar apoyos económicos o en especie a habitantes de la Alcaldía Tlalpan que realicen actividades físicas y deportivas en diferentes disciplinas, en diferentes espacios deportivos de la Alcaldía, para fomentar la práctica de actividades físicas y deportivas en los habitantes de la demarcación. Para contribuir a mejorar su calidad de vida. | H100: =IFERROR(VLOOKUP($A100,Base!B:M,11,FALSE),"") -> Se programaron XXX apoyos económicos o en especie en cumplimiento al Programa Social "Activando Tlalpan"median te el cual se desarrollaran actividades físical y deportivas. | I100: Se otorgaron XXX apoyos económicos o en especie en cumplimiento al Programa Social "Activando Tlalpan", median te el cual se desarrollaran actividades físical y deportivas, lo que representa un avance del XXX por ciento de los XXX programados para el presente ejercicio fiscal. | L100: =IFERROR(VLOOKUP(A100,Base!B:L,7,FALSE),"") -> 0.4 | N100: _91 | O100: =IFERROR(M100*VLOOKUP(A100,Base!B:K,10,FALSE),"") -> 0
A101: 02CD14_92 | B101: =IFERROR(VLOOKUP(A101,Base!B:E,3,FALSE),"") -> S234 | C101: =IFERROR(VLOOKUP(A101,Base!B:E,4,FALSE),"") -> PROGRAMA DE APOYO PARA EL BIENESTAR FAMILIAR | E101: =IFERROR(VLOOKUP(A101,Base!B:F,5,FALSE),"") -> Otorgar apoyos económicos o en especie a "colectivos juveniles” que desarrollen e implementen proyectos que atiendan problemáticas juveniles en sus comunidades. | H101: =IFERROR(VLOOKUP($A101,Base!B:M,11,FALSE),"") -> Se programaron XXX apoyos económicos o en especie a "Colectivos Juveniles" que desarrollen e implementen proyectos que atiendan problematicas juveniles en sus comunidades. | I101: Se otorgaron XXX apoyos económicos o en especie a "Colectivos Juveniles" que desarrollen e implementen proyectos que atiendan problematicas juveniles en sus comunidades, lo que representa un avance del XXX de los XXX programados para el presente ejercicio fiscal. | L101: =IFERROR(VLOOKUP(A101,Base!B:L,7,FALSE),"") -> 0.4 | N101: _92 | O101: =IFERROR(M101*VLOOKUP(A101,Base!B:K,10,FALSE),"") -> 0
A102: 02CD14_93 | B102: =IFERROR(VLOOKUP(A102,Base!B:E,3,FALSE),"") -> S234 | C102: =IFERROR(VLOOKUP(A102,Base!B:E,4,FALSE),"") -> PROGRAMA DE APOYO PARA EL BIENESTAR FAMILIAR | E102: =IFERROR(VLOOKUP(A102,Base!B:F,5,FALSE),"") -> Otorgar apoyos económicos a personas beneficiarias denominadas facilitadores que coadyuven a desarrollar las siguientes actividades: 1) Identificar obstáculos en vía pública que dificulten la movilidad, reportar y canalizar a diferentes áreas de la Alcaldía para su atención correspondiente. 2) Prevención de las violencias, como orientación psicológica, jurídica, establecer mecanismos y acciones para concientizar a la población en general. 3) impartir asesorías educativas presenciales o virtuales, a través de la utilización de medios electrónicos y plataformas digitales. 4) Realización y disfrute de actividades artísticas, lúdicas y de oficios en la población Tlalpense que busca generar una vida más recreativa, cultural y artística por medio de los Centros de Artes y Oficios. 5) impartir talleres lúdicos, formativos, participativos y ocupacionales de manera personal o mediante materiales audiovisuales a personas que habiten en zonas de muy bajo y bajo índice de desarrollo social. 6) Servicios de mejoramiento y mantenimiento de espacios públicos, en colonias, barrios, pueblos originarios y unidades habitacionales de la Alcaldía Tlalpan, que padecen conflictos sociales o requieren mejoramiento de su entorno físico. 7) Implementar actividades del programa social brindando accesibilidad a la información de programas y servicios mediante la difusión y contacto directo con la ciudadanía. Propiciar la organización y realización de actividades que fortalezcan la organización vecinal en las colonias, barrios, pueblos originarios y unidades y conjuntos habitacionales de la demarcación Tlalpan. | H102: =IFERROR(VLOOKUP($A102,Base!B:M,11,FALSE),"") -> Se programaron 7 servicios de atención a la población tlalpense; mismos que corresponden a: XXX en vía pública; XXX para prevención de las violencias; XXX asesorías educativas; XXX talleres artísticos, lúdicos y de oficiosa para una vida más creativa, XXX talleres lúdicos, formativos y ocupacionales para personas que habiten en zonas de muy bajo y bajo índice de desarrollo social, XXX servicios de mejoramiento y mantenimiento de espacios públicos y XXX actividades que fortalezcan la organización vecinal. | I102: Se realizaron 7 servicios de atención a la población tlalpense, lo que representa un avance del XXX por ciento de los 7 programados para el presente ejercicio fiscal; mismos que corresponden a: XXX en vía pública; XXX para prevención de las violencias; XXX asesorías educativas; XXX talleres artísticos, lúdicos y de oficiosa para una vida más creativa, XXX talleres lúdicos, formativos y ocupacionales para personas que habiten en zonas de muy bajo y bajo índice de desarrollo social, XXX servicios de mejoramiento y mantenimiento de espacios públicos y XXX actividades que fortalezcan la organización vecinal. | L102: =IFERROR(VLOOKUP(A102,Base!B:L,7,FALSE),"") -> 0.4 | N102: _93 | O102: =IFERROR(M102*VLOOKUP(A102,Base!B:K,10,FALSE),"") -> 0
A103: 02CD14_94 | B103: =IFERROR(VLOOKUP(A103,Base!B:E,3,FALSE),"") -> S235 | C103: =IFERROR(VLOOKUP(A103,Base!B:E,4,FALSE),"") -> APOYOS PARA EL CUIDADO DEL ADULTO MAYOR | E103: =IFERROR(VLOOKUP(A103,Base!B:F,5,FALSE),"") -> Otorgar apoyos económicos a personas mayores de 60 años en estado de vulnerabilidad agrupados en colectivos | H103: =IFERROR(VLOOKUP($A103,Base!B:M,11,FALSE),"") -> Se programron XXX apoyos económicos a personas mayores de 60 años en estado vulnerable inscritos en Colectivos de Persona adultas Mayores. | I103: Se otorgaron XXX apoyos económicos a personas mayores de 60 años en estado vulnerable inscritos en Colectivos de Persona adultas Mayores, lo que representa un avance del XXX por ciento de los XXX programados para el presente ejercicio fiscal. | L103: =IFERROR(VLOOKUP(A103,Base!B:L,7,FALSE),"") -> 0.4 | N103: _94 | O103: =IFERROR(M103*VLOOKUP(A103,Base!B:K,10,FALSE),"") -> 0
A104: 02CD14_95 | B104: =IFERROR(VLOOKUP(A104,Base!B:E,3,FALSE),"") -> S235 | C104: =IFERROR(VLOOKUP(A104,Base!B:E,4,FALSE),"") -> APOYOS PARA EL CUIDADO DEL ADULTO MAYOR | E104: =IFERROR(VLOOKUP(A104,Base!B:F,5,FALSE),"") -> Capacitación de personas facilitadoras de servicios, que les permita contar con las herramientas necesaria para impulsar la construcción de un modelo de envejecimiento, mediante formas de organización colectiva y la participación en la cultura de los cuidados. | H104: =IFERROR(VLOOKUP($A104,Base!B:M,11,FALSE),"") -> Se programaron XXXX actividades dirigidas a personas adultas mayores; mismas que corresponden a: XXX capacitaciones de cuidado a personas adultas mayores, XXX talleres de autocuidado a Personas Adultas Mayores, XXX Expo-Venta de artículos confeccionados por Adultos Mayores y XXX Paseos Recreativos a diversos puntos recreativos de la Ciudad de México. | I104: Se realizaron XXXX actividades dirigidas a personas adultas mayores, lo que representa un avance del XXX por ciento de las XXX programadas para el presente ejercicio fiscal; mismas que corresponden a: XXX capacitaciones de cuidado a personas adultas mayores, XXX talleres de autocuidado a Personas Adultas Mayores, XXX Expo-Venta de artículos confeccionados por Adultos Mayores y XXX Paseos Recreativos a diversos puntos recreativos de la Ciudad de México. | L104: =IFERROR(VLOOKUP(A104,Base!B:L,7,FALSE),"") -> 0.4 | N104: _95 | O104: =IFERROR(M104*VLOOKUP(A104,Base!B:K,10,FALSE),"") -> 0
A105: 02CD14_96 | B105: =IFERROR(VLOOKUP(A105,Base!B:E,3,FALSE),"") -> S235 | C105: =IFERROR(VLOOKUP(A105,Base!B:E,4,FALSE),"") -> APOYOS PARA EL CUIDADO DEL ADULTO MAYOR | E105: =IFERROR(VLOOKUP(A105,Base!B:F,5,FALSE),"") -> Por medio de las personas facilitadores, se brinda acompañamiento, asesorías e información sobre el autocuidado y cuidado a personas mayores y sus familias residentes de colonias de muy bajo y bajo índice de desarrollo social, generando la cultura de los cuidado. | H105: =IFERROR(VLOOKUP($A105,Base!B:M,11,FALSE),"") -> Se programaron XXX apoyo económico a personas adultas mayores que se encuentren en condición de vulnerabilidad que demanden cuidados y habiten en las zonas de bajo y muy bajo índice de desarrollo social. | I105: Se programaron XXX apoyo económico a personas adultas mayores que se encuentren en condición de vulnerabilidad que demanden cuidados y habiten en las zonas de bajo y muy bajo índice de desarrollo social, lo que representa un vance del XXX por ciento de los XXX programados para el presente ejercicio fiscal. | L105: =IFERROR(VLOOKUP(A105,Base!B:L,7,FALSE),"") -> 0.4 | N105: _96 | O105: =IFERROR(M105*VLOOKUP(A105,Base!B:K,10,FALSE),"") -> 0
A106: 02CD14_97 | B106: =IFERROR(VLOOKUP(A106,Base!B:E,3,FALSE),"") -> U048 | C106: =IFERROR(VLOOKUP(A106,Base!B:E,4,FALSE),"") -> APOYOS SOCIALES | E106: =IFERROR(VLOOKUP(A106,Base!B:F,5,FALSE),"") -> Brindar apoyos económicos a personas con discapacidad permanente que vivan en la Alcaldía Tlalpan y 10 facilitadores que apoyan en el proceso de registro. 2.- Brindar talleres sobre derechos de las personas con discapacidad, lenguaje incluyente, lengua de señas mexicana y sistema de lecto-escritura braille. 3.- Dar 5 sesiones de capacitación para personas cuidadoras. 4.- Brindar talleres a las personas servidoras públicos en materia de discapacidad, lenguaje incluyente y lengua de señas mexicana. 5.- Promover proyectos de inclusión económica para personas con discapacidad. | H106: =IFERROR(VLOOKUP($A106,Base!B:M,11,FALSE),"") -> Se programaron XXX apoyos a personas con alguna discapacidad permanente; mismos que consisten en: XXX talleres a personas con alguna discapacidad, XXX capacitaciones a personas cuidadoras y XXX promoción de proyectos de inclusión económica. | I106: Se brindaron XXX apoyos a personas con alguna discapacidad permanente; lo que representa un avance del XXX por ciento de los XXX programados; mismos que consisten en: XXX talleres a personas con alguna discapacidad, XXX capacitaciones a personas cuidadoras y XXX promoción de proyectos de inclusión económica. | L106: =IFERROR(VLOOKUP(A106,Base!B:L,7,FALSE),"") -> 0.4 | N106: _97 | O106: =IFERROR(M106*VLOOKUP(A106,Base!B:K,10,FALSE),"") -> 0
A107: 02CD14_98 | B107: =IFERROR(VLOOKUP(A107,Base!B:E,3,FALSE),"") -> U048 | C107: =IFERROR(VLOOKUP(A107,Base!B:E,4,FALSE),"") -> APOYOS SOCIALES | E107: =IFERROR(VLOOKUP(A107,Base!B:F,5,FALSE),"") -> Apoyos económicos a deportistas destacados y prospectos deportivos 2023; Ayudas económicas para cubrir gastos de participación en eventos deportivos 2023: XVII Carrera Tlalpense 10 km. 2023; XV Circuito Tlalpense de Pista y Campo 2023. | H107: =IFERROR(VLOOKUP($A107,Base!B:M,11,FALSE),"") -> Se programaron 3 acciones sociales y 1 carrera deportiva; mismos que corresponden a: 800 conjuntos de pants a Deportistas y Entrenadores Deportivos, 518 apoyos económicos (único) a deportistas y entrenadores deportivos que representantes de la Alcaldía, entrega de 2,000 pares de tenis de piel color blanco a niñas y niños de entre 3 y 6 años 11 meses de edad y entrega de 54 premios económicos a los ganadores de los tres primeros lugares de la Carrera XVII Carrera Tlalpense 10k 2023 de las categorías y ramas participantes. | I107: Se realizaron XXX acciones sociales y XXX carrera deportiva, lo que representa XXX por ciento de las XXX programadas para el presente ejercicio fiscal; mismos que corresponden a: XXX conjuntos de pants a Deportistas y Entrenadores Deportivos, XXX apoyos económicos (único) a deportistas y entrenadores deportivos que representantes de la Alcaldía, entrega de XXX pares de tenis de piel color blanco a niñas y niños de entre 3 y 6 años 11 meses de edad y entrega de XXX premios económicos a los ganadores de los tres primeros lugares de la Carrera XVII Carrera Tlalpense 10k 2023 de las categorías y ramas participantes. | L107: =IFERROR(VLOOKUP(A107,Base!B:L,7,FALSE),"") -> 0.4 | N107: _98 | O107: =IFERROR(M107*VLOOKUP(A107,Base!B:K,10,FALSE),"") -> 0
A108: 02CD14_99 | B108: =IFERROR(VLOOKUP(A108,Base!B:E,3,FALSE),"") -> U048 | C108: =IFERROR(VLOOKUP(A108,Base!B:E,4,FALSE),"") -> APOYOS SOCIALES | E108: =IFERROR(VLOOKUP(A108,Base!B:F,5,FALSE),"") -> Apoyos de emergencia social a personas con situación de vulnerabilidad en la Alcaldía Tlalpan. | H108: =IFERROR(VLOOKUP($A108,Base!B:M,11,FALSE),"") -> Se programaron 3 acciones sociales; mismas que corresponden a: “Tlalpan Mágico” entrega de juguetes a 13,389 niñas, niños y adolescentes en el marco del Día del Niño y de la Niña, Tlalpan Grande y Diverso brindar servicios de primera atención y asesoría psicológica, sexual, jurídica o médica a por lo menos 500 personas de la comunidad LGBTTTIQA+ que habitan en las colonias, barrios y pueblos de bajo y muy bajo índice de desarrollo social, 10 talleres y 15 jornadas informativas en modalidad presencial y/o virtual, para el desarrollo e inclusión social de las personas LGBTTTIQA+ y "ECOTECNOLOGIAS" entrega de 2,018 regaderas ahorradoras de agua, 180 captadores de agua de lluvia y 25 sistemas de paneles solares. | I108: Se programaron 3 acciones sociales, lo que representa un avance del XXX por ciento de las XXX programadas para el presente ejercicio fiscal; mismas que corresponden a: “Tlalpan Mágico” entrega de juguetes a 13,389 niñas, niños y adolescentes en el marco del Día del Niño y de la Niña, Tlalpan Grande y Diverso brindar servicios de primera atención y asesoría psicológica, sexual, jurídica o médica a por lo menos 500 personas de la comunidad LGBTTTIQA+ que habitan en las colonias, barrios y pueblos de bajo y muy bajo índice de desarrollo social, 10 talleres y 15 jornadas informativas en modalidad presencial y/o virtual, para el desarrollo e inclusión social de las personas LGBTTTIQA+ y ECOTECNOLOGIAS" entrega de 2,018 regaderas ahorradoras de agua, 180 captadores de agua de lluvia y 25 sistemas de paneles solares. | L108: =IFERROR(VLOOKUP(A108,Base!B:L,7,FALSE),"") -> 0.4 | N108: _99 | O108: =IFERROR(M108*VLOOKUP(A108,Base!B:K,10,FALSE),"") -> 0
A109: 02CD14_100 | B109: =IFERROR(VLOOKUP(A109,Base!B:E,3,FALSE),"") -> U048 | C109: =IFERROR(VLOOKUP(A109,Base!B:E,4,FALSE),"") -> APOYOS SOCIALES | E109: =IFERROR(VLOOKUP(A109,Base!B:F,5,FALSE),"") -> Apoyo alimentario a las familias de Tlalpan por una emergencia sanitaria o desastre natural. | H109: =IFERROR(VLOOKUP($A109,Base!B:M,11,FALSE),"") -> Se estiman 4,500 apoyos económicos, mediante entrega de tarjetas alimentarias, para adquirir productos de la canasta básica. A las familias vulnerables de la Alcaldía Tlalpan. | I109: Se entregaron XXX apoyos económicos, mediante entrega de tarjetas alimentarias, para adquirir productos de la canasta básica a las familias vulnerables de la Alcaldía, lo que representa un avance del XXX por ciento de los 4,500 programados para el presente ejercicio fiscal. | L109: =IFERROR(VLOOKUP(A109,Base!B:L,7,FALSE),"") -> 0.4 | N109: _100 | O109: =IFERROR(M109*VLOOKUP(A109,Base!B:K,10,FALSE),"") -> 0
A110: 02CD14_101 | B110: =IFERROR(VLOOKUP(A110,Base!B:E,3,FALSE),"") -> U048 | C110: =IFERROR(VLOOKUP(A110,Base!B:E,4,FALSE),"") -> APOYOS SOCIALES | E110: =IFERROR(VLOOKUP(A110,Base!B:F,5,FALSE),"") -> Apoyos de emergencia por desastres naturales a las familias de Tlalpan que sean afectadas en sus bienes. | H110: =IFERROR(VLOOKUP($A110,Base!B:M,11,FALSE),"") -> Se programaron XXX apoyo monetarios o en especie a la población en situación de vulnerabilidad ante la ocurrencia de algún evento de origen natural. | I110: Se otorgaron XXX apoyo monetarios o en especie a la población en situación de vulnerabilidad ante la ocurrencia de algún evento de origen natural, lo que representa un avance del XXX por ciento de los XXX programados para el presente ejercicio fiscal. | L110: =IFERROR(VLOOKUP(A110,Base!B:L,7,FALSE),"") -> 0.4 | N110: _101 | O110: =IFERROR(M110*VLOOKUP(A110,Base!B:K,10,FALSE),"") -> 0
A111: 02CD14_102 | B111: =IFERROR(VLOOKUP(A111,Base!B:E,3,FALSE),"") -> U048 | C111: =IFERROR(VLOOKUP(A111,Base!B:E,4,FALSE),"") -> APOYOS SOCIALES | E111: =IFERROR(VLOOKUP(A111,Base!B:F,5,FALSE),"") -> Apoyo de la economía familiar en temporada invernal, reparto de cobijas y chamarras. | H111: =IFERROR(VLOOKUP($A111,Base!B:M,11,FALSE),"") -> Se programaron XXX entregas de cobijas y chamarras, a la comunidad tlalpense, en temporada invernal. | I111: Se realizaron XXX entregas de cobijas y chamarras, a la comunidad tlalpense, en temporada invernal, lo que representa un avance del XXX por ciento de los XXX programados para el presente ejercicio fiscal. | L111: =IFERROR(VLOOKUP(A111,Base!B:L,7,FALSE),"") -> 0.4 | N111: _102 | O111: =IFERROR(M111*VLOOKUP(A111,Base!B:K,10,FALSE),"") -> 0
A112: 02CD14_103 | B112: =IFERROR(VLOOKUP(A112,Base!B:E,3,FALSE),"") ->  | C112: =IFERROR(VLOOKUP(A112,Base!B:E,4,FALSE),"") ->  | E112: =IFERROR(VLOOKUP(A112,Base!B:F,5,FALSE),"") ->  | H112: =IFERROR(VLOOKUP($A112,Base!B:M,11,FALSE),"") ->  | L112: =IFERROR(VLOOKUP(A112,Base!B:L,7,FALSE),"") ->  | N112: _103 | O112: =IFERROR(M112*VLOOKUP(A112,Base!B:K,10,FALSE),"") -> 
A113: 02CD14_104 | B113: =IFERROR(VLOOKUP(A113,Base!B:E,3,FALSE),"") ->  | C113: =IFERROR(VLOOKUP(A113,Base!B:E,4,FALSE),"") ->  | E113: =IFERROR(VLOOKUP(A113,Base!B:F,5,FALSE),"") ->  | H113: =IFERROR(VLOOKUP($A113,Base!B:M,11,FALSE),"") ->  | L113: =IFERROR(VLOOKUP(A113,Base!B:L,7,FALSE),"") ->  | N113: _104 | O113: =IFERROR(M113*VLOOKUP(A113,Base!B:K,10,FALSE),"") -> 
A114: 02CD14_105 | B114: =IFERROR(VLOOKUP(A114,Base!B:E,3,FALSE),"") ->  | C114: =IFERROR(VLOOKUP(A114,Base!B:E,4,FALSE),"") ->  | E114: =IFERROR(VLOOKUP(A114,Base!B:F,5,FALSE),"") ->  | H114: =IFERROR(VLOOKUP($A114,Base!B:M,11,FALSE),"") ->  | L114: =IFERROR(VLOOKUP(A114,Base!B:L,7,FALSE),"") ->  | N114: _105 | O114: =IFERROR(M114*VLOOKUP(A114,Base!B:K,10,FALSE),"") -> 
A115: 02CD14_106 | B115: =IFERROR(VLOOKUP(A115,Base!B:E,3,FALSE),"") ->  | C115: =IFERROR(VLOOKUP(A115,Base!B:E,4,FALSE),"") ->  | E115: =IFERROR(VLOOKUP(A115,Base!B:F,5,FALSE),"") ->  | H115: =IFERROR(VLOOKUP($A115,Base!B:M,11,FALSE),"") ->  | L115: =IFERROR(VLOOKUP(A115,Base!B:L,7,FALSE),"") ->  | N115: _106 | O115: =IFERROR(M115*VLOOKUP(A115,Base!B:K,10,FALSE),"") -> 
A116: 02CD14_107 | B116: =IFERROR(VLOOKUP(A116,Base!B:E,3,FALSE),"") ->  | C116: =IFERROR(VLOOKUP(A116,Base!B:E,4,FALSE),"") ->  | E116: =IFERROR(VLOOKUP(A116,Base!B:F,5,FALSE),"") ->  | H116: =IFERROR(VLOOKUP($A116,Base!B:M,11,FALSE),"") ->  | L116: =IFERROR(VLOOKUP(A116,Base!B:L,7,FALSE),"") ->  | N116: _107 | O116: =IFERROR(M116*VLOOKUP(A116,Base!B:K,10,FALSE),"") -> 
B117: Medio de Verificación
B120: ELABORÓ | I120: AUTORIZÓ
B123: NOMBRE: | I123: NOMBRE:
B125: CARGO: | I125: CARGO:
B126: CUENTA DE CORREO INSTITUCIONAL: | I126: CUENTA DE CORREO INSTITUCIONAL:
B127: TELÉFONO DE CONTACTO: | I127: TELÉFONO DE CONTACTO:
B128: EXTENSIÓN: | I128: EXTENSIÓN:

Sheet IR PP
C5: IR PP- INFORME DE RESULTADOS DE PROGRAMAS PRESUPUESTARIOS
C6: EJERCICIO FISCAL 2023
C7: DATOS DE LA UNIDAD RESPONSABLE DE GASTO
AC8: 0
C9: Unidad Responsable de Gasto: | J9: =IAAR!F6 -> Alcaldia Tlalpan | S9: Clave Centro Gestor: | U9: =IAAR!C6 -> 02CD14 | X9: Periodo: | AA9: 2do Trimestre
C11: RESULTADOS
C12: Alineaciones | I12: Clave PP | J12: Nombre PP | L12: Definición de la meta | O12: Indicador de la meta | R12: Medios de Verificación | U12: Unidad de Medida | V12: Meta programada al trimestre | Z12: Avance en los Indicadores | AA12: Presupuesto Programado al Periodo | AB12: Presupuesto Ejercido al Periodo | AC12: Porcentaje de Presupuesto Programado Ejercido | AD12: Semaforización Avance en los Indicadores
C13: Eje | D13: Sub Eje | E13: Sub Sub Eje | F13: CFG | G13: ODS | H13: Metas ODS | V13: 1er.TMP | W13: 2do.TMP | X13: 3er.TMP | Y13: 4to.TMP
A14: _1 | B14: =CONCATENATE($U$9,A14) -> 02CD14_1 | C14: =IFERROR(VLOOKUP(B14,Estrv!A:AQ,11,FALSE),"") -> 2 | D14: =IFERROR(VLOOKUP(B14,Estrv!A:AQ,13,FALSE),"") -> 1 | E14: =IFERROR(VLOOKUP(B14,Estrv!A:AQ,15,FALSE),"") -> 3 | F14: =IFERROR(VLOOKUP(B14,Estrv!A:AQ,29,FALSE),"") -> 1.8.1 | G14: =IFERROR(VLOOKUP(B14,Estrv!A:AQ,25,FALSE),"") -> 16 | H14: =IFERROR(VLOOKUP(B14,Estrv!A:AQ,27,FALSE),"") -> 16.6 | I14: =IFERROR(VLOOKUP(B14,Estrv!A:J,9,FALSE),"") -> E185 | J14: =IFERROR(VLOOKUP(B14,Estrv!A:J,10,FALSE),"") -> Gobierno y atención ciudadana | L14: =IFERROR(VLOOKUP(B14,Estrv!A:AQ,36,FALSE),"") -> Indice que mide el avance de las atenciones de los servicios administrativos y operativos que la poblacion requiere. | O14: =IFERROR(VLOOKUP(B14,Estrv!A:AQ,37,FALSE),"") -> ((Actualizacion de censos de asentamientos irregulares realizados/ Actualizacion de censos de asentamientos irregulares programados)*11.5)+((Tramites y servicios para la operacion de giros mercantiles realizados/Tramites y servicios para la operacion de giros mercantiles programados) *11.5)+((Servicios de asesoria juridica y promocion de los Derechos Humanos realizados/Servicios de asesoria juridica y promocion de los Derechos Humanos programados) *11)+((Orientaciones en materia de colaboracion, vinculacion, concertacion y participacion ciudadana realizadas/Orientaciones en materia de colaboracion, vinculacion, concertacion y participacion ciudadana programadas)*11)+((Total de diagnosticos de necesidades en colonias, barrios y pueblos. realizados / Total de diagnosticos de necesidades en colonias, barrios y pueblos programados)*11)+(((Tota de solicitudes de Informacion publica y solvatacion de requerimientos a traves de INFOMEX atenidas/total de solicitudes de Informacion publica y solvatacion de requerimientos a traves de INFOMEX programadas)*11)+((Atencion de requerimientos de informacion por parte de los organos de fiscalizacion requesitados/Atencion de requerimientos de informacion por parte de los organos de fiscalizacion solicitados) *11)+((Difusion de las actividades que se realizan en la Alcaldia Tlalpan realizadas/ Difusion de las actividades que se realizan en la Alcaldia Tlalpan programadas)*11) + ((Total de solicitudes atendidas en el Centro de Servicios y Atencion Ciudadana/Total de solicitudes recibidas en el Centro de Servicios y Atencion Ciudadana)*11) | R14: =IFERROR(VLOOKUP(B14,Estrv!A:AQ,39,FALSE),"") -> http://micrositiotransparencia.tlalpan.cdmx.gob.mx/index.html | U14: =IFERROR(VLOOKUP(B14,Estrv!A:AQ,38,FALSE),"") -> Indice | V14: =IFERROR(VLOOKUP(B14,Estrv!A:AQ,40,FALSE),"") -> 0.25 | W14: =IFERROR(VLOOKUP(B14,Estrv!A:AQ,41,FALSE),"") -> 0.5 | X14: =IFERROR(VLOOKUP(B14,Estrv!A:AQ,42,FALSE),"") -> 0.75 | Y14: =IFERROR(VLOOKUP(B14,Estrv!A:AQ,43,FALSE),"") -> 1 | Z14: =IF(I14<>"", SUMIF(IAAR!B$10:O$116,I14,IAAR!O$10:O$116),"") -> 0 | AC14: =IFERROR(AB14/AA14,"") -> 
A15: _2 | B15: 02CD14_2 | C15: =IFERROR(VLOOKUP(B15,Estrv!A:AQ,11,FALSE),"") -> 6 | D15: =IFERROR(VLOOKUP(B15,Estrv!A:AQ,13,FALSE),"") -> 5 | E15: =IFERROR(VLOOKUP(B15,Estrv!A:AQ,15,FALSE),"") -> 1 | F15: =IFERROR(VLOOKUP(B15,Estrv!A:AQ,29,FALSE),"") -> 2.2.1 | G15: =IFERROR(VLOOKUP(B15,Estrv!A:AQ,25,FALSE),"") -> 16 | H15: =IFERROR(VLOOKUP(B15,Estrv!A:AQ,27,FALSE),"") -> 16.1 | I15: =IFERROR(VLOOKUP(B15,Estrv!A:J,9,FALSE),"") -> E186 | J15: =IFERROR(VLOOKUP(B15,Estrv!A:J,10,FALSE),"") -> Seguridad en Alcalíias | L15: =IFERROR(VLOOKUP(B15,Estrv!A:AQ,36,FALSE),"") -> Indice que mide el avance de las atenciones de los servicios de seguridad proporcionados por la Alcaldia Tlalpan. | O15: =IFERROR(VLOOKUP(B15,Estrv!A:AQ,37,FALSE),"") -> ((Operativos de Seguridad en las colonias, barrios y pueblos de la Alcaldia realizados/ Operativos de Seguridad en las colonias, barrios y pueblos de la Alcaldia programados)*25)+((Remision y acompañamiento institucional ante el juzgado civico y la fiscalia realizados/ Remision y acompañamiento institucional ante el juzgado civico y la fiscalia realizados)*25)+((Estrategias operativas atencion integral para apoyo a los habitantes de las colonias con mayor indice delictivo realizadas/ Estrategias operativas atencion integral para apoyo a los habitantes de las colonias con mayor indice delictivo programadas)*25)+((Talleres en materia de prevencion de la violencia y cultura de la denuncia realizados/Talleres en materia de prevencion de la violencia y cultura de la denuncia programados)*25). | R15: =IFERROR(VLOOKUP(B15,Estrv!A:AQ,39,FALSE),"") -> http://micrositiotransparencia.tlalpan.cdmx.gob.mx/index.html | U15: =IFERROR(VLOOKUP(B15,Estrv!A:AQ,38,FALSE),"") -> Indice | V15: =IFERROR(VLOOKUP(B15,Estrv!A:AQ,40,FALSE),"") -> 0.25 | W15: =IFERROR(VLOOKUP(B15,Estrv!A:AQ,41,FALSE),"") -> 0.5 | X15: =IFERROR(VLOOKUP(B15,Estrv!A:AQ,42,FALSE),"") -> 0.75 | Y15: =IFERROR(VLOOKUP(B15,Estrv!A:AQ,43,FALSE),"") -> 1 | Z15: =IF(I15<>"", SUMIF(IAAR!B$10:O$116,I15,IAAR!O$10:O$116),"") -> 0.4175 | AC15: =IFERROR(AB15/AA15,"") -> 
A16: _3 | B16: 02CD14_3 | C16: =IFERROR(VLOOKUP(B16,Estrv!A:AQ,11,FALSE),"") -> 2 | D16: =IFERROR(VLOOKUP(B16,Estrv!A:AQ,13,FALSE),"") -> 2 | E16: =IFERROR(VLOOKUP(B16,Estrv!A:AQ,15,FALSE),"") -> 2 | F16: =IFERROR(VLOOKUP(B16,Estrv!A:AQ,29,FALSE),"") -> 2.2.6 | G16: =IFERROR(VLOOKUP(B16,Estrv!A:AQ,25,FALSE),"") -> 11 | H16: =IFERROR(VLOOKUP(B16,Estrv!A:AQ,27,FALSE),"") -> 11.6 | I16: =IFERROR(VLOOKUP(B16,Estrv!A:J,9,FALSE),"") -> E187 | J16: =IFERROR(VLOOKUP(B16,Estrv!A:J,10,FALSE),"") -> Servicios públicos | L16: =IFERROR(VLOOKUP(B16,Estrv!A:AQ,36,FALSE),"") -> Indice que mide el avance de los servicios publicos que se otorgan a la poblacion de la Alcaldia Tlalpan. | O16: =IFERROR(VLOOKUP(B16,Estrv!A:AQ,37,FALSE),"") -> ((Total de toneladas de residuos solidos organicos, inorganicos e industriales recolectados/ Total de toneladas de residuos solidos organicos e inorganico programados) *0.10 + ((Total de luminarias de la Red de alumbrado publico atendidas/Total de luminarias de la Red de alumbrado publico programadas)*0.10)+(Total de actividades como trabajos de balizamiento + señalamientos + adecuaciones geometricas realizados/Total de actividades como trabajos de balizamiento, señalamientos, adecuaciones geometricas programados)*0.10)+((Total de trabajos de poda de arboles, poda de pasto, riego de areas verdes, barrido de areas verdes, retiro de hierba y maleza realizados/Total de trabajos de poda de arbole, poda de pasto, riego de areas verdes, barrido de areas verdes, retiro de hierba y maleza programados) *0.10)+((Total de trabajos de eliminacion y borrado de grafiti, aplicacion de pintura en muros y bardas, colocacion de malla ciclonica y otros realizados/Total de trabajos de eliminacion y borrado de grafiti, aplicacion de pintura en muros y barda, colocacion de malla ciclonica y otros programados)*0.10)+((Total de servicios funerarios atendidos, mantenimiento a panteones realizados/Total de servicios funerarios y mantenimiento a panteones programados)*0.10)+(Metros cubicos entregados/Metros cubicos programados)*0.10 + ((Difusion de informacion sobre el cuidado del medio ambiente, el desarrollo sustentable, el cambio climatico, los efectos de la contaminacion y conservacion de la biodiversidad entre la poblacion tlalpense ofrecida/Difusion de informacion sobre el cuidado del medio ambiente, el desarrollo sustentable, el cambio climatico, los efectos de la contaminacion y conservacion de la biodiversidad entre la poblacion tlalpense programada)*0.10) +((Numero de capacitaciones a inspectores, dictaminadores, funcionarios y personal de la alcaldia, en temas ambientales brindadas/ numero de capacitaciones a inspectores, dictaminadores, funcionarios y personal de la alcaldia, en temas ambientales programadas)*0.10)+((numero de contribuciones a la proteccion, preservacion y conservacion de los recursos naturales entregadas/numero de contribuciones a la proteccion, preservacion y conservacion de los recursos naturales programadas)*0.10) | R16: =IFERROR(VLOOKUP(B16,Estrv!A:AQ,39,FALSE),"") -> http://micrositiotransparencia.tlalpan.cdmx.gob.mx/index.html | U16: =IFERROR(VLOOKUP(B16,Estrv!A:AQ,38,FALSE),"") -> Indice | V16: =IFERROR(VLOOKUP(B16,Estrv!A:AQ,40,FALSE),"") -> 0.25 | W16: =IFERROR(VLOOKUP(B16,Estrv!A:AQ,41,FALSE),"") -> 0.5 | X16: =IFERROR(VLOOKUP(B16,Estrv!A:AQ,42,FALSE),"") -> 0.75 | Y16: =IFERROR(VLOOKUP(B16,Estrv!A:AQ,43,FALSE),"") -> 1 | Z16: =IF(I16<>"", SUMIF(IAAR!B$10:O$116,I16,IAAR!O$10:O$116),"") -> 0
A17: _4 | B17: 02CD14_4 | C17: =IFERROR(VLOOKUP(B17,Estrv!A:AQ,11,FALSE),"") -> 2 | D17: =IFERROR(VLOOKUP(B17,Estrv!A:AQ,13,FALSE),"") -> 1 | E17: =IFERROR(VLOOKUP(B17,Estrv!A:AQ,15,FALSE),"") -> 5 | F17: =IFERROR(VLOOKUP(B17,Estrv!A:AQ,29,FALSE),"") -> 2.4.2 | G17: =IFERROR(VLOOKUP(B17,Estrv!A:AQ,25,FALSE),"") -> 11 | H17: =IFERROR(VLOOKUP(B17,Estrv!A:AQ,27,FALSE),"") -> 11.4 | I17: =IFERROR(VLOOKUP(B17,Estrv!A:J,9,FALSE),"") -> E188 | J17: =IFERROR(VLOOKUP(B17,Estrv!A:J,10,FALSE),"") -> Educación, cultura, deporte y recreación | L17: =IFERROR(VLOOKUP(B17,Estrv!A:AQ,36,FALSE),"") -> Indice que mide el avance de las acciones de las actividades que la Alcaldia realiza para el desarrollo de la cultura, la educacion, el arte y la recreacion que demandan los ciudadanos. | O17: =IFERROR(VLOOKUP(B17,Estrv!A:AQ,37,FALSE),"") -> ((Actividades culturales de diversas expresiones artisticas realizadas/ Actividades culturales de diversas expresiones artisticas programadas)*0.20 + ((Total de actividades culturales realizadas/ Total de actividades culturales programadas)*+20 ((Total de clases deportivas en Modulos y Centros Deportivos a traves de las Escuelas Tecnico Deportivas impartidas/ total de clases deportivas en Modulos y Centros Deportivos a traves de las Escuelas Tecnico Deportivas programadas))*0.20 + ((Total de eventos deportivos gratuitos realizados/ Total de eventos deportivos gratuitos programados)*0.20+ ((Total de actividades de mantenimiento menor a Centros y Modulos Deportivos a cargo de la Alcaldia Tlalpan realizadas/ Total de actividades de mantenimiento menor a Centros y Modulos Deportivos a cargo de la Alcaldia Tlalpan programadas)*0.20) | R17: =IFERROR(VLOOKUP(B17,Estrv!A:AQ,39,FALSE),"") -> http://micrositiotransparencia.tlalpan.cdmx.gob.mx/index.html | U17: =IFERROR(VLOOKUP(B17,Estrv!A:AQ,38,FALSE),"") -> Indice | V17: =IFERROR(VLOOKUP(B17,Estrv!A:AQ,40,FALSE),"") -> 0.25 | W17: =IFERROR(VLOOKUP(B17,Estrv!A:AQ,41,FALSE),"") -> 0.5 | X17: =IFERROR(VLOOKUP(B17,Estrv!A:AQ,42,FALSE),"") -> 0.75 | Y17: =IFERROR(VLOOKUP(B17,Estrv!A:AQ,43,FALSE),"") -> 1 | Z17: =IF(I17<>"", SUMIF(IAAR!B$10:O$116,I17,IAAR!O$10:O$116),"") -> 0
A18: _5 | B18: 02CD14_5 | C18: =IFERROR(VLOOKUP(B18,Estrv!A:AQ,11,FALSE),"") -> 2 | D18: =IFERROR(VLOOKUP(B18,Estrv!A:AQ,13,FALSE),"") -> 1 | E18: =IFERROR(VLOOKUP(B18,Estrv!A:AQ,15,FALSE),"") -> 7 | F18: =IFERROR(VLOOKUP(B18,Estrv!A:AQ,29,FALSE),"") -> 2.3.2 | G18: =IFERROR(VLOOKUP(B18,Estrv!A:AQ,25,FALSE),"") -> 11 | H18: =IFERROR(VLOOKUP(B18,Estrv!A:AQ,27,FALSE),"") -> 11.1 | I18: =IFERROR(VLOOKUP(B18,Estrv!A:J,9,FALSE),"") -> E189 | J18: =IFERROR(VLOOKUP(B18,Estrv!A:J,10,FALSE),"") -> Servicios de salud en Alcaldias | L18: =IFERROR(VLOOKUP(B18,Estrv!A:AQ,36,FALSE),"") -> Indice que mide el avance de las atenciones de los servicios de alud requeridos para los habitantes de la Alcaldia. | O18: =IFERROR(VLOOKUP(B18,Estrv!A:AQ,37,FALSE),"") -> ((Total de Consultas Medica tales como: Odontologica, Optometrista, Nutricional y Alternativa realizadas / Total de Consultas Medica tales como: Odontologica, Optometrista, Nutricional y Alternativa programadas)*0.14 )+((Total de Servicios de Salud Mental (Atencion Psicologica, Talleres de Crianza Positiva y Grupos Focales de Prevencion de Adicciones) brindados/ Total Servicios de Salud Mental (Atencion Psicologica, Talleres de Crianza Positiva y Grupos Focales de Prevencion de Adicciones) programados)*0.14)+((Total de Servicios de Salud de Detecciones: Presion arterial, glicemia capilar, cancer de mama, cervicouterino, cancer de prostata y VIH proporcionados/ Total de Servicios de Detecciones: Presion arterial, glicemia capilar, cancer de mama, cervicouterino, cancer de prostata y VIH programados)*0.14)+((Total de Servicios de Salud Preventiva como : Vacunacion, Somatometria, Primeros Auxilios, Prevencion y Promocion a la Salud brindados/ Total de Servicios de Salud Preventiva como : Vacunacion, Somatometria, Primeros Auxilios, Prevencion y Promocion a la Salud programados*0.16) + (( Total de Evaluaciones del Desarrollo Infantil realizados / total de Evaluaciones del Desarrollo Infantil programados)*0.14)+(( Total de servicios de deteccion, manejo y rehabilitacion musculo esqueletica realizados + total de servicios de deteccion, manejo y rehabilitacion musculo esqueletica programados)*0.14)+((Total de Talleres sobre Derechos de las Personas con Discapacidad, lenguaje incluyente, Lengua de Señas Mexicanas y Sistema de lecto-escritura Braille realizados/ total de talleres sobre Derechos de las Personas con Discapacidad, lenguaje incluyente, Lengua de Señas Mexicanas y Sistema de lecto-escritura Braille programados)*0.14) | R18: =IFERROR(VLOOKUP(B18,Estrv!A:AQ,39,FALSE),"") -> http://micrositiotransparencia.tlalpan.cdmx.gob.mx/index.html | U18: =IFERROR(VLOOKUP(B18,Estrv!A:AQ,38,FALSE),"") -> Indice | V18: =IFERROR(VLOOKUP(B18,Estrv!A:AQ,40,FALSE),"") -> 0.25 | W18: =IFERROR(VLOOKUP(B18,Estrv!A:AQ,41,FALSE),"") -> 0.5 | X18: =IFERROR(VLOOKUP(B18,Estrv!A:AQ,42,FALSE),"") -> 0.75 | Y18: =IFERROR(VLOOKUP(B18,Estrv!A:AQ,43,FALSE),"") -> 1 | Z18: =IF(I18<>"", SUMIF(IAAR!B$10:O$116,I18,IAAR!O$10:O$116),"") -> 0
A19: _6 | B19: 02CD14_6 | C19: =IFERROR(VLOOKUP(B19,Estrv!A:AQ,11,FALSE),"") -> 2 | D19: =IFERROR(VLOOKUP(B19,Estrv!A:AQ,13,FALSE),"") -> 3 | E19: =IFERROR(VLOOKUP(B19,Estrv!A:AQ,15,FALSE),"") -> 4 | F19: =IFERROR(VLOOKUP(B19,Estrv!A:AQ,29,FALSE),"") -> 2.1.6 | G19: =IFERROR(VLOOKUP(B19,Estrv!A:AQ,25,FALSE),"") -> 15 | H19: =IFERROR(VLOOKUP(B19,Estrv!A:AQ,27,FALSE),"") -> 15.a | I19: =IFERROR(VLOOKUP(B19,Estrv!A:J,9,FALSE),"") -> E190 | J19: =IFERROR(VLOOKUP(B19,Estrv!A:J,10,FALSE),"") -> Servicios de atención animal | L19: =IFERROR(VLOOKUP(B19,Estrv!A:AQ,36,FALSE),"") -> Indice que mide el avance de los servicios de la atencion animal en la demarcacion. | O19: =IFERROR(VLOOKUP(B19,Estrv!A:AQ,37,FALSE),"") -> ((Total de Cirugias, esterilizaciones y vacunas realizadas/ Total de Cirugias, esterilizaciones y vacunas programadas)*0.17)+((Total de servicios a animales de compañia como rehabilitaciones, adiestramiento, adopciones, etc. realizados/Total de servicios a animales de compañia como rehabilitaciones, adiestramiento, adopciones, etc. programados) *0.17) + ((Total de animales donados voluntariamente a razon de lo comprendido en el Articulo 51 de la Ley de Proteccion a los Animales de la Ciudad de Mexico recibidos/ Total de animales donados voluntariamente a razon de lo comprendido en el Articulo 51 de la Ley de Proteccion a los Animales de la Ciudad de Mexico programados a recibir) *0.17) + ((Total de difusiones en redes oficiales a traves de materiales pedagogicos para dar atencion a personas sobre la tutela responsable de animales de compañia y el respeto por la vida publicados/ Total de difusiones en redes oficiales a traves de materiales pedagogicos para dar atencion a personas sobre la tutela responsable de animales de compañia y el respeto por la vida programados) *0.17) + ((Total de desparasitaciones internas de la poblacion canina y felina en las instalaciones de la clinica veterinaria para la prevencion de enfermedades transmitidas entre animales y humanos realizadas / total de desparasitaciones internas de la poblacion canina y felina en las instalaciones de la clinica veterinaria para la prevencion de enfermedades transmitidas entre animales y humanos programadas) *0.17)+ (Total de asesorias medicas veterinarias en las instalaciones de la clinica veterinaria brindadas / Total de asesorias medicas veterinarias en las instalaciones de la clinica veterinaria programadas) *0.15) | R19: =IFERROR(VLOOKUP(B19,Estrv!A:AQ,39,FALSE),"") -> http://micrositiotransparencia.tlalpan.cdmx.gob.mx/index.html | U19: =IFERROR(VLOOKUP(B19,Estrv!A:AQ,38,FALSE),"") -> Indice | V19: =IFERROR(VLOOKUP(B19,Estrv!A:AQ,40,FALSE),"") -> 0.25 | W19: =IFERROR(VLOOKUP(B19,Estrv!A:AQ,41,FALSE),"") -> 0.5 | X19: =IFERROR(VLOOKUP(B19,Estrv!A:AQ,42,FALSE),"") -> 0.75 | Y19: =IFERROR(VLOOKUP(B19,Estrv!A:AQ,43,FALSE),"") -> 1 | Z19: =IF(I19<>"", SUMIF(IAAR!B$10:O$116,I19,IAAR!O$10:O$116),"") -> 0
A20: _7 | B20: 02CD14_7 | C20: =IFERROR(VLOOKUP(B20,Estrv!A:AQ,11,FALSE),"") -> 2 | D20: =IFERROR(VLOOKUP(B20,Estrv!A:AQ,13,FALSE),"") -> 1 | E20: =IFERROR(VLOOKUP(B20,Estrv!A:AQ,15,FALSE),"") -> 7 | F20: =IFERROR(VLOOKUP(B20,Estrv!A:AQ,29,FALSE),"") -> 2.6.3 | G20: =IFERROR(VLOOKUP(B20,Estrv!A:AQ,25,FALSE),"") -> 11 | H20: =IFERROR(VLOOKUP(B20,Estrv!A:AQ,27,FALSE),"") -> 11.1 | I20: =IFERROR(VLOOKUP(B20,Estrv!A:J,9,FALSE),"") -> E198 | J20: =IFERROR(VLOOKUP(B20,Estrv!A:J,10,FALSE),"") -> Servicios de cuidado infantil | L20: =IFERROR(VLOOKUP(B20,Estrv!A:AQ,36,FALSE),"") -> Indice que mide el avance de los servicios de cuidado infantil en la demarcacion. | O20: =IFERROR(VLOOKUP(B20,Estrv!A:AQ,37,FALSE),"") -> ((Total de Acciones de Consolidacion del Consejo de niñas y niños para promover los derechos de las niñas, niños y adolescentes realizadas /Total de Acciones de Consolidacion del Consejo de niñas y niños para promover los derechos de las niñas, niños y adolescentes programadas)*0.25) (Acciones del Sistema de Proteccion de niñas y niños (SIPINNA) realizadas / acciones del Sistema de Proteccion de niñas y niños (SIPINNA)) programadas)*0.25)+((Total de Audiencias Publicas Infantiles, con el objetivo de generar un espacio de dialogo-escucha para y con niñas y niños de la Alcaldia Tlalpan realizadas/ Total de Audiencias Publicas Infantiles, con el objetivo de generar un espacio de dialogo-escucha para y con niñas y niños de la Alcaldia Tlalpan programadas)*0.25) +((Total de Campañas de promocion de los derechos de las niñas, niños y adolescentes, con la finalidad de contribuir a una cultura del respeto a sus derechos realizadas/ Total de Campañas de promocion de los derechos de las niñas, niños y adolescentes, con la finalidad de contribuir a una cultura del respeto a sus derechos programadas)*0.25*). | R20: =IFERROR(VLOOKUP(B20,Estrv!A:AQ,39,FALSE),"") -> http://micrositiotransparencia.tlalpan.cdmx.gob.mx/index.html | U20: =IFERROR(VLOOKUP(B20,Estrv!A:AQ,38,FALSE),"") -> Indice | V20: =IFERROR(VLOOKUP(B20,Estrv!A:AQ,40,FALSE),"") -> 0.25 | W20: =IFERROR(VLOOKUP(B20,Estrv!A:AQ,41,FALSE),"") -> 0.5 | X20: =IFERROR(VLOOKUP(B20,Estrv!A:AQ,42,FALSE),"") -> 0.75 | Y20: =IFERROR(VLOOKUP(B20,Estrv!A:AQ,43,FALSE),"") -> 1 | Z20: =IF(I20<>"", SUMIF(IAAR!B$10:O$116,I20,IAAR!O$10:O$116),"") -> 0
A21: _8 | B21: 02CD14_8 | C21: =IFERROR(VLOOKUP(B21,Estrv!A:AQ,11,FALSE),"") -> 2 | D21: =IFERROR(VLOOKUP(B21,Estrv!A:AQ,13,FALSE),"") -> 1 | E21: =IFERROR(VLOOKUP(B21,Estrv!A:AQ,15,FALSE),"") -> 3 | F21: =IFERROR(VLOOKUP(B21,Estrv!A:AQ,29,FALSE),"") -> 3.1.1 | G21: =IFERROR(VLOOKUP(B21,Estrv!A:AQ,25,FALSE),"") -> 8 | H21: =IFERROR(VLOOKUP(B21,Estrv!A:AQ,27,FALSE),"") -> 8.3 | I21: =IFERROR(VLOOKUP(B21,Estrv!A:J,9,FALSE),"") -> F037 | J21: =IFERROR(VLOOKUP(B21,Estrv!A:J,10,FALSE),"") -> Turismo, empleo y fomento económico | L21: =IFERROR(VLOOKUP(B21,Estrv!A:AQ,36,FALSE),"") -> Indice que mide el avance de las actividades para impulsar la economia en la demarcacion. | O21: =IFERROR(VLOOKUP(B21,Estrv!A:AQ,37,FALSE),"") -> ((Total de Ferias relacionadas al sector primario de los sectores de la economia realizadas/ total de Ferias relacionadas al sector primario de los sectores de la economia programadas)*12.5)+((Total de ferias para la promocion de empleo y de bienes y servicios locales, para apoyar al comercio y productores locales realizadas / total de ferias para la promocion de empleo y de bienes y servicios locales, para apoyar al comercio y productores locales realizadas)*12.5)+((Total de agentes economicos contactados y actividades relacionadas con el sector servicios realizadas/Total de agentes economicos programados a contactar y actividades relacionadas con el sector servicios programadas)*12.5)+((Total de actividades para fomentar el desarrollo de MYPIMES y sociedades cooperativas realizadas/ total de actividades para fomentar el desarrollo de MYPIMES y sociedades cooperativas programadas)*12.5)+((Total de capacitaciones para el trabajo y promocion del autoempleo para personas jovenes brindadas / Total de capacitaciones para el trabajo y promocion del autoempleo para personas jovenes programadas)*12.5)+((Total de creditos y financiamientos a personas dedicadas a la produccion agricola y aquellas que se encuentran en condicion de desempleo o no cuentan con los recursos necesarios para emprender entregados / total de creditos y financiamientos a personas dedicadas a la produccion agricola y aquellas que se encuentran en condicion de desempleo o no cuentan con los recursos necesarios para emprender programados)*12.5)+(( Total de capacitaciones para el trabajo y promocion del autoempleo para personas adultas brindadas/ Total de capacitaciones para el trabajo y promocion del autoempleo para personas adultas programadas)*12.5)+(( Total de actividades realizadas para fomentar y Promocionar el Turismo en la Alcaldia Tlalpan/ Total de actividades programadas para fomentar y Promocionar el Turismo en la Alcaldia Tlalpan)*12.5). | R21: =IFERROR(VLOOKUP(B21,Estrv!A:AQ,39,FALSE),"") -> http://micrositiotransparencia.tlalpan.cdmx.gob.mx/index.html | U21: =IFERROR(VLOOKUP(B21,Estrv!A:AQ,38,FALSE),"") -> Indice | V21: =IFERROR(VLOOKUP(B21,Estrv!A:AQ,40,FALSE),"") -> 0.25 | W21: =IFERROR(VLOOKUP(B21,Estrv!A:AQ,41,FALSE),"") -> 0.5 | X21: =IFERROR(VLOOKUP(B21,Estrv!A:AQ,42,FALSE),"") -> 0.75 | Y21: =IFERROR(VLOOKUP(B21,Estrv!A:AQ,43,FALSE),"") -> 1 | Z21: =IF(I21<>"", SUMIF(IAAR!B$10:O$116,I21,IAAR!O$10:O$116),"") -> 0
A22: _9 | B22: 02CD14_9 | C22: =IFERROR(VLOOKUP(B22,Estrv!A:AQ,11,FALSE),"") -> 6 | D22: =IFERROR(VLOOKUP(B22,Estrv!A:AQ,13,FALSE),"") -> 2 | E22: =IFERROR(VLOOKUP(B22,Estrv!A:AQ,15,FALSE),"") -> 4 | F22: =IFERROR(VLOOKUP(B22,Estrv!A:AQ,29,FALSE),"") -> 2.2.1 | G22: =IFERROR(VLOOKUP(B22,Estrv!A:AQ,25,FALSE),"") -> 11 | H22: =IFERROR(VLOOKUP(B22,Estrv!A:AQ,27,FALSE),"") -> 11.3 | I22: =IFERROR(VLOOKUP(B22,Estrv!A:J,9,FALSE),"") -> K023 | J22: =IFERROR(VLOOKUP(B22,Estrv!A:J,10,FALSE),"") -> Infraestructura urbana | L22: =IFERROR(VLOOKUP(B22,Estrv!A:AQ,36,FALSE),"") -> Indice que mide el avance de las obras para llevar a cabo la infraestructura urbana de la demarcacion. | O22: =IFERROR(VLOOKUP(B22,Estrv!A:AQ,37,FALSE),"") -> ((Numero de metros de desazolve de la red de drenaje realizada al trimestre/numero de metros desazolve de la red de drenaje programada al trimestre)*0.40) +((Numero de kilometros de la red de drenaje realizados al trimestre/numero de kilometros de la red de drenaje programados al trimestre)*0.50) +((Numero de resumideros realizados al trimestre/numero de resumideros programados al trimestre)*0.10)+((Numero de inmuebles culturales + numero de inmuebles deportivos, realizados al trimestre/numero de inmuebles culturales + numero de inmuebles deportivos programados al trimestre)*0.15)+ ((numero de edificios publicos realizados al trimestre/numero de edificios publicos programados al trimestre)*0.10)+((numero de espacios publicos realizados al trimestre/numero de espacios publicos programados al trimestre)*0.05) +((numero de inmuebles educativos realizados al trimestre/numero de inmuebles educativos programados al trimestre)*0.15)+((numero de obras para la mitigacion de riesgos realizados al trimestre/numero de Obras para la mitigacion de riesgos programados al trimestre)*0.05)+((numero de m2 de banquetas realizados al trimestre/numero de m2 de banquetas programados al trimestre)*0.15)+((numero de m2 de asfalto en vialidades secundarias + numero de metros de balizamiento realizados al trimestre/numero de m2 de asfalto en vialidades secundarias +numero de metros de balizamiento programados al trimestre)*0.15)+((numero de inmuebles de infraestructura sociales realizados al trimestre/numero de inmuebles de infraestructura social programados al trimestre)*0.10)+ (( numero de piezas de luminarias atendidas al trimestre/ numero de piezas de luminarias programados al trimestre)*0.05)+(numero proyectos de obra en el marco del presupuesto participativo realizados al trimestre/numero de proyectos de obra en el marco del presupuesto participativo programado al trimestre)*0.05). | R22: =IFERROR(VLOOKUP(B22,Estrv!A:AQ,39,FALSE),"") -> http://micrositiotransparencia.tlalpan.cdmx.gob.mx/index.html | U22: =IFERROR(VLOOKUP(B22,Estrv!A:AQ,38,FALSE),"") -> Indice | V22: =IFERROR(VLOOKUP(B22,Estrv!A:AQ,40,FALSE),"") -> 0.25 | W22: =IFERROR(VLOOKUP(B22,Estrv!A:AQ,41,FALSE),"") -> 0.5 | X22: =IFERROR(VLOOKUP(B22,Estrv!A:AQ,42,FALSE),"") -> 0.75 | Y22: =IFERROR(VLOOKUP(B22,Estrv!A:AQ,43,FALSE),"") -> 1 | Z22: =IF(I22<>"", SUMIF(IAAR!B$10:O$116,I22,IAAR!O$10:O$116),"") -> 0
A23: _10 | B23: 02CD14_10 | C23: =IFERROR(VLOOKUP(B23,Estrv!A:AQ,11,FALSE),"") -> 2 | D23: =IFERROR(VLOOKUP(B23,Estrv!A:AQ,13,FALSE),"") -> 3 | E23: =IFERROR(VLOOKUP(B23,Estrv!A:AQ,15,FALSE),"") -> 2 | F23: =IFERROR(VLOOKUP(B23,Estrv!A:AQ,29,FALSE),"") -> 2.2.3 | G23: =IFERROR(VLOOKUP(B23,Estrv!A:AQ,25,FALSE),"") -> 6 | H23: =IFERROR(VLOOKUP(B23,Estrv!A:AQ,27,FALSE),"") -> 6.4 | I23: =IFERROR(VLOOKUP(B23,Estrv!A:J,9,FALSE),"") -> K026 | J23: =IFERROR(VLOOKUP(B23,Estrv!A:J,10,FALSE),"") -> Infraestructura de agua potable en Alcaldías | L23: =IFERROR(VLOOKUP(B23,Estrv!A:AQ,36,FALSE),"") -> Porcentaje de Avance de las obras a realizar en pro de la infraestructura de agua potable en la Alcaldia Tlalpan. | O23: =IFERROR(VLOOKUP(B23,Estrv!A:AQ,37,FALSE),"") -> (numero de metros de la red de agua potable realizados al trimestre/ numero demetros de la red de agua potable programados al trimestre)*100 | R23: =IFERROR(VLOOKUP(B23,Estrv!A:AQ,39,FALSE),"") -> http://micrositiotransparencia.tlalpan.cdmx.gob.mx/index.html | U23: =IFERROR(VLOOKUP(B23,Estrv!A:AQ,38,FALSE),"") -> Porcentaje | V23: =IFERROR(VLOOKUP(B23,Estrv!A:AQ,40,FALSE),"") -> 0.25 | W23: =IFERROR(VLOOKUP(B23,Estrv!A:AQ,41,FALSE),"") -> 0.5 | X23: =IFERROR(VLOOKUP(B23,Estrv!A:AQ,42,FALSE),"") -> 0.75 | Y23: =IFERROR(VLOOKUP(B23,Estrv!A:AQ,43,FALSE),"") -> 1 | Z23: =IF(I23<>"", SUMIF(IAAR!B$10:O$116,I23,IAAR!O$10:O$116),"") -> 0
A24: _11 | B24: 02CD14_11 | C24: =IFERROR(VLOOKUP(B24,Estrv!A:AQ,11,FALSE),"") -> 2 | D24: =IFERROR(VLOOKUP(B24,Estrv!A:AQ,13,FALSE),"") -> 3 | E24: =IFERROR(VLOOKUP(B24,Estrv!A:AQ,15,FALSE),"") -> 2 | F24: =IFERROR(VLOOKUP(B24,Estrv!A:AQ,29,FALSE),"") -> 2.1.3 | G24: =IFERROR(VLOOKUP(B24,Estrv!A:AQ,25,FALSE),"") -> 6 | H24: =IFERROR(VLOOKUP(B24,Estrv!A:AQ,27,FALSE),"") -> 6.3 | I24: =IFERROR(VLOOKUP(B24,Estrv!A:J,9,FALSE),"") -> K027 | J24: =IFERROR(VLOOKUP(B24,Estrv!A:J,10,FALSE),"") -> Infraestructura de drenaje, alcantarillado y saneamiento en Alcaldías | L24: =IFERROR(VLOOKUP(B24,Estrv!A:AQ,36,FALSE),"") -> Indice que mide el avance de las obras para el mejoramiento de la infraestructura de drenaje, alcantarillado y saneamiento en la Alcaldia Tlalpan. | O24: =IFERROR(VLOOKUP(B24,Estrv!A:AQ,37,FALSE),"") -> ((numero de metros de desazolve de la red de drenaje realizada al trimestre/ numero de metros desazolve de la red de drenaje programada al trimestre)*0.40) +((numero de kilometros de la red de drenaje realizados al trimestre/numero de kilometros de la red de drenaje programados al trimestre)*0.50)+((numero de resumideros realizados al trimestre/numero de resumideros programados al trimestre)*0.10)+((numero de inmuebles culturales + numero de inmuebles deportivos, realizados al trimestre/numero de inmuebles culturales + numero de inmuebles deportivos programados al trimestre)*0.15)+((numero de edificios publicos realizados al trimestre/numero de edificios publicos programados al trimestre)*0.10)+((numero de espacios publicos realizados al trimestre / numero de espacios publicos programados al trimestre)*0.05)+((numero de inmuebles educativos realizados al trimestre/numero de inmuebles educativos programados al trimestre)*0.15)+((numero de obras para la mitigacion de riesgos realizados al trimestre/ numero de Obras para la mitigacion de riesgos programados al trimestre)*0.05)+((numero de m2 de banquetas realizados al trimestre / numero de m2 de banquetas programados al trimestre)*0.15)+((numero de m2 de asfalto en Vialidades Secundarias + numero de metros de balizamiento realizados al trimestre/ numero de m2 de asfalto en Vialidades Secundarias +numero de metros de balizamiento programados al trimestre)*0.15)+((numero de inmuebles de infraestructura sociales realizados al trimestre/ numero de inmuebles de infraestructura social programados al trimestre)*0.10)+( numero de piezas de luminarias atendidas al trimestre/numero de piezas de luminarias programados al trimestre)*0.05) +((numero proyectos de obra en el marco del presupuesto participativo realizados al trimestre / numero de proyectos de obra en el marco del presupuesto participativo programado al trimestre)*0.05). | R24: =IFERROR(VLOOKUP(B24,Estrv!A:AQ,39,FALSE),"") -> http://micrositiotransparencia.tlalpan.cdmx.gob.mx/index.html | U24: =IFERROR(VLOOKUP(B24,Estrv!A:AQ,38,FALSE),"") -> Indice | V24: =IFERROR(VLOOKUP(B24,Estrv!A:AQ,40,FALSE),"") -> 0.25 | W24: =IFERROR(VLOOKUP(B24,Estrv!A:AQ,41,FALSE),"") -> 0.5 | X24: =IFERROR(VLOOKUP(B24,Estrv!A:AQ,42,FALSE),"") -> 0.75 | Y24: =IFERROR(VLOOKUP(B24,Estrv!A:AQ,43,FALSE),"") -> 1 | Z24: =IF(I24<>"", SUMIF(IAAR!B$10:O$116,I24,IAAR!O$10:O$116),"") -> 0
A25: _12 | B25: 02CD14_12 | C25: =IFERROR(VLOOKUP(B25,Estrv!A:AQ,11,FALSE),"") -> 2 | D25: =IFERROR(VLOOKUP(B25,Estrv!A:AQ,13,FALSE),"") -> 2 | E25: =IFERROR(VLOOKUP(B25,Estrv!A:AQ,15,FALSE),"") -> 2 | F25: =IFERROR(VLOOKUP(B25,Estrv!A:AQ,29,FALSE),"") -> 2.2.1 | G25: =IFERROR(VLOOKUP(B25,Estrv!A:AQ,25,FALSE),"") -> 11 | H25: =IFERROR(VLOOKUP(B25,Estrv!A:AQ,27,FALSE),"") -> 11.3 | I25: =IFERROR(VLOOKUP(B25,Estrv!A:J,9,FALSE),"") -> M001 | J25: =IFERROR(VLOOKUP(B25,Estrv!A:J,10,FALSE),"") -> Actividades de apoyo administrativo | L25: =IFERROR(VLOOKUP(B25,Estrv!A:AQ,36,FALSE),"") -> Indice que mide el avance de las necesidades que en materia de servicios administrativos que requiera la estructura operativa y areas sustantivas de la Alcaldia. | O25: =IFERROR(VLOOKUP(B25,Estrv!A:AQ,37,FALSE),"") -> ((Recursos Materiales necesarios para la operacion de la Alcaldia realizados/ Recursos Materiales necesarios para la operacion de la Alcaldia programados)*0.50)+((Servicios generales necesarios para la operacion de la Alcaldia realizados/Servicios generales necesarios para la operacion de la Alcaldia)*0.50). | R25: =IFERROR(VLOOKUP(B25,Estrv!A:AQ,39,FALSE),"") -> http://micrositiotransparencia.tlalpan.cdmx.gob.mx/index.html | U25: =IFERROR(VLOOKUP(B25,Estrv!A:AQ,38,FALSE),"") -> Indice | V25: =IFERROR(VLOOKUP(B25,Estrv!A:AQ,40,FALSE),"") -> 0.25 | W25: =IFERROR(VLOOKUP(B25,Estrv!A:AQ,41,FALSE),"") -> 0.5 | X25: =IFERROR(VLOOKUP(B25,Estrv!A:AQ,42,FALSE),"") -> 0.75 | Y25: =IFERROR(VLOOKUP(B25,Estrv!A:AQ,43,FALSE),"") -> 1 | Z25: =IF(I25<>"", SUMIF(IAAR!B$10:O$116,I25,IAAR!O$10:O$116),"") -> 0
A26: _13 | B26: 02CD14_13 | C26: =IFERROR(VLOOKUP(B26,Estrv!A:AQ,11,FALSE),"") -> 2 | D26: =IFERROR(VLOOKUP(B26,Estrv!A:AQ,13,FALSE),"") -> 1 | E26: =IFERROR(VLOOKUP(B26,Estrv!A:AQ,15,FALSE),"") -> 7 | F26: =IFERROR(VLOOKUP(B26,Estrv!A:AQ,29,FALSE),"") -> 1.8.1 | G26: =IFERROR(VLOOKUP(B26,Estrv!A:AQ,25,FALSE),"") -> 11 | H26: =IFERROR(VLOOKUP(B26,Estrv!A:AQ,27,FALSE),"") -> 11.3 | I26: =IFERROR(VLOOKUP(B26,Estrv!A:J,9,FALSE),"") -> M002 | J26: =IFERROR(VLOOKUP(B26,Estrv!A:J,10,FALSE),"") -> Provisiones para contingencias | L26: =IFERROR(VLOOKUP(B26,Estrv!A:AQ,36,FALSE),"") -> Porcentaje de avance de laudos laborales y sentencias pendientes de resolucion en la Alcaldia. | O26: =IFERROR(VLOOKUP(B26,Estrv!A:AQ,37,FALSE),"") -> (Numero de laudos o sentencias atendidas / Numero de laudos o sentencias Programadas)*100 | R26: =IFERROR(VLOOKUP(B26,Estrv!A:AQ,39,FALSE),"") -> http://micrositiotransparencia.tlalpan.cdmx.gob.mx/index.html | U26: =IFERROR(VLOOKUP(B26,Estrv!A:AQ,38,FALSE),"") -> Porcentaje | V26: =IFERROR(VLOOKUP(B26,Estrv!A:AQ,40,FALSE),"") -> 0.25 | W26: =IFERROR(VLOOKUP(B26,Estrv!A:AQ,41,FALSE),"") -> 0.5 | X26: =IFERROR(VLOOKUP(B26,Estrv!A:AQ,42,FALSE),"") -> 0.75 | Y26: =IFERROR(VLOOKUP(B26,Estrv!A:AQ,43,FALSE),"") -> 1 | Z26: =IF(I26<>"", SUMIF(IAAR!B$10:O$116,I26,IAAR!O$10:O$116),"") -> 0
A27: _14 | B27: 02CD14_14 | C27: =IFERROR(VLOOKUP(B27,Estrv!A:AQ,11,FALSE),"") -> 5 | D27: =IFERROR(VLOOKUP(B27,Estrv!A:AQ,13,FALSE),"") -> 3 | E27: =IFERROR(VLOOKUP(B27,Estrv!A:AQ,15,FALSE),"") -> 3 | F27: =IFERROR(VLOOKUP(B27,Estrv!A:AQ,29,FALSE),"") -> 1.7.2 | G27: =IFERROR(VLOOKUP(B27,Estrv!A:AQ,25,FALSE),"") -> 11 | H27: =IFERROR(VLOOKUP(B27,Estrv!A:AQ,27,FALSE),"") -> 11.5 | I27: =IFERROR(VLOOKUP(B27,Estrv!A:J,9,FALSE),"") -> N001 | J27: =IFERROR(VLOOKUP(B27,Estrv!A:J,10,FALSE),"") -> Cumplimiento de los programas de protección civil | L27: =IFERROR(VLOOKUP(B27,Estrv!A:AQ,36,FALSE),"") -> Indice que mide el avance en el Programa Interno de Proteccion Civil en la Alcaldia. | O27: =IFERROR(VLOOKUP(B27,Estrv!A:AQ,37,FALSE),"") -> ((Numero de reconocimientos y vigilancia a establecimientos mercantiles realizados al trimestre/numero de reconocimientos y vigilancia a establecimientos mercantiles, programados al trimestre)*0.25) + ((Numero de dictamenes de riesgo, realizados al trimestre/numero de dictamenes de riesgo,programados al trimestre)*0.25)+((numero de atenciones a llamadas de emergencia, realizadas al trimestre/numero de atenciones a llamadas de emergencia, programadas al trimestre)*0.25)+(numero de capacitaciones, simulacros y asesorias, realizados al trimestre/numero de capacitaciones, simulacros y asesorias, programados al trimestre)*0.25). | R27: =IFERROR(VLOOKUP(B27,Estrv!A:AQ,39,FALSE),"") -> http://micrositiotransparencia.tlalpan.cdmx.gob.mx/index.html | U27: =IFERROR(VLOOKUP(B27,Estrv!A:AQ,38,FALSE),"") -> Indice | V27: =IFERROR(VLOOKUP(B27,Estrv!A:AQ,40,FALSE),"") -> 0.25 | W27: =IFERROR(VLOOKUP(B27,Estrv!A:AQ,41,FALSE),"") -> 0.5 | X27: =IFERROR(VLOOKUP(B27,Estrv!A:AQ,42,FALSE),"") -> 0.75 | Y27: =IFERROR(VLOOKUP(B27,Estrv!A:AQ,43,FALSE),"") -> 1 | Z27: =IF(I27<>"", SUMIF(IAAR!B$10:O$116,I27,IAAR!O$10:O$116),"") -> 0
A28: _15 | B28: 02CD14_15 | C28: =IFERROR(VLOOKUP(B28,Estrv!A:AQ,11,FALSE),"") -> 2 | D28: =IFERROR(VLOOKUP(B28,Estrv!A:AQ,13,FALSE),"") -> 2 | E28: =IFERROR(VLOOKUP(B28,Estrv!A:AQ,15,FALSE),"") -> 2 | F28: =IFERROR(VLOOKUP(B28,Estrv!A:AQ,29,FALSE),"") -> 2.2.2 | G28: =IFERROR(VLOOKUP(B28,Estrv!A:AQ,25,FALSE),"") -> 16 | H28: =IFERROR(VLOOKUP(B28,Estrv!A:AQ,27,FALSE),"") -> 16.7 | I28: =IFERROR(VLOOKUP(B28,Estrv!A:J,9,FALSE),"") -> R002 | J28: =IFERROR(VLOOKUP(B28,Estrv!A:J,10,FALSE),"") -> Presupuesto participativo | L28: =IFERROR(VLOOKUP(B28,Estrv!A:AQ,36,FALSE),"") -> Indice que mide el avance en los mecanismos de participacion ciudadana y la eficiencia de los proyectos participativos ganadores. | O28: =IFERROR(VLOOKUP(B28,Estrv!A:AQ,37,FALSE),"") -> ((Total de gestiones realizadas para la ejecucion de los proyectos ganadores del Programa de Presupuesto Participativo en la Alcaldia/Total de gestiones programadas para la ejecucion de los proyectos ganadores del Programa de Presupuesto Participativo en la Alcaldia)*0.30)+((Numero de unidades territoriales que iniciaron actividades o trabajos para la ejecucion de cada proyecto ganador en campo/Total de proyectos ganadores programados por unidad territorial para iniciar actividades o trabajos para la ejecucion de cada proyecto ganador en campo) *0.30)+((Total de verificaciones en campo para el seguimiento de los trabajos realizados en cada proyecto ganador por unidad territorial + elaboracion de informes del avance porcentual de los trabajos alcanzados para cada proyecto ganador por unidad territorial/Total de verificaciones en campo de los trabajos programados para cada proyecto ganador, por unidad territorial + elaboracion de informes del avance porcentual de los trabajos programados para cada proyecto ganador, por unidad territorial)*0.40). | R28: =IFERROR(VLOOKUP(B28,Estrv!A:AQ,39,FALSE),"") -> http://micrositiotransparencia.tlalpan.cdmx.gob.mx/index.html | U28: =IFERROR(VLOOKUP(B28,Estrv!A:AQ,38,FALSE),"") -> Indice | V28: =IFERROR(VLOOKUP(B28,Estrv!A:AQ,40,FALSE),"") -> 0.25 | W28: =IFERROR(VLOOKUP(B28,Estrv!A:AQ,41,FALSE),"") -> 0.5 | X28: =IFERROR(VLOOKUP(B28,Estrv!A:AQ,42,FALSE),"") -> 0.75 | Y28: =IFERROR(VLOOKUP(B28,Estrv!A:AQ,43,FALSE),"") -> 1 | Z28: =IF(I28<>"", SUMIF(IAAR!B$10:O$116,I28,IAAR!O$10:O$116),"") -> 0
A29: _16 | B29: 02CD14_16 | C29: =IFERROR(VLOOKUP(B29,Estrv!A:AQ,11,FALSE),"") -> 2 | D29: =IFERROR(VLOOKUP(B29,Estrv!A:AQ,13,FALSE),"") -> 1 | E29: =IFERROR(VLOOKUP(B29,Estrv!A:AQ,15,FALSE),"") -> 3 | F29: =IFERROR(VLOOKUP(B29,Estrv!A:AQ,29,FALSE),"") -> 2.6.8 | G29: =IFERROR(VLOOKUP(B29,Estrv!A:AQ,25,FALSE),"") -> 5 | H29: =IFERROR(VLOOKUP(B29,Estrv!A:AQ,27,FALSE),"") -> 5.1 | I29: =IFERROR(VLOOKUP(B29,Estrv!A:J,9,FALSE),"") -> S229 | J29: =IFERROR(VLOOKUP(B29,Estrv!A:J,10,FALSE),"") -> Apoyo para el desarrollo integral de la mujer | L29: =IFERROR(VLOOKUP(B29,Estrv!A:AQ,36,FALSE),"") -> Mide la atencion a mujeres que reciben formacion, capacitacion en derechos de las mujeres, la igualdad de genero y la prevencion de la violencia hacia las mujeres y atencion para el acceso a la justicia. | O29: =IFERROR(VLOOKUP(B29,Estrv!A:AQ,37,FALSE),"") -> ((Total de apoyos economicos o en especie a mujeres victimas de violencia de genero entregados / Total de apoyos economicos o en especie a mujeres victimas de violencia de genero programados) *35 + ((Total de apoyos economicos a facilitadores de servicio entregados/ total de apoyos economicos a facilitadores de servicios programados) *35 + ((Total de apoyos economicos o en especie a mujeres que desarrollen proyectos economicos, comunitarios, culturales, educativos. Entregados/ Total de apoyos economicos o en especie a mujeres que desarrollen proyectos economicos, comunitarios, culturales, educativos. Programados) *30). | R29: =IFERROR(VLOOKUP(B29,Estrv!A:AQ,39,FALSE),"") -> Listas de asisencia a las actividade de formacion y capacitacion. Registros de mujeres atendidas en prevencion de la violencia y acceso a la justicia. Reportes. | U29: =IFERROR(VLOOKUP(B29,Estrv!A:AQ,38,FALSE),"") -> Porcentaje | V29: =IFERROR(VLOOKUP(B29,Estrv!A:AQ,40,FALSE),"") -> 0 | W29: =IFERROR(VLOOKUP(B29,Estrv!A:AQ,41,FALSE),"") -> 0.4 | X29: =IFERROR(VLOOKUP(B29,Estrv!A:AQ,42,FALSE),"") -> 0.75 | Y29: =IFERROR(VLOOKUP(B29,Estrv!A:AQ,43,FALSE),"") -> 1 | Z29: =IF(I29<>"", SUMIF(IAAR!B$10:O$116,I29,IAAR!O$10:O$116),"") -> 0
A30: _17 | B30: 02CD14_17 | C30: =IFERROR(VLOOKUP(B30,Estrv!A:AQ,11,FALSE),"") -> 2 | D30: =IFERROR(VLOOKUP(B30,Estrv!A:AQ,13,FALSE),"") -> 1 | E30: =IFERROR(VLOOKUP(B30,Estrv!A:AQ,15,FALSE),"") -> 3 | F30: =IFERROR(VLOOKUP(B30,Estrv!A:AQ,29,FALSE),"") -> 3.2.1 | G30: =IFERROR(VLOOKUP(B30,Estrv!A:AQ,25,FALSE),"") -> 2 | H30: =IFERROR(VLOOKUP(B30,Estrv!A:AQ,27,FALSE),"") -> 2.4 | I30: =IFERROR(VLOOKUP(B30,Estrv!A:J,9,FALSE),"") -> S231 | J30: =IFERROR(VLOOKUP(B30,Estrv!A:J,10,FALSE),"") -> Programa para el impulso agroalimentario | L30: =IFERROR(VLOOKUP(B30,Estrv!A:AQ,36,FALSE),"") -> Contribuir al fortalecimiento o expansion de proyectos productivos, de comercializacion y capacitacion de micro, pequeñas, medianas empresas y organizaciones de la economia social y solidaria, contribuyendo a mejorar la calidad de vida de la poblacion, proyectos entre productores agropecuarios, proyectos encaminados a la proteccion y conservacion del ambiente, mediante transferencias monetarias y capacitacion especializada que contribuya a la mitigacion del desempleo. | O30: =IFERROR(VLOOKUP(B30,Estrv!A:AQ,37,FALSE),"") -> ((Total proyectos en economia sustentable beneficiados/Total de proyectos en economia sustentable programados) *35 + ((Total de proyectos de manejo de recursos naturales beneficiados/Numero de proyectos de manejo de recursos naturales programados) *.25+ ((Total de Apoyos economicos a las mujeres y los hombres que se interesen y/o realicen actividades agropecuarias entregados/ Total de Apoyos economicos a las mujeres y los hombres que se interesen y/o realicen actividades agropecuarias programados) * 25 + ((Total de capacitaciones a beneficiarios realizadas/ Total de capacitaciones a beneficiarios programadas) *15) | R30: =IFERROR(VLOOKUP(B30,Estrv!A:AQ,39,FALSE),"") -> Expedientes de los proyectos, los cuales podran ser consultados en la Direccion General de Medio Ambiente, Desarrollo Sustentable y Fomento Economico, ubicada en calle Benito Juarez 68, Col. Tlalpan Centro, C.P. 14000, Alcaldia de Tlalpan. | U30: =IFERROR(VLOOKUP(B30,Estrv!A:AQ,38,FALSE),"") -> Porcentaje | V30: =IFERROR(VLOOKUP(B30,Estrv!A:AQ,40,FALSE),"") -> 0 | W30: =IFERROR(VLOOKUP(B30,Estrv!A:AQ,41,FALSE),"") -> 0.25 | X30: =IFERROR(VLOOKUP(B30,Estrv!A:AQ,42,FALSE),"") -> 0.5 | Y30: =IFERROR(VLOOKUP(B30,Estrv!A:AQ,43,FALSE),"") -> 1 | Z30: =IF(I30<>"", SUMIF(IAAR!B$10:O$116,I30,IAAR!O$10:O$116),"") -> 0
A31: _18 | B31: 02CD14_18 | C31: =IFERROR(VLOOKUP(B31,Estrv!A:AQ,11,FALSE),"") -> 2 | D31: =IFERROR(VLOOKUP(B31,Estrv!A:AQ,13,FALSE),"") -> 1 | E31: =IFERROR(VLOOKUP(B31,Estrv!A:AQ,15,FALSE),"") -> 6 | F31: =IFERROR(VLOOKUP(B31,Estrv!A:AQ,29,FALSE),"") -> 2.6.8 | G31: =IFERROR(VLOOKUP(B31,Estrv!A:AQ,25,FALSE),"") -> 2 | H31: =IFERROR(VLOOKUP(B31,Estrv!A:AQ,27,FALSE),"") -> 2.1 | I31: =IFERROR(VLOOKUP(B31,Estrv!A:J,9,FALSE),"") -> S233 | J31: =IFERROR(VLOOKUP(B31,Estrv!A:J,10,FALSE),"") -> Apoyo de alimentación y refugio para personas vulnerables | L31: =IFERROR(VLOOKUP(B31,Estrv!A:AQ,36,FALSE),"") -> Niños entre 1 año y 3 años 11 meses de edad, incluyendo niñas y niños con discapacidad cuyas madres, padres o tutores legales residan preferentemente en la Alcaldia Tlalpan, o que tengan su centro de trabajo en la Alcaldia Tlalpan reciben el servicio de cuidado y atencion infantil. | O31: =IFERROR(VLOOKUP(B31,Estrv!A:AQ,37,FALSE),"") -> ((Total de apoyos economicos para el cuidado y atencion infantil (en estancias infantilesentregados/ Total de apoyos economicos para el cuidado y atencion infantil ( en estancias infantiles) programado * 100) | R31: =IFERROR(VLOOKUP(B31,Estrv!A:AQ,39,FALSE),"") -> Listas de Asistencia, evidencia documental que puede encontrarse en la Direccion General de Desarrollo Social. | U31: =IFERROR(VLOOKUP(B31,Estrv!A:AQ,38,FALSE),"") -> Porcentaje | V31: =IFERROR(VLOOKUP(B31,Estrv!A:AQ,40,FALSE),"") -> 0 | W31: =IFERROR(VLOOKUP(B31,Estrv!A:AQ,41,FALSE),"") -> 0.4 | X31: =IFERROR(VLOOKUP(B31,Estrv!A:AQ,42,FALSE),"") -> 0.75 | Y31: =IFERROR(VLOOKUP(B31,Estrv!A:AQ,43,FALSE),"") -> 1 | Z31: =IF(I31<>"", SUMIF(IAAR!B$10:O$116,I31,IAAR!O$10:O$116),"") -> 0
A32: _19 | B32: 02CD14_19 | C32: =IFERROR(VLOOKUP(B32,Estrv!A:AQ,11,FALSE),"") -> 2 | D32: =IFERROR(VLOOKUP(B32,Estrv!A:AQ,13,FALSE),"") -> 1 | E32: =IFERROR(VLOOKUP(B32,Estrv!A:AQ,15,FALSE),"") -> 6 | F32: =IFERROR(VLOOKUP(B32,Estrv!A:AQ,29,FALSE),"") -> 2.6.3 | G32: =IFERROR(VLOOKUP(B32,Estrv!A:AQ,25,FALSE),"") -> 10 | H32: =IFERROR(VLOOKUP(B32,Estrv!A:AQ,27,FALSE),"") -> 10.2 | I32: =IFERROR(VLOOKUP(B32,Estrv!A:J,9,FALSE),"") -> S234 | J32: =IFERROR(VLOOKUP(B32,Estrv!A:J,10,FALSE),"") -> Programa de apoyo para el bienestar familiar | L32: =IFERROR(VLOOKUP(B32,Estrv!A:AQ,36,FALSE),"") -> Numero de Personas beneficiarias que reciben apoyos economicos o en especie, que contribuyen a mejorar su calidad de vida y con ello pueden solventar sus nececidades basicas. | O32: =IFERROR(VLOOKUP(B32,Estrv!A:AQ,37,FALSE),"") -> ((Total de Apoyos economicos o en especie a jovenes que estan interesados en acceder al nivel medio superior entregados / Total de Apoyos economicos o en especie a jovenes que estan interesados en acceder al nivel medio superior programados) *14 +((Total de Apoyos economicos o en especie con el fin de proveer internet a niños con rezago educativo entregados/ Total de Apoyos economicos o en especie con el fin de proveer internet a niños con rezago educativo programados) * 14+ ((Total de apoyos economicos o en especie para la formacion musical de los integrantes de la Camerata infantil y Juvenil de Tlalpan entregados// Total de apoyos economicos o en especie para la formacion musical de los integrantes de la Camerata infantil y Juvenil de Tlalpan programados) *14 +((Total de apoyos economicos o en especie a niñas, niños y adolescentes a traves de sus cuidadores y/o tutores entregados/ Total de apoyos economicos o en especie a niñas, niños y adolescentes a traves de sus cuidadores y/o tutores programados) *14 + (Total de apoyos economicos o en especie a habitantes de la Alcaldia Tlalpan en la promocion de la salud entregados/ Total de apoyos economicos o en especie a habitantes de la Alcaldia Tlalpan en la promocion de la salud programados) *14 + (( Total de apoyos economicos o en especie a habitantes de la Alcaldia Tlalpan que realicen actividades fisicas y deportiva entregados/ Total de apoyos economicos o en especie a habitantes de la Alcaldia Tlalpan que realicen actividades fisicas y deportiva programados) *14 + ((Total de apoyos economicos o en especie a "colectivos juveniles” que desarrollen e implementen proyectos que atiendan problematicas juveniles en sus comunidades entregados/ implementen proyectos que atiendan problematicas juveniles en sus comunidades programados)*14 +(Total de de Apoyos a personas beneficiarias denominadas facilitadores que desarrollan diversas actividades en beneficio de la poblacion Tlalpense entregados / Total de Apoyos a personas beneficiarias denominadas facilitadores que desarrollan diversas actividades en beneficio de la poblacion Tlalpense programados) *16) | R32: =IFERROR(VLOOKUP(B32,Estrv!A:AQ,39,FALSE),"") -> Listas de asistencia, ordenes de pago entregadas, registros de personas atendidas, las cuales estaran disponibles para consulta en las siguientes Direcciones : Direccion General de Derechos Culturales y Educativos, Direccion General de Desarrollo Social y Direccion General de Planeacion del Desarrollo, asimismo en la siguiente direccion electronica: http://repositorio.tlalpan.gob.mx:8080/ | U32: =IFERROR(VLOOKUP(B32,Estrv!A:AQ,38,FALSE),"") -> Porcentaje | V32: =IFERROR(VLOOKUP(B32,Estrv!A:AQ,40,FALSE),"") -> 0 | W32: =IFERROR(VLOOKUP(B32,Estrv!A:AQ,41,FALSE),"") -> 0.4 | X32: =IFERROR(VLOOKUP(B32,Estrv!A:AQ,42,FALSE),"") -> 0.75 | Y32: =IFERROR(VLOOKUP(B32,Estrv!A:AQ,43,FALSE),"") -> 1 | Z32: =IF(I32<>"", SUMIF(IAAR!B$10:O$116,I32,IAAR!O$10:O$116),"") -> 0
A33: _20 | B33: 02CD14_20 | C33: =IFERROR(VLOOKUP(B33,Estrv!A:AQ,11,FALSE),"") -> 2 | D33: =IFERROR(VLOOKUP(B33,Estrv!A:AQ,13,FALSE),"") -> 1 | E33: =IFERROR(VLOOKUP(B33,Estrv!A:AQ,15,FALSE),"") -> 6 | F33: =IFERROR(VLOOKUP(B33,Estrv!A:AQ,29,FALSE),"") -> 2.6.2 | G33: =IFERROR(VLOOKUP(B33,Estrv!A:AQ,25,FALSE),"") -> 10 | H33: =IFERROR(VLOOKUP(B33,Estrv!A:AQ,27,FALSE),"") -> 10.2 | I33: =IFERROR(VLOOKUP(B33,Estrv!A:J,9,FALSE),"") -> S235 | J33: =IFERROR(VLOOKUP(B33,Estrv!A:J,10,FALSE),"") -> Apoyos para el cuidado del adulto mayor | L33: =IFERROR(VLOOKUP(B33,Estrv!A:AQ,36,FALSE),"") -> Personas adultas mayores que participan en los colectivos y redes de apoyo. | O33: =IFERROR(VLOOKUP(B33,Estrv!A:AQ,37,FALSE),"") -> ((Total de apoyos economicos a personas mayores de 60 años en estado de vulnerabilidad entregados/Total de apoyos economicos a personas mayores de 60 años en estado de vulnerabilidad programados)*40)+((Total de capacitaciones impartidas por facilitadores de servicios/Total de capacitaciones programadas a impartir por facilitadores de servicios)*40)+(Total de acompañamientos y asesorias brindadas por los facilitadores de servicios/Total de acompañamientos y asesorias programadas)*20) | R33: =IFERROR(VLOOKUP(B33,Estrv!A:AQ,39,FALSE),"") -> Listas de asistencia, ordenes de pago entregadas, registros de personas atendidas, las cuales estaran disponibles para consulta en la Direccion de Atencion a Grupos Prioritarios, ubicada en el interior del Parque Juana de Asbaje, calle Moneda s/n, Col. Tlalpan Centro, C.P. 14000, Alcaldia de Tlalpan. | U33: =IFERROR(VLOOKUP(B33,Estrv!A:AQ,38,FALSE),"") -> Porcentaje | V33: =IFERROR(VLOOKUP(B33,Estrv!A:AQ,40,FALSE),"") -> 0 | W33: =IFERROR(VLOOKUP(B33,Estrv!A:AQ,41,FALSE),"") -> 0.4 | X33: =IFERROR(VLOOKUP(B33,Estrv!A:AQ,42,FALSE),"") -> 0.75 | Y33: =IFERROR(VLOOKUP(B33,Estrv!A:AQ,43,FALSE),"") -> 1 | Z33: =IF(I33<>"", SUMIF(IAAR!B$10:O$116,I33,IAAR!O$10:O$116),"") -> 0
A34: _21 | B34: 02CD14_21 | C34: =IFERROR(VLOOKUP(B34,Estrv!A:AQ,11,FALSE),"") -> 2 | D34: =IFERROR(VLOOKUP(B34,Estrv!A:AQ,13,FALSE),"") -> 1 | E34: =IFERROR(VLOOKUP(B34,Estrv!A:AQ,15,FALSE),"") -> 3 | F34: =IFERROR(VLOOKUP(B34,Estrv!A:AQ,29,FALSE),"") -> 2.7.1 | G34: =IFERROR(VLOOKUP(B34,Estrv!A:AQ,25,FALSE),"") -> 10 | H34: =IFERROR(VLOOKUP(B34,Estrv!A:AQ,27,FALSE),"") -> 10.2 | I34: =IFERROR(VLOOKUP(B34,Estrv!A:J,9,FALSE),"") -> U048 | J34: =IFERROR(VLOOKUP(B34,Estrv!A:J,10,FALSE),"") -> Apoyos sociales | L34: =IFERROR(VLOOKUP(B34,Estrv!A:AQ,36,FALSE),"") -> Mide la atencion a mujeres que reciben formacion, capacitacion en derechos de las mujeres, la igualdad de genero y la prevencion de la violencia hacia las mujeres y atencion para el acceso a la justicia. | O34: =IFERROR(VLOOKUP(B34,Estrv!A:AQ,37,FALSE),"") -> ((Total de apoyos economicos o en especie a mujeres victimas de violencia de genero entregados / Total de apoyos economicos o en especie a mujeres victimas de violencia de genero programados) *35 + ((Total de apoyos economicos a facilitadores de servicio entregados/ total de apoyos economicos a facilitadores de servicios programados) *35 + (Total de apoyos economicos o en especie a mujeres que desarrollen proyectos economicos, comunitarios, culturales, educativos. Entregados/ Total de apoyos economicos o en especie a mujeres que desarrollen proyectos economicos, comunitarios, culturales, educativos. Programados) *30). | R34: =IFERROR(VLOOKUP(B34,Estrv!A:AQ,39,FALSE),"") -> Listas de asisencia a las actividade de formacion y capacitacion. Registros de mujeres atendidas en prevencion de la violencia y acceso a la justicia. Reportes. http://micrositiotransparencia.tlalpan.cdmx.gob.mx/index.html | U34: =IFERROR(VLOOKUP(B34,Estrv!A:AQ,38,FALSE),"") -> Porcentaje | V34: =IFERROR(VLOOKUP(B34,Estrv!A:AQ,40,FALSE),"") -> 0 | W34: =IFERROR(VLOOKUP(B34,Estrv!A:AQ,41,FALSE),"") -> 0.4 | X34: =IFERROR(VLOOKUP(B34,Estrv!A:AQ,42,FALSE),"") -> 0.75 | Y34: =IFERROR(VLOOKUP(B34,Estrv!A:AQ,43,FALSE),"") -> 1 | Z34: =IF(I34<>"", SUMIF(IAAR!B$10:O$116,I34,IAAR!O$10:O$116),"") -> 0
A35: _22 | B35: 02CD14_22 | C35: =IFERROR(VLOOKUP(B35,Estrv!A:AQ,11,FALSE),"") ->  | D35: =IFERROR(VLOOKUP(B35,Estrv!A:AQ,13,FALSE),"") ->  | E35: =IFERROR(VLOOKUP(B35,Estrv!A:AQ,15,FALSE),"") ->  | F35: =IFERROR(VLOOKUP(B35,Estrv!A:AQ,29,FALSE),"") ->  | G35: =IFERROR(VLOOKUP(B35,Estrv!A:AQ,25,FALSE),"") ->  | H35: =IFERROR(VLOOKUP(B35,Estrv!A:AQ,27,FALSE),"") ->  | I35: =IFERROR(VLOOKUP(B35,Estrv!A:J,9,FALSE),"") ->  | J35: =IFERROR(VLOOKUP(B35,Estrv!A:J,10,FALSE),"") ->  | L35: =IFERROR(VLOOKUP(B35,Estrv!A:AQ,36,FALSE),"") ->  | O35: =IFERROR(VLOOKUP(B35,Estrv!A:AQ,37,FALSE),"") ->  | R35: =IFERROR(VLOOKUP(B35,Estrv!A:AQ,39,FALSE),"") ->  | U35: =IFERROR(VLOOKUP(B35,Estrv!A:AQ,38,FALSE),"") ->  | V35: =IFERROR(VLOOKUP(B35,Estrv!A:AQ,40,FALSE),"") ->  | W35: =IFERROR(VLOOKUP(B35,Estrv!A:AQ,41,FALSE),"") ->  | X35: =IFERROR(VLOOKUP(B35,Estrv!A:AQ,42,FALSE),"") ->  | Y35: =IFERROR(VLOOKUP(B35,Estrv!A:AQ,43,FALSE),"") ->  | Z35: =IF(I35<>"", SUMIF(IAAR!B$10:O$116,I35,IAAR!O$10:O$116),"") -> 
A36: _23 | B36: 02CD14_23 | C36: =IFERROR(VLOOKUP(B36,Estrv!A:AQ,11,FALSE),"") ->  | D36: =IFERROR(VLOOKUP(B36,Estrv!A:AQ,13,FALSE),"") ->  | E36: =IFERROR(VLOOKUP(B36,Estrv!A:AQ,15,FALSE),"") ->  | F36: =IFERROR(VLOOKUP(B36,Estrv!A:AQ,29,FALSE),"") ->  | G36: =IFERROR(VLOOKUP(B36,Estrv!A:AQ,25,FALSE),"") ->  | H36: =IFERROR(VLOOKUP(B36,Estrv!A:AQ,27,FALSE),"") ->  | I36: =IFERROR(VLOOKUP(B36,Estrv!A:J,9,FALSE),"") ->  | J36: =IFERROR(VLOOKUP(B36,Estrv!A:J,10,FALSE),"") ->  | L36: =IFERROR(VLOOKUP(B36,Estrv!A:AQ,36,FALSE),"") ->  | O36: =IFERROR(VLOOKUP(B36,Estrv!A:AQ,37,FALSE),"") ->  | R36: =IFERROR(VLOOKUP(B36,Estrv!A:AQ,39,FALSE),"") ->  | U36: =IFERROR(VLOOKUP(B36,Estrv!A:AQ,38,FALSE),"") ->  | V36: =IFERROR(VLOOKUP(B36,Estrv!A:AQ,40,FALSE),"") ->  | W36: =IFERROR(VLOOKUP(B36,Estrv!A:AQ,41,FALSE),"") ->  | X36: =IFERROR(VLOOKUP(B36,Estrv!A:AQ,42,FALSE),"") ->  | Y36: =IFERROR(VLOOKUP(B36,Estrv!A:AQ,43,FALSE),"") ->  | Z36: =IF(I36<>"", SUMIF(IAAR!B$10:O$116,I36,IAAR!O$10:O$116),"") -> 
K41: ELABORÓ | Y41: AUTORIZÓ
K44: NOMBRE: | Y44: NOMBRE:
K46: CARGO: | X46: CARGO:
K47: CUENTA DE CORREO INSTITUCIONAL: | Y47: CUENTA DE CORREO INSTITUCIONAL:
K48: TELÉFONO DE CONTACTO: | O48: EXTENSIÓN: | Y48: TELÉFONO DE CONTACTO: | AB48: EXTENSIÓN:

Sheet Base (hidden)
A1: DU | C1: Acciones | D1: CPP | E1: PP | F1: Acción | G1: Meta 1T | H1: Meta 2T | I1: Meta 3T | J1: Meta 4T | K1: Ponderación | L1: Meta absoluta | M1: Trimestral
A2: 01C001 | B2: 01C001_1 | C2: 01C001M001_1 | D2: M001 | E2: ACTIVIDADES DE APOYO ADMINISTRATIVO | F2: Pago de servicios generales, servicios profesionales, conservación y mantenimiento del inmueble, así como servicios de difusión. | G2: 0.25 | H2: 0.5 | I2: 0.75 | J2: 1 | K2: 0.5 | L2: Se programaron 28 contrataciones de servicios los cuáles son: servicio de estacionamiento, servicio de radiocomunicación digital, servicio de acceso a internet, telefonía tradicional, primas por seguro de vida de personal, arrendamiento de apoyos logísticos para eventos, servicio de fotocopiado, servicio de vigilancia, servicio de traducción de idiomas, aseguramiento de bienes patrimoniales, servicio de mantenimiento y recarga de extintores, entre otros. | M2: Se llevó la consolidación de contratos, lo que representan un avance del XXX por ciento de avance de las 28 contrataciones programadas para el presente ejercicio fiscal, correspondientes a: los servicios de estacionamiento, servicio de radiocomunicación digital, servicio de acceso a internet, telefonía tradicional, primas por seguro de vida de personal, arrendamiento de apoyos logísticos para eventos, servicio de fotocopiado, servicio de vigilancia, servicio de traducción de idiomas, aseguramiento de bienes patrimoniales, servicio de mantenimiento y recarga de extintores, entre otros. | O2: 01C001M001
A3: 01C001 | B3: 01C001_2 | C3: 01C001M001_2 | D3: M001 | E3: ACTIVIDADES DE APOYO ADMINISTRATIVO | F3: Adquisición de materiales, insumos y suministros requeridos para el desempeño de las actividades administrativas. | G3: 0.25 | H3: 0.5 | I3: 0.75 | J3: 1 | K3: 0.5 | L3: Se programaron 15 contratos para la adquisición de materiales, insumos como son: papel bond, adquisición de vales, material de oficina, tóner, lonas, gafetes, letreros, impresión de grabados, agua de garrafón, material de limpieza, material eléctrico, entre otros. | M3: Se llevó a cabo la consolidación de XXX contratos los cuáles representan un avance del XXX por ciento de avance de los 15 programados para el presente ejercicio fiscal para la adquisición de materiales, insumos como son: papel bond, adquisición de vales, material de oficina, tóner, lonas, gafetes, letreros, impresión de grabados, agua de garrafón,material de limpieza, material eléctrico, entre otros. | O3: 01C001M001
A4: 01C001 | B4: 01C001_3 | C4: 01C001M002_1 | D4: M002 | E4: PROVISIONES PARA CONTINGENCIAS | F4: Cumplimiento a los laudos emitidos por la Junta de Conciliación y Arbitraje y provisiones derivadas de contingencias económicas. | G4: 0 | H4: 0.2 | I4: 0.4 | J4: 1 | K4: 1 | L4: Se programó el pago de XXX sentencias emitidas por los Órganos Jurisdiccionales. | M4: Se llevó a cabo el pago de XXX sentencias emitidas por los Órganos Jurisdiccionales, lo que representa un avance del XXX por ciento de los XXX programados para el presente ejercicio fiscal. | O4: 01C001M002
A5: 01C001 | B5: 01C001_4 | C5: 01C001N001_1 | D5: N001 | E5: CUMPLIMIENTO DE LOS PROGRAMAS DE PROTECCION CIVIL | F5: Cursos de capacitación impartidos en materia de Protección Civil a las personas servidoras públicas de la Jefatura de Gobierno. | G5: 0.25 | H5: 0.5 | I5: 0.75 | J5: 1 | K5: 0.5 | L5: Se programaron XXX cursos de capacitación en materia de Protección Civil a las personas servidoras públicas de la Jefatura de Gobierno. | M5: Se llevó a cabo la impartición de XXX cursos de capacitación en materia de Protección Civil a las personas servidoras públicas de la Jefatura de Gobierno, lo que representa un avance del XXX por ciento de XXX programados en el presente ejercicio fiscal. | O5: 01C001N001
A6: 01C001 | B6: 01C001_5 | C6: 01C001N001_2 | D6: N001 | E6: CUMPLIMIENTO DE LOS PROGRAMAS DE PROTECCION CIVIL | F6: Realización de simulacros con las personas servidoras públicas de la Jefatura de Gobierno. | G6: 0.25 | H6: 0.5 | I6: 0.75 | J6: 1 | K6: 0.5 | L6: Se programó la coordinación de 2 simulacros para el ejercicio fiscal 2023. | M6: Se llevó a cabo la coordinación de XXX simulacros, lo que representa un avance del XXX por ciento de los dos programados para el presente ejercicio fiscal. | O6: 01C001N001
A7: 01C001 | B7: 01C001_6 | C7: 01C001P020_1 | D7: P020 | E7: PLANEACION Y SEGUIMIENTO DE LA POLITICA GUBERNAMENTAL | F7: Atención a las solicitudes y demandas ciudadanas. | G7: 0.211 | H7: 0.472 | I7: 0.733 | J7: 1 | K7: 0.2 | L7: Se estima la recepción de 243,500 solicitudes de demandas ciudadanas captadas de la siguiente manera: 213,996 a través de medios electrónicos, 12,079 de manera presencial y 17,425 vía telefónica en temas de vivienda, seguridad, fiscalía, consejería, trabajo, entre otros; de las cuáles: 205,507 se dará atención inmediata y no requieren de respuesta y 37,993 se canalizarán a las instancias correspondientes. | M7: Se recibieron XXX solicitudes de demanda ciudadana, lo que representa un avance del XXX por ciento de las 243,500 estimadas para el presente ejercicio fiscal, mismas que fueron captadas de la siguiente manera: a través de medios electrónicos, XXX de manera presencial y XXX vía telefónica, con temas como vivienda, seguridad, fiscalía consejería, trabajo, entre otros, de las cuales: XXX se dará atención inmediata y no requieren respuesta y XXX se canalizarán a las instancias correspondientes. | O7: 01C001P020
A8: 01C001 | B8: 01C001_7 | C8: 01C001P020_2 | D8: P020 | E8: PLANEACION Y SEGUIMIENTO DE LA POLITICA GUBERNAMENTAL | F8: Coordinación de los Gabinetes de Seguridad Ciudadana y Procuración de Justicia. | G8: 0.211 | H8: 0.472 | I8: 0.733 | J8: 1 | K8: 0.2 | L8: Se programó el seguimiento de 8 asuntos del Gabinete de Seguridad Ciudadana y Procuración de Justicia, los cuales se integran de la siguiente manera: 1 Plan de Trabajo para el ejercicio 2023 para la Coordinación de los Gabinetes de Seguridad Ciudadana y Procuración de Justicia de la Jefatura de Gobierno; Coordinación para realizar 15,238 sesiones de Gabinetes de Seguridad Ciudadana y Procuración de Justicia en la coordinaciones territoriales; 4,985 Actividades de seguimiento, monitoreo e integración de reportes de incidencia delictiva acordados en los Gabinetes de Seguridad; 154 Sesiones de coordinación con autoridades del Gobierno de la Ciudad de México, Alcaldías e Instituciones educativas de nivel Medio Superior como la Universidad Nacional Autónoma de México y el Instituto Politécnico Nacional para la atención integral del Programa Sendero Seguro en escuelas; 7 Sesiones para la Integración y Seguimiento de la mesa coordinadora Interinstitucional para el Programa Chatarra 2019-2024; 2 Actividades encaminadas a mejorar la atención de la Ciudadanía en materia de Seguridad Ciudadana y Procuración de Justicia; 71 Visitas a instituciones de Seguridad Ciudadana y Procuración de Justicia con el propósito de fomentar el combate a la corrupción; Coordinación para gestionar y dar seguimiento a 30 mesas de trabajo para la atención a delitos específicos de atención prioritaria acorde a instrucciones. | M8: Se realizó el seguimiento de XXX asuntos del Gabinete de Seguridad Ciudadana y Procuración de Justicia, lo que representa un avance del XXX por ciento de los 8 programados para el presente ejercicio fiscal, los cuáles se integran de la siguiente manera: 1 Plan de Trabajo para el ejercicio 2023 para la Coordinación de los Gabinetes de Seguridad Ciudadana y Procuración de Justicia de la Jefatura de Gobierno; Coordinación para realizar XXX sesiones de Gabinetes de Seguridad Ciudadana y Procuración de Justicia en la coordinaciones territoriales; XXX Actividades de seguimiento, monitoreo e integración de reportes de incidencia delictiva acordados en los Gabinetes de Seguridad; XXX Sesiones de coordinación con autoridades del Gobierno de la Ciudad de México, Alcaldías e Instituciones educativas de nivel Medio Superior como la Universidad Nacional Autónoma de México y el Instituto Politécnico Nacional para la atención integral del Programa Sendero Seguro en escuelas; XXX Sesiones para la Integración y Seguimiento de la mesa coordinadora Interinstitucional para el Programa Chatarra 2019-2024; XXX Actividades encaminadas a mejorar la atención de la Ciudadanía en materia de Seguridad Ciudadana y Procuración de Justicia; XXX Visitas a instituciones de Seguridad Ciudadana y Procuración de Justicia con el propósito de fomentar el combate a la corrupción; y Coordinación para gestionar y dar seguimiento a XXX mesas de trabajo para la atención a delitos específicos de atención prioritaria acorde a instrucciones. | O8: 01C001P020
A9: 01C001 | B9: 01C001_8 | C9: 01C001P020_3 | D9: P020 | E9: PLANEACION Y SEGUIMIENTO DE LA POLITICA GUBERNAMENTAL | F9: Seguimiento a la Agenda Internacional del Gobierno de la Ciudad de México. | G9: 0.211 | H9: 0.472 | I9: 0.733 | J9: 1 | K9: 0.2 | L9: Se programó el seguimiento a la Agenda Internacional del Gobierno de la Ciudad de México a través de 106 actividades relacionadas con temas que se enlistan a continuación: 65 de cooperación internacional, 13 de igualdad de derechos, 9 de cultura, 11 de educación e innovación, de movilidad y sustentabilidad. | M9: Se llevaron a cabo 22 seguimientos a la Agenda Internacional de Gobierno de la Ciudad de México, lo que representa un avance del XXX por ciento de las 106 programadas para el presente ejercicio fiscal, las cuales se enlistan a continuación: XXX de cooperación internacional, XXX de igualdad de derechos, XXX de cultura, XXX de educación e innovación, 4 de movilidad y sustentabilidad. | O9: 01C001P020
A10: 01C001 | B10: 01C001_9 | C10: 01C001P020_4 | D10: P020 | E10: PLANEACION Y SEGUIMIENTO DE LA POLITICA GUBERNAMENTAL | F10: Entrega de Viviendas Reconstruidas y/o Rehabilitadas. | G10: 0.211 | H10: 0.472 | I10: 0.733 | J10: 1 | K10: 0.2 | L10: Se programó el seguimiento a la entrega de 4,603 viviendas de las cuáles 2,801 corresponden al modelo de atención multifamiliar y 1,802 al modelo de atención unifamiliar; de casas y departamentos que resultaron dañados por el sismo del 19 de septiembre del 2017. | M10: Se llevó a cabo la entrega de XXX viviendas dañadas por el sismo del 19 de septiembre del 2017, lo que representa un avance del XXX por ciento de las 4,603 programadas para el presente ejercicio fiscal, las cuáles XXX corresponden al modelo multifamiliar y XXX al modelo unifamiliar. | O10: 01C001P020
A11: 01C001 | B11: 01C001_10 | C11: 01C001P020_5 | D11: P020 | E11: PLANEACION Y SEGUIMIENTO DE LA POLITICA GUBERNAMENTAL | F11: Liberación para la dispersión de apoyos para el pago de rentas. | G11: 0.211 | H11: 0.472 | I11: 0.733 | J11: 1 | K11: 0.2 | L11: Se programó la liberación para la dispersión de 41,720 apoyos para el pago de rentas de viviendas que resultaron dañadas por el sismo del 19 de septiembre del 2017. | M11: Se llevó a cabo la liberación para la dispersión de XXX apoyos a XXX familias, lo que representa un avance del XXX por ciento de los 41,720 apoyos programados en el presente ejercicio fiscal, para las familias desplazadas por los daños ocasionados por el sismo del 19 de septiembre del 2017. | O11: 01C001P020
A12: 01CD03 | B12: 01CD03_1 | C12: 01CD03E065_1 | D12: E065 | E12: SERVICIO INTEGRAL DE OPERACION Y ATENCION A EMERGENCIAS | F12: Mantenimiento y ampliación a la infraestructura, altavoces, botones de auxilio y Sistemas Tecnológicos de Videovigilancia (STV’s) y conectividad con el que opera el C5 y C2. | G12: 0.97 | H12: 0.97 | I12: 0.98 | J12: 0.98 | K12: 0.25 | L12: Se programaron 15,461 servicios de mantenimiento preventivo y correctivo a: XXX Sistemas Tecnológicos de Videovigilancia (STV´S); XXX conexiones de Redes de Área Local y Red de Área Amplia LAN/WAN y XXX servicios a los enlaces RPV GPON A 20MBPS y Conexiones diversas, indispensables para la operación del "Sistema Multidisciplinario con Sensores para los Centros de Comando, Control, Cómputo, Comunicación y Contacto Ciudadano de la Ciudad de México. | M12: Se realizaron XXX mantenimientos preventivos y correctivos, lo que representa un avance del 97 por ciento de los 15,461 programados para el presente ejercicio fiscal, mismos que corresponden a: XXX para los Sistemas Tecnológicos de Videovigilancia (STV´S); XXX a las conexiones de Redes de Área Local y Red de Área Amplia LAN/WAN y XXX servicios a los enlaces RPV GPON A 20MBPS y Conexiones diversas, indispensables para la operación del "Sistema Multidisciplinario con Sensores para los Centros de Comando, Control, Cómputo, Comunicación y Contacto Ciudadano de la Ciudad de México. | O12: 01CD03E065
A13: 01CD03 | B13: 01CD03_2 | C13: 01CD03E065_2 | D13: E065 | E13: SERVICIO INTEGRAL DE OPERACION Y ATENCION A EMERGENCIAS | F13: Atención a los servicios de llamadas de emergencia a través del número único armonizado 9-1-1 (nueve, uno, uno). | G13: 0.97 | H13: 0.97 | I13: 0.98 | J13: 0.98 | K13: 0.25 | L13: Se estima la recepción de 1,735,000 llamadas a través de los números de emergencia, mismas que corresponden a: 1,700,000 llamadas por el número 9-1-1 y 35,000 por la línea de denuncia anónima 0-8-9. | M13: Se atendieron XXX llamadas de emergencia lo que representa un avance del 97 por ciento de las 1,735,000 estimadas para el presente ejercicio fiscal, mismas que corresponden a: XXX llamadas recibidas a través del la línea de emergencia 9-1-1 y XXXX por la línea de denuncia anónima 0-8-9. | O13: 01CD03E065
A14: 01CD03 | B14: 01CD03_3 | C14: 01CD03E065_3 | D14: E065 | E14: SERVICIO INTEGRAL DE OPERACION Y ATENCION A EMERGENCIAS | F14: Atención de servicio médico prehospitalario por el sistema de radiocomunicación en las unidades médicas. | G14: 0.97 | H14: 0.97 | I14: 0.98 | J14: 0.98 | K14: 0.25 | L14: Se estima dar atención a 63 servicios médicos prehospitalarios captados a través del sistema de radiocomunicación de las unidades médicas. | M14: Se brindó atención a XXX servicios médicos prehospitalarios, lo que representa un avance del XXX de los 63 estimados para el presente ejercicio fiscal, los cuáles corresponden a: XXX accidentes viales; XXX atentados; XXX amenazas de homicidio y XXX asaltos. | O14: 01CD03E065
A15: 01CD03 | B15: 01CD03_4 | C15: 01CD03E065_4 | D15: E065 | E15: SERVICIO INTEGRAL DE OPERACION Y ATENCION A EMERGENCIAS | F15: Seguimiento a la generación de información y automatización de procesos estadísticos y cartográficos para la operación estratégica. | G15: 0.97 | H15: 0.97 | I15: 0.98 | J15: 0.98 | K15: 0.25 | L15: Se programó la realización de 365 estudios estadísticos y 864 estudios cartográficos, los cuales son esenciales para la operación estratégica del C5. | M15: Se realizaron XXX estudios estadísticos y XXX estudios cartográficos, lo que representa un avance del 97 por ciento de los 365 y 864 programados para el presente ejercicio fiscal, los cuáles son esenciales para la operación estratégica del C5. | O15: 01CD03E065
A16: 01CD03 | B16: 01CD03_5 | C16: 01CD03M001_1 | D16: M001 | E16: ACTIVIDADES DE APOYO ADMINISTRATIVO | F16: Pago de servicios generales, servicios profesionales, conservación y mantenimiento del inmueble, así como servicios de difusión. | G16: 0.25 | H16: 0.5 | I16: 0.75 | J16: 1 | K16: 0.5 | L16: Se programó la contratación de 12 servicios necesarios para el desempeño del C5 y los C2, mismos que se integran de vigilancia, limpieza, fumigación, jardinería, mantenimiento del inmueble, mantenimiento de vehículos. | M16: Se realizó la contratación de XXX servicios necesarios para el desempeño del C5, lo que representa un avance del XXX por ciento de los 12 programados para el presente ejercicio fiscal; mismos que se integran de la telefonía, internet, limpieza, mantenimiento del inmueble y de difusión. | O16: 01CD03M001
A17: 01CD03 | B17: 01CD03_6 | C17: 01CD03M001_2 | D17: M001 | E17: ACTIVIDADES DE APOYO ADMINISTRATIVO | F17: Adquisición de materiales, insumos y suministros requeridos para el desempeño de las actividades administrativas. | G17: 0.25 | H17: 0.5 | I17: 0.75 | J17: 1 | K17: 0.5 | L17: Se programó la adquisición de insumos y suministros 12 requeridos para el desempeño de las actividades operativas y administrativas. | M17: Se realizó la compra de XXX insumos y suministros requeridos para el desempeño de las actividades administrativas, lo que representa un avance del XXX por ciento de las 12 programadas para el presente ejercicio fiscal. | O17: 01CD03M001
A18: 01CD03 | B18: 01CD03_7 | C18: 01CD03M002_1 | D18: M002 | E18: PROVISIONES PARA CONTINGENCIAS | F18: Cumplimiento a los laudos emitidos por la Junta de Conciliación y Arbitraje. | G18: 0 | H18: 0.2 | I18: 0.4 | J18: 1 | K18: 1 | L18: Se estima el pago de 2 sentencias emitidas por los órganos jurisdiccionales. | M18: Se realizó el pago de XXX sentencias emitidas por los órganos jurisdiccionales, lo que representa un avance del XXX por ciento de las 2 estimadas para el presente ejercicio fiscal. | O18: 01CD03M002
A19: 01CD03 | B19: 01CD03_8 | C19: 01CD03N001_1 | D19: N001 | E19: CUMPLIMIENTO DE LOS PROGRAMAS DE PROTECCION CIVIL | F19: Implementación e Integración del Programa Interno de Protección Civil del C5 y C2, | G19: 0.25 | H19: 0.5 | I19: 0.75 | J19: 1 | K19: 0.5 | L19: Se programó 1 actividad de acuerdo a la implementación del Programa de Protección Civil del C5 y C2. | M19: Se realizaron XXX actividad en materia de Protección Civil, lo que representan un avance del XXX por ciento de 1 programada para el presente ejercicio fiscal, esto de acuerdo a la implementación del Programa de Protección Civil del C5 y C2. | O19: 01CD03N001
A20: 01CD03 | B20: 01CD03_9 | C20: 01CD03N001_2 | D20: N001 | E20: CUMPLIMIENTO DE LOS PROGRAMAS DE PROTECCION CIVIL | F20: Cursos de capacitación impartidos en materia de Protección Civil a las personas servidoras públicas del C5. | G20: 0.25 | H20: 0.5 | I20: 0.75 | J20: 1 | K20: 0.5 | L20: Se programaron 6 cursos en materia de Protección Civil a 30 personas servidoras públicas que laboran en el C5. | M20: Se llevaron a cabo XXX cursos en materia de Protección Civil a XXX personas servidoras públicas que laboran en el C5, lo que representa un avance del XXX por ciento de los 6 programados para el presente ejercicio fiscal. | O20: 01CD03N001
A21: 01CD06 | B21: 01CD06_1 | C21: 01CD06E005_1 | D21: E005 | E21: ACCIONES PARA MEJORAR LA GOBERNANZA DIGITAL | F21: Número de nuevos usuarios incrementado en la plataforma Llave CDMX, con el aumento de trámites y servicios en dicha herramienta digital. | G21: 0.24 | H21: 0.48 | I21: 0.73 | J21: 1 | K21: 0.35 | L21: Se estima el aumento del uso de la plataforma Llave CDMX con 1,290,000 nuevos usuarios, mediante la integración de trámites con el uso de la Llave CDMX para evitar los trámites presenciales. | M21: Se registraron 373,810 nuevos usuarios a la plataforma Llave CDMX para la realización de trámites digitales en la Ciudad de México lo que representa un avance del 29% de los 1,290,000 nuevos usuarios estimados para el presente ejercicio fiscal. | O21: 01CD06E005
A22: 01CD06 | B22: 01CD06_2 | C22: 01CD06E005_2 | D22: E005 | E22: ACCIONES PARA MEJORAR LA GOBERNANZA DIGITAL | F22: Servicios de infraestructura tecnológica atendidos. | G22: 0.24 | H22: 0.48 | I22: 0.73 | J22: 1 | K22: 0.35 | L22: Se programaron 3,900 servicios de administración de la infraestructura tecnológica de la Ciudad de México para el buen funcionamiento de las plataformas de la Ciudad, las cuáles corresponde a gestiones de base de datos, seguridad informática, redes de telecomunicaciones, hospedaje web y nombres de dominio para el procesamiento. | M22: Se realizaron 884 atenciones de servicios de administración de la infraestructura tecnológica de la Ciudad de México para el buen funcionamiento de las plataformas de la Ciudad, las cuáles corresponden a gestiones de base de datos, seguridad informática, redes de telecomunicaciones, hospedaje web y nombres de dominio para el procesamiento, que representa un avance del 23 por ciento de los 3,900 servicios programados para el presente ejercicio fiscal. | O22: 01CD06E005
A23: 01CD06 | B23: 01CD06_3 | C23: 01CD06E005_3 | D23: E005 | E23: ACCIONES PARA MEJORAR LA GOBERNANZA DIGITAL | F23: Desarrollo y mantenimiento de servicios de infraestructura tecnológica a las Entidades de la Administración Publica que lo solicitan. | G23: 0.24 | H23: 0.48 | I23: 0.73 | J23: 1 | K23: 0.3 | L23: Se programó el desarrollo de 71 plataformas informáticas para Entes de la Administración Pública, además de la atención de 29 solicitudes de mantenimiento a las plataformas. | M23: Se atendieron 18 solicitudes de desarrollo y 53 solicitudes de mantenimiento de aplicaciones informáticas y sistemas de información, lo que representa un avance del 71 por ciento en el desarrollo 71 plataformas informáticas de Entes de la Administración Pública además de 29 solicitudes de mantenimiento a plataformas existentes programadas para el presente ejercicio fiscal. | O23: 01CD06E005
A24: 01CD06 | B24: 01CD06_4 | C24: 01CD06E157_1 | D24: E157 | E24: ATENCION Y ORIENTACION TELEFONICA SOBRE TRAMITES Y SERVICIOS | F24: Atención de solicitudes y consulta ciudadanas que se reciben a través del Sistema Unificado de Atención Ciudadana. | G24: 0.25 | H24: 0.5 | I24: 0.75 | J24: 1 | K24: 1 | L24: Se estima la atención a 10,586,000 requerimientos de información puntual de la ciudadanía sobre: servicios, trámites, hoy no circula, calidad del aire y demás temas de interés, así como canalizaciones y prestación de servicios de no emergencia. | M24: Se atendieron XXX solicitudes de información, lo que presenta un avance del XXX por ciento de los 10,586,000 requerimientos de información estimados para el presente ejercicio fiscal, los cuales corresponden a xxx recibidas mediante el SUAC, xxx solicitudes vía telefónica y xxx por servicios integrales y especializados. | O24: 01CD06E157
A25: 01CD06 | B25: 01CD06_5 | C25: 01CD06M001_1 | D25: M001 | E25: ACTIVIDADES DE APOYO ADMINISTRATIVO | F25: Materiales y suministros requeridos para el desempeño de las funciones administrativas de la ADIP. | G25: 0.15 | H25: 0.35 | I25: 0.75 | J25: 1 | K25: 0.5 | L25: Se programó la realización de xxx procedimientos de adquisición de materiales y suministros para el desempeño de las funciones administrativas de la ADIP. | M25: Se realizaron XXX procedimientos de adquisición de materiales y suministros, lo que representa un XXX por ciento de avance de los XXX programados para el presente ejercicio fiscal. | O25: 01CD06M001
A26: 01CD06 | B26: 01CD06_6 | C26: 01CD06M001_2 | D26: M001 | E26: ACTIVIDADES DE APOYO ADMINISTRATIVO | F26: Servicios generales requeridos para el desempeño de las funciones administrativas de la ADIP. | G26: 0.15 | H26: 0.35 | I26: 0.75 | J26: 1 | K26: 0.5 | L26: Se programaron XXX procedimientos de contratación de servicios generales para el desempeño de las funciones administrativas de la ADIP. | M26: Se realizaron XXX procedimientos de contratación de servicios generales, lo que representa un XXX por ciento de avance de las XXX contrataciones programadas para el presente ejercicio fiscal. | O26: 01CD06M001
A27: 01CD06 | B27: 01CD06_7 | C27: 01CD06M002_1 | D27: M002 | E27: PROVISIONES PARA CONTINGENCIAS | F27: Atención a las contingencias, acciones penales, demandas, resoluciones judiciales, entre otras, que pueden ser adquiridas por la Agencia Digital de Innovación Publica. | G27: 0 | H27: 0.25 | I27: 0.4 | J27: 1 | K27: 1 | L27: Se estima atender XXX contingencias, acciones penales, demandas, resoluciones judiciales, entre otras, que pueden ser adquiridas por la Agencia Digital de Innovación Publica. | M27: Se cumplió con el pago de XXX resoluciones emitidas por los órganos jurisdiccionales, lo que representa el XX por ciento de los XXX estimados para el presente ejercicio fiscal. | O27: 01CD06M002
A28: 01CD06 | B28: 01CD06_8 | C28: 01CD06N001_1 | D28: N001 | E28: CUMPLIMIENTO DE LOS PROGRAMAS DE PROTECCION CIVIL | F28: Personas servidoras públicas de la ADIP capacitadas en materia de protección civil. | G28: 0.18 | H28: 0.22 | I28: 0.78 | J28: 1 | K28: 0.35 | L28: Se programó realizar XXX capacitaciones en materia de Protección Civil las cuáles, a su vez de 3 simulacros en las instalaciones de la ADIP. | M28: Se llevaron a cabo XXX actividades en materia de Protección Civil lo que representa un avance del XXX por ciento de las XXX programadas para el presente ejercicio fiscal las cuáles, corresponden a XXX capacitaciones y XXX simulacros. | O28: 01CD06N001
A29: 01CD06 | B29: 01CD06_9 | C29: 01CD06N001_2 | D29: N001 | E29: CUMPLIMIENTO DE LOS PROGRAMAS DE PROTECCION CIVIL | F29: Dotación de equipo y herramientas de rescate y botiquines de primeros auxilios a los inmuebles de la ADIP. | G29: 0.18 | H29: 0.22 | I29: 0.78 | J29: 1 | K29: 0.35 | L29: Se programó la adquisición de xxx herramientas de rescate, botiquines y equipo de primeros auxilios para los inmuebles de la ADIP. | M29: Se adquirieron xxx herramientas de rescate, botiquines y equipo de primeros auxilios para los inmuebles de la ADIP, lo que representa un avance del XXX por ciento de las XXX compras programadas para el presente ejercicio fiscal. | O29: 01CD06N001
A30: 01CD06 | B30: 01CD06_10 | C30: 01CD06N001_3 | D30: N001 | E30: CUMPLIMIENTO DE LOS PROGRAMAS DE PROTECCION CIVIL | F30: Dotación de señalización de medidas preventivas a los inmuebles de la ADIP. | G30: 0.18 | H30: 0.22 | I30: 0.78 | J30: 1 | K30: 0.3 | L30: Se programó la instalación de XXX señalizaciones de medidas preventivas en los inmuebles de la ADIP. | M30: Se instalaron XXX señalizaciones de medidas preventivas en los inmuebles de la ADIP, lo que representa un avance del XXX por ciento de las XXX instalaciones programadas para el presente ejercicio fiscal. | O30: 01CD06N001
A31: 01P0ES | B31: 01P0ES_1 | C31: 01P0ESM001_1 | D31: M001 | E31: ACTIVIDADES DE APOYO ADMINISTRATIVO | F31: Pago de servicios generales, servicios profesionales, conservación y mantenimiento del inmueble, asi como servicios de difusión. | G31: 0.25 | H31: 0.5 | I31: 0.75 | J31: 1 | K31: 0.5 | L31: Se programó la adquisición de XXX servicios generales, servicios profesionales, conservación y mantenimiento del inmueble, así como servicios de difusión. | M31: Se realizaron XXX pagos de servicios generales, servicios profesionales, conservación y mantenimiento del inmueble, así como servicios de difusión, lo que representa un XXX por ciento de los XXX programados para el presente ejercicio fiscal. | O31: 01P0ESM001
A32: 01P0ES | B32: 01P0ES_2 | C32: 01P0ESM001_2 | D32: M001 | E32: ACTIVIDADES DE APOYO ADMINISTRATIVO | F32: Adquisición de materiales, insumos y suministros requeridos para el desempeño de las actividades administrativas. | G32: 0.25 | H32: 0.5 | I32: 0.75 | J32: 1 | K32: 0.5 | L32: Se programaron XXX adquisiciones de materiales, insumos y suministros requeridos para el desempeño de las actividades administrativas. | M32: Se realizaron XXX adquisiciones de materiales, insumos y suministros requeridos para el desempeño de las actividades administrativas, lo que representa un avance del XXX por ciento de los XXX programados para el ejercicio fiscal 2023. | O32: 01P0ESM001
A33: 01P0ES | B33: 01P0ES_3 | C33: 01P0ESM002_1 | D33: M002 | E33: PROVISIONES PARA CONTINGENCIAS | F33: Cumplimiento a los laudos emitidos conforme a derecho y resolución judicial. | G33: 0 | H33: 0.2 | I33: 0.8 | J33: 1 | K33: 1 | L33: Se estima dar cumplimiento a XXX laudos emitidos conforme a derecho y resolución judicial. | M33: Se dio cumplimiento a XXX laudos emitidos conforme a derecho y resolución judicial lo que representa un avance del XXX por ciento de los XXX programados para el ejercicio fiscal 2023. | O33: 01P0ESM002
A34: 01P0ES | B34: 01P0ES_4 | C34: 01P0ESN001_1 | D34: N001 | E34: CUMPLIMIENTO DE LOS PROGRAMAS DE PROTECCION CIVIL | F34: Personas servidoras públicas del FES CDMX capacitadas en materia de protección civil. | G34: 0 | H34: 0.3 | I34: 0.6 | J34: 1 | K34: 1 | L34: Se realizarán XXX capacitaciones y XXX simulacros para las Brigadas de Protección Civil y personal del FES. | M34: Se realizaron XXX capacitaciones y XXX simulacros para las brigadas de Protección Civil y personal de la ADIP lo que representa un avance del XXX por ciento de las XXX capacitaciones y los XXX simulacros programados para el presente ejercicio fiscal. | O34: 01P0ESN001
A35: 01P0ES | B35: 01P0ES_5 | C35: 01P0ESP054_1 | D35: P054 | E35: ESTUDIOS DE DESARROLLO ECONOMICO, SOCIAL Y AMBIENTAL | F35: Convenios de colaboración firmados para la realización de estudios o proyectos en la Ciudad de México. | G35: 0 | H35: 0.5 | I35: 0.9 | J35: 1 | K35: 1 | L35: Se programó un convenio de colaboración para la realización de un proyecto para el desarrollo de la Ciudad de México | M35: Se culminó la etapa XXX del convenio de colaboración del proyecto XXX lo que representa un avance del XXX por ciento de las XXX etapas del proyecto programadas para el presente ejercicio fiscal. | O35: 01P0ESP054
A36: 02C001 | B36: 02C001_1 | C36: 02C001M001_1 | D36: M001 | E36: ACTIVIDADES DE APOYO ADMINISTRATIVO | F36: Adquisición de materiales, insumos y suministros requeridos para el desempeño de las actividades administrativas. | G36: 0.25 | H36: 0.5 | I36: 0.75 | J36: 1 | K36: 0.5 | L36: Se programaron 100 procedimientos administrativos para la contración y adquisición de materiales, insumos y suministros. | M36: Se realizaron XXX procedimientos administrativos, lo que representa un avance del XXX por ciento de los 100 programados para el presente ejercicio fiscal. | O36: 02C001M001
A37: 02C001 | B37: 02C001_2 | C37: 02C001M001_2 | D37: M001 | E37: ACTIVIDADES DE APOYO ADMINISTRATIVO | F37: Pago de servicios generales, servicios profesionales, conservación y mantenimiento del inmueble, así como servicios de difusión. | G37: 0.25 | H37: 0.5 | I37: 0.75 | J37: 1 | K37: 0.5 | L37: Se programaron XXX procedimientos administrativos para el pago de servicios generales, profesionales y mantenimiento del inmueble. | M37: Se realizaron XXX procedimientos administrativos, lo que representa un avance del XXX por ciento de los XXX programados para el presente ejercicio fiscal, para el pago de servicios generales, profesionales y mantenimiento del inmueble. | O37: 02C001M001
A38: 02C001 | B38: 02C001_3 | C38: 02C001M002_1 | D38: M002 | E38: PROVISIONES PARA CONTINGENCIAS | F38: Dar cumplimiento a los laudos emitidos por la Junta de Conciliación y Arbitraje. | G38: 0.25 | H38: 0.5 | I38: 0.75 | J38: 1 | K38: 1 | L38: Se estima atender XXX resoluciones emitidas por los órganos jurisdiccionales. | M38: Se dio cumplimiento a XXX resoluciones emitidas, lo que representa un avance del XXX por ciento de las XXX estimadas para el presente ejercicio fiscal. | O38: 02C001M002
A39: 02C001 | B39: 02C001_4 | C39: 02C001N001_1 | D39: N001 | E39: CUMPLIMIENTO DE LOS PROGRAMAS DE PROTECCION CIVIL | F39: Implementar señalética, realizar simulacros y capacitar en materia de protección civil a las personas servidoras públicas de la Secretaria de Gobierno. | G39: 0.25 | H39: 0.5 | I39: 0.75 | J39: 1 | K39: 1 | L39: Se programó la elaboración de 1 programa de protección civil; implementación de señalética; XXX capacitaciones al personal adscrito y XXX simulacros, mismos que se llevarán a cabo con el fin de salvaguardar al personal adscrito y a la población que visita las instalaciones de la Secretaría de Gobierno. | M39: Se llevó a cabo XXX programa de protección civil; la implementación de señalética; XXX capacitaciones; XXX simulacro, lo que representa un avance del XXX por ciento de las XXX trabajos programados para el presente ejercicio fiscal, con el fin de salvaguardar al personal adscrito y a la población que visita las instalaciones de la Secretaría de Gobierno. | O39: 02C001N001
A40: 02C001 | B40: 02C001_5 | C40: 02C001P055_1 | D40: P055 | E40: COORDINACION GENERAL DE GOBIERNO | F40: Acciones de regulación, atención y seguimiento para el aprovechamiento del uso del espacio publico. | G40: 0.25 | H40: 0.5 | I40: 0.75 | J40: 1 | K40: 0.25 | L40: Se estima atender 875 solicitudes para la realización de eventos en los espacios públicos, como se detalla a continuación: XXX eventos políticos, XXX cívicos, XXX culturales, XXX deportivos, XXX religiosos, XXX sociales, XXXinstitucionales, XXXempresariales y XXX fílmicos. | M40: Se atendieron 228 solicitudes para la realización de eventos en los espacios públicos , lo que representa un avance del XXX por ciento de las 875 programadas para el presente ejercicio fiscal, como se detalla a continuación: 2 eventos políticos, 2 cívicos, 86 culturales, 32 deportivos, 2 religiosos, 58 sociales, 23 institucionales, 22 empresariales y 1 fílmico. | O40: 02C001P055
A41: 02C001 | B41: 02C001_6 | C41: 02C001P055_2 | D41: P055 | E41: COORDINACION GENERAL DE GOBIERNO | F41: Monitoreos y/o recorridos en distintos espacios públicos, para prevenir y atender cualquier incidencia y/o estar en la posibilidad de brindar la atención procedente. | G41: 0.25 | H41: 0.5 | I41: 0.75 | J41: 1 | K41: 0.25 | L41: Se estiman 2,100 monitoreos en los distintos espacios públicos, antes, durante y despúes de eventos para prevención y atención de incidencias. | M41: Se realizaron XXX monitoreos, lo que representa un avance del XXX por ciento de los 2,100 programados para el presente ejercicio fiscal, en los distintos espacios públicos, antes, durante y despúes de eventos para la prevención y atención de incidencias. | O41: 02C001P055
A42: 02C001 | B42: 02C001_7 | C42: 02C001P055_3 | D42: P055 | E42: COORDINACION GENERAL DE GOBIERNO | F42: Planear y ejecutar mesas de trabajo y/o reuniones interinstitucionales y/o atenciones ciudadanas con diversas dependencias para atender la demanda ciudadana, individual y/o grupal. | G42: 0.25 | H42: 0.5 | I42: 0.75 | J42: 1 | K42: 0.25 | L42: Se programaron XXXmesas de trabajo, y XXX reuniones interinstitucionales, con el fin de atender conflictos político sociales. | M42: Se llevaron a cabo XXX mesas de trabajo, XXX reuniones interinstitucionales, lo que representa un avance del XXX por ciento de lo programado para el presente ejercicio fiscal, con el fin de atender conflictos político sociales. | O42: 02C001P055
A43: 02C001 | B43: 02C001_8 | C43: 02C001P055_4 | D43: P055 | E43: COORDINACION GENERAL DE GOBIERNO | F43: Llevar a cabo acciones en materia agraria. | G43: 0.25 | H43: 0.5 | I43: 0.75 | J43: 1 | K43: 0.25 | L43: Se llevarán a cabo 2,700 tareas en materia agraría, las cuales corresponden a: XXX mesas de trabajo interinstitucionales y consejos, XXX mesas con los núcleos agrarios, XXX recorridos de trabajo en los núcleos agrarios y XXX capacitaciones y asesorías agrarias; que ayuden a impulsar el diálogo entre los entes públicos de la Ciudad y sus homólogos en los gobiernos de las Entidades Federativas. | M43: Se realizaron 154 tareas en materia agraría, lo que representa un avance del 6 por ciento de las 2,700 programadas para el presente ejercicio fiscal, las cuales corresponden a: 57 de trabajo interinstitucionales y consejos, 63 con los núcleos agrarios, 6 recorridos de trabajo en los núcleos agrarios y 28 capacitaciones y asesorías agrarias, que ayuden a impulsar el diálogo entre los entes públicos de la Ciudad y sus homólogos en los gobiernos de las Entidades Federativas. | O43: 02C001P055
A44: 02C001 | B44: 02C001_9 | C44: 02C001S005_1 | D44: S005 | E44: ATENCION PRIORITARIA A PERSONAS EGRESADAS DEL SISTEMA DE JUSTICIA PENAL | F44: Entrega de kits con artículos de higiene personal, vestimenta y una tarjeta de transporte para personas egresadas del sistema de justicia penal que pertenecen a un grupo de atención prioritaria. | G44: 0.2 | H44: 0.5 | I44: 0.75 | J44: 1 | K44: 0.5 | L44: Se programó la entrega de 1,500 kits de atención prioritaria con artículos básicos de vestido e higiene personal y una tarejeta de transporte prepagada con $125.00 cada una, a fin de dar continuidad a su proceso de reinserción social, así como ejercer plenamente sus derechos. | M44: Se entregaron XXX kits de atención prioritaria, lo que representa un avance del XXX por ciento de los 1,500 programados para el presente ejercicio fiscal, a fin de dar continuidad a su proceso de reinserción social, así como ejercer plenamente sus derechos. | O44: 02C001S005
A45: 02C001 | B45: 02C001_10 | C45: 02C001S005_2 | D45: S005 | E45: ATENCION PRIORITARIA A PERSONAS EGRESADAS DEL SISTEMA DE JUSTICIA PENAL | F45: Convenios de colaboración con empresas socialmente responsables, asociaciones de la sociedad civil, dependencias públicas y/o organizaciones no gubernamentales para ofrecer capacitación a personas egresadas del sistema de justicia penal de la Ciudad de México. | G45: 0.2 | H45: 0.5 | I45: 0.75 | J45: 1 | K45: 0.2 | L45: Se programaron 20 convenios con empresas, asociaciones, dependencias públicas y/u organizaciones no gubernamentales para ofrecer capacitación a personas egresadas del Sistema de Justicia Penal con el objeto de contribuir a la capacitación para el empleo, disminuir el desempleo y fortalecer las capaciades y conocimientos laborales de este sector de la población. Se estima la atención de XXX personas. | M45: Se llevaron a cabo XXX convenios, lo que representa un avance del XXX por ciento de los 20 programados para el presente ejercicio fiscal con empresas, asociaciones, dependencias públicas y/u organizaciones no gubernamentales para ofrecer capacitación a personas egresadas del Sistema de Justicia Penal,con el objeto de contribuir a la capacitación para el empleo, disminuir el desempleo y fortalecer las capaciades y conocimientos laborales de este sector de la población, beneficiando a XXX personas. | O45: 02C001S005
A46: 02C001 | B46: 02C001_11 | C46: 02C001S005_3 | D46: S005 | E46: ATENCION PRIORITARIA A PERSONAS EGRESADAS DEL SISTEMA DE JUSTICIA PENAL | F46: Entrega de apoyos monetarios para la realización de prácticas laborales en empresas participantes en el programa. | G46: 0.2 | H46: 0.5 | I46: 0.75 | J46: 1 | K46: 0.3 | L46: Se estima la entrega de 120 apoyos de $5,500 mensuales, durante un periodo de hasta 3 meses cada uno, como parte de la realización de prácticas laborales en empresas participantes al programa, con el objetivo de brindarles estabilidad y permanencia en sus prácticas laborales. | M46: Se entregaron XXX apoyos de $5,500 cada uno, lo que representa un avance del XXX por ciento de los 120 estimados para el presente ejercicio fiscal, como parte de la realización de prácticas laborales en empresas participantes al programa, con el objetivo de brindarles estabilidad y permanencia en sus prácticas laborales. | O46: 02C001S005
A47: 02C001 | B47: 02C001_12 | C47: 02C001U019_1 | D47: U019 | E47: SI AL DESARME, SI A LA PAZ | F47: Canje de armas de fuego entregadas por las y los ciudadanos de manera voluntaria por apoyos económicos. | G47: 0.1 | H47: 0.3 | I47: 0.6 | J47: 1 | K47: 1 | L47: Se estima la recuperación armas, entre las que destacan: cortas, largas, granadas, estopines y cartuchos, a través de 17 módulos de canje en las Alcaldías de la Ciudad de México, principalmente en los atrios de las iglesias, para ofrecer un espacio seguro para la gente y contribuir en la disminución de la violencia y la posesión de armas de fuego. | M47: Se canjearon 183 armas, las cuales corresponden a: 123 armas cortas, 39 largas, 21 granadas, 898 estopines y 7,970 cartuchos, a través de 5 módulos de canje en las Alcaldías de la Ciudad de México, principalmente en los atrios de las iglesias, para ofrecer un espacio seguro para la gente y contribuir en la disminución de la violencia y la posesión de armas de fuego. | O47: 02C001U019
A48: 02CD05 | B48: 02CD05_1 | C48: 02CD05E185_1 | D48: E185 | E48: GOBIERNO Y ATENCION CIUDADANA | F48: Asesoría jurídica. | G48: 0.2 | H48: 0.3 | I48: 0.8 | J48: 1 | K48: 0.5 | L48: Se programaron 2,100 asesorías mercantiles a establecimientos, mismas que corresponden a: XXX de regulación territorial y XXX de patrimonio inmobiliario. | M48: Se llevaron a cabo 420 asesorías mercantiles a establecimientos, lo que representa un avance del 20 por ciento de las 2,100 programadas para el presente ejercicio fiscal mismas que corresponden a: XXX de regulación territorial y XXX de patrimonio inmobiliario. | O48: 02CD05E185
A49: 02CD05 | B49: 02CD05_2 | C49: 02CD05E185_2 | D49: E185 | E49: GOBIERNO Y ATENCION CIUDADANA | F49: Emitir, ejecutar y resolver visitas de verificación administrativa en materia de obras y establecimientos mercantiles. | G49: 0.2 | H49: 0.3 | I49: 0.8 | J49: 1 | K49: 0.5 | L49: Se programaron 500 asesorías jurídicas y visitas de verificación administrativa. | M49: Se llevaron a cabo 100 asesorías jurídicas y visitas de verificación administrativa, lo que representa un avance del 20 por ciento de las 500 programadas para el presente ejercicio fiscal. | O49: 02CD05E185
A50: 02CD05 | B50: 02CD05_3 | C50: 02CD05E186_1 | D50: E186 | E50: SEGURIDAD EN ALCALDIAS | F50: Patrullaje de la Alcaldía. | G50: 0.2 | H50: 0.35 | I50: 0.5 | J50: 0.8 | K50: 0.34 | L50: Se programaron 1,314,000 patrullajes en 9 cuadrantes que forman parte del territorio de la Alcaldía. | M50: Se llevaron a cabo 262,800 patrullajes lo que representa un avance del 20 por ciento de los 1,314,000 programados para el presente ejercicio fiscal. | O50: 02CD05E186
A51: 02CD05 | B51: 02CD05_4 | C51: 02CD05E186_2 | D51: E186 | E51: SEGURIDAD EN ALCALDIAS | F51: Recorridos y presencia policial en la Alcaldía. | G51: 0.2 | H51: 0.35 | I51: 0.5 | J51: 0.8 | K51: 0.33 | L51: Se programaron 1,800 recorridos presenciales de policías. | M51: Se realizaron 360 recorridos presenciales de policías, lo que representa un avance del 20 por ciento de los 1,800 programados para el presente ejercicio fiscal. | O51: 02CD05E186
A52: 02CD05 | B52: 02CD05_5 | C52: 02CD05E186_3 | D52: E186 | E52: SEGURIDAD EN ALCALDIAS | F52: Atención a denuncias telefónicas. | G52: 0.2 | H52: 0.35 | I52: 0.5 | J52: 0.8 | K52: 0.33 | L52: Se estima atender 23,400 llamadas de emergencia de los ciudadanos. | M52: Se atendieron 4,680 llamadas de emergencia, lo que representa un avance del 20 por ciento de las 23,400 estimadas para el presente ejercicio fiscal. | O52: 02CD05E186
A53: 02CD05 | B53: 02CD05_6 | C53: 02CD05E187_1 | D53: E187 | E53: SERVICIOS PUBLICOS | F53: Mantenimiento y sustitución de alumbrado público. | G53: 0.26 | H53: 0.5 | I53: 0.75 | J53: 1 | K53: 0.25 | L53: Se programó el mantenimiento preventivo y correctivo a 14,500 luminarias, llevando a cabo la sustitución de XXX fotoceldas, XXX lámparas, XXX balastros, XXX cables de diversos calibres, XXX ménsulas y XXX globos. | M53: Se llevaron a cabo 3,370 mantenimientos preventivos y correctivos, lo que representa un avance del 26 por ciento de los 14,500 programados para el presente ejercicio fiscal divididos en: XXX sustitución de fotoceldas, XXX de lámparas, XXX de balastras, XXX de cables de diversos calibres, XXX de ménsulas y XXX globos. | O53: 02CD05E187
A54: 02CD05 | B54: 02CD05_7 | C54: 02CD05E187_2 | D54: E187 | E54: SERVICIOS PUBLICOS | F54: Mantenimiento y rehabilitación de áreas verdes. | G54: 0.26 | H54: 0.5 | I54: 0.75 | J54: 1 | K54: 0.25 | L54: Se programó el mantenimiento de 330,000 M² mismos que corresponden a: XXX parques, XXX jardines, XXX glorietas, XXX camellones, XXX jardineras, XXX áreas verdes en edificios públicos y XXX en escuelas públicas. | M54: Se brindó mantenimiento a 65,945 M² lo que representa un avance del 26 por ciento de los 330,000 M² programados para el presente ejercicio fiscal, los cuáles corresponden a: XXX parques, XXX jardines, XXX glorietas, XXX camellones, XXX jardineras, XXX áreas verdes en edificios públicos y XXX en escuelas públicas. | O54: 02CD05E187
A55: 02CD05 | B55: 02CD05_8 | C55: 02CD05E187_3 | D55: E187 | E55: SERVICIOS PUBLICOS | F55: Recolección de residuos sólidos. | G55: 0.26 | H55: 0.5 | I55: 0.75 | J55: 1 | K55: 0.25 | L55: Se programó la recolección de 150,000 toneladas de residuos sólidos. | M55: Se realizó la recolección de 38,855 toneladas de residuos sólidos, lo que representa un avance del 26 por ciento de las 150,000 programadas para el presente ejercicio fiscal. | O55: 02CD05E187
A56: 02CD05 | B56: 02CD05_9 | C56: 02CD05E187_4 | D56: E187 | E56: SERVICIOS PUBLICOS | F56: Mantenimiento al parque vehicular. | G56: 0.26 | H56: 0.5 | I56: 0.75 | J56: 1 | K56: 0.25 | L56: Se programó el mantenimiento a 217,686 vehículos que forman parte del parque vehicular de la Alcaldía Cuajimalpa de Morelos. | M56: Se realizaron 56,598 mantenimientos a vehículos que forman parte del parque vehicular de la alcaldía, lo que representa un avance del 26 por ciento de los 217,686 programados para el presente ejercicio fiscal. | O56: 02CD05E187
A57: 02CD05 | B57: 02CD05_10 | C57: 02CD05E188_1 | D57: E188 | E57: EDUCACION, CULTURA, DEPORTE Y RECREACION | F57: Eventos deportivos y recreativos realizados en la Alcaldía. | G57: 0.2 | H57: 0.4 | I57: 0.7 | J57: 1 | K57: 0.34 | L57: Se programaron 21 eventos para la promoción deportiva y recreativa enfocada a mujeres, niñas, niños y adolescentes, así como a la población en general. | M57: Se realizaron 4 eventos para la promoción deportiva y recreativa enfocada a mujeres, niñas, niños y adolescentes, así como a la población en general, lo que representa un avance del 19 por ciento de los 21 programados para el presente ejercicio fiscal. | O57: 02CD05E188
A58: 02CD05 | B58: 02CD05_11 | C58: 02CD05E188_2 | D58: E188 | E58: EDUCACION, CULTURA, DEPORTE Y RECREACION | F58: Eventos culturales en la Alcaldía. | G58: 0.2 | H58: 0.4 | I58: 0.7 | J58: 1 | K58: 0.33 | L58: Se programaron 24 eventos culturales dentro de la demarcación, los cuales corresponden a: XXX | M58: Se llevaron a cabo 5 eventos culturales, lo que representa un avance del 21 por ciento de los 24 programados para el presente ejercicio fiscal. | O58: 02CD05E188
A59: 02CD05 | B59: 02CD05_12 | C59: 02CD05E188_3 | D59: E188 | E59: EDUCACION, CULTURA, DEPORTE Y RECREACION | F59: Cursos y actividades sobre concientización y difusión de derechos. | G59: 0.2 | H59: 0.4 | I59: 0.7 | J59: 1 | K59: 0.33 | L59: Se programaron 24 actividades de difusión de derechos dentro de la demarcación. | M59: Se llevaron a cabo 5 actividades de difusión de derechos, lo que representa un avance del 21 por ciento de los 24 programados para el presente ejercicio fiscal. | O59: 02CD05E188
A60: 02CD05 | B60: 02CD05_13 | C60: 02CD05E189_1 | D60: E189 | E60: SERVICIOS DE SALUD EN ALCALDIAS | F60: Consultas médicas gratuitas. | G60: 0.2 | H60: 0.5 | I60: 0.7 | J60: 1 | K60: 1 | L60: Se programaron 21 jornadas de salud relacionadas con la prevención, atención y rehabilitación médica. | M60: Se llevaron a cabo 4 jornadas de salud, lo que representa un avance del 20 por ciento de las 21 programadas en el presente ejercicio fiscal, las cuáles corresponden a: XXX de prevención, XXX de atención y XXX de rehabilitación médica. | O60: 02CD05E189
A61: 02CD05 | B61: 02CD05_14 | C61: 02CD05E190_1 | D61: E190 | E61: SERVICIOS DE ATENCION ANIMAL | F61: Vacunación de animales de compañía. | G61: 0.15 | H61: 0.5 | I61: 1 | J61: 1 | K61: 1 | L61: Se programaron 3 campañas de esterilización gratuitas en la explanada y en los consultorios veterinarios de la Alcaldía Cuajimalpa de Morelos. | M61: Se realizó 1 campaña de esterilización gratuita en la explanada, lo que representa un avance del 33 por ciento de las 3 programadas para el presente ejercicio fiscal en los consultorios veterinarios de la Alcaldía Cuajimalpa de Morelos. | O61: 02CD05E190
A62: 02CD05 | B62: 02CD05_15 | C62: 02CD05E198_1 | D62: E198 | E62: SERVICIOS DE CUIDADO INFANTIL | F62: Alimentación sana a niñas y niños. | G62: 0.25 | H62: 0.5 | I62: 0.75 | J62: 1 | K62: 0.5 | L62: Se estima la entrega de alimentos a 1,200 niñas y niños que asisten a los Servicio de Estancia Infantil (CENDI) pertenecientes a la Alcaldía. | M62: Se realizó la entrega de alimentos a 1,200 niñas y niños que asisten a los CENDI, lo que representa un avance del 25 por ciento de lo programado para el presente ejercicio fiscal. | O62: 02CD05E198
A63: 02CD05 | B63: 02CD05_16 | C63: 02CD05E198_2 | D63: E198 | E63: SERVICIOS DE CUIDADO INFANTIL | F63: Servicios educativos y de cuidados en CENDIS. | G63: 0.25 | H63: 0.5 | I63: 0.75 | J63: 1 | K63: 0.5 | L63: Se realizará la entrega de servicios educativos y de cuidados a los 1,200 niños y niñas que se encuentran inscritos en los Centros de Desarrollo Infantil (CENDI). | M63: Se bridaron servicios educativos y de cuidados a 1,200 niñas y niños que asisten a los CENDIS lo que representa un avance del 25 por ciento de lo programado para el presente ejercicio fiscal. | O63: 02CD05E198
A64: 02CD05 | B64: 02CD05_17 | C64: 02CD05F037_1 | D64: F037 | E64: TURISMO, EMPLEO Y FOMENTO ECONOMICO | F64: Vinculación de emprendedores para apoyos. | G64: 0.25 | H64: 0.5 | I64: 0.75 | J64: 1 | K64: 0.25 | L64: Se programaron 400 asesorías y canalización a microempresarios a través del Módulo de FONDESO. | M64: A través del Módulo de FONDESO se realizaron 100 asesorías y canalización a microempresarios lo que representa un avance del 25 por ciento en la realización de 400 asesorías y canalizaciones programadas para el ejercicio fiscal 2023. | O64: 02CD05F037
A65: 02CD05 | B65: 02CD05_18 | C65: 02CD05F037_2 | D65: F037 | E65: TURISMO, EMPLEO Y FOMENTO ECONOMICO | F65: Ferias y caravanas de empleo. | G65: 0.25 | H65: 0.5 | I65: 0.75 | J65: 1 | K65: 0.25 | L65: Se programaron 14 ferias del empleo. | M65: Se llevaron a cabo 3 ferias del empleo lo que representa un avance del 25 por ciento en la realización de 14 ferias del empleo programadas para el presente ejercicio fiscal. | O65: 02CD05F037
A66: 02CD05 | B66: 02CD05_19 | C66: 02CD05F037_3 | D66: F037 | E66: TURISMO, EMPLEO Y FOMENTO ECONOMICO | F66: Cursos y capacitaciones de impulso para micro y pequeñas empresas. | G66: 0.25 | H66: 0.5 | I66: 0.75 | J66: 1 | K66: 0.25 | L66: Se programaron 700 capacitaciones y asesorías a micro y pequeñas empresas. | M66: Se llevaron a cabo 175 capacitaciones de impulso para micro y pequeñas empresas lo que representa un avance del 25 por ciento de las 700 programadas para el presente ejercicio fiscal. | O66: 02CD05F037
A67: 02CD05 | B67: 02CD05_20 | C67: 02CD05F037_4 | D67: F037 | E67: TURISMO, EMPLEO Y FOMENTO ECONOMICO | F67: Pobladores referidos a la bolsa de trabajo. | G67: 0.25 | H67: 0.5 | I67: 0.75 | J67: 1 | K67: 0.25 | L67: Se programaron 7,532 atenciones en la bolsa de trabajo divididas en: XXX jornadas de personas buscadoras de empleo. | M67: Se realizaron 1,883 atenciones lo que representa un avance del 25 por ciento de las 7,532 atenciones en la bolsa de trabajo programadas divididas en: XXX jornadas de personas buscadoras de empleo. | O67: 02CD05F037
A68: 02CD05 | B68: 02CD05_21 | C68: 02CD05K023_1 | D68: K023 | E68: INFRAESTRUCTURA URBANA | F68: Mejoramiento de espacio urbano. | G68: 0.2 | H68: 0.4 | I68: 0.6 | J68: 1 | K68: 0.2 | L68: Se programó el mejoramiento de XXX espacios públicos, mismas que corresponden a: retiro de XXX pendones, XXX adornos festivos, XXX pintas de fachadas, XXX pintas de grafiti, XXX fondeos de bardas, XXX pintas de zaguanes, XXX pinturas en postes, XXX pinturas de puentes, XXX mantenimientos de pintura en paradas de camión , XXX pinturas en deportivos, XXX pinturas en museos, XXX pinturas en fachadas de escuelas primarias, XXX pinturas de secundarias y XXX pinturas de escuelas de educación media superior | M68: Se realizó el mejoramiento de XXX espacios públicos lo que representa un avance del XXX por ciento de los XXX programados para el presente ejercicio fiscal, mismos que corresponden a: retiro de XXX pendones, XXX adornos festivos, XXX pintas de fachadas, XXX pintas de grafiti, XXX fondeos de bardas, XXX pintas de zaguanes, XXX pinturas en postes, XXX pinturas de puentes, XXX mantenimientos de pintura en paradas de camión , XXX pinturas en deportivos, XXX pinturas en museos, XXX pinturas en fachadas de escuelas primarias, XXX pinturas de secundarias y XXX pinturas de escuelas de educación media superior. | O68: 02CD05K023
A69: 02CD05 | B69: 02CD05_22 | C69: 02CD05K023_2 | D69: K023 | E69: INFRAESTRUCTURA URBANA | F69: Rehabilitación de espacio público. | G69: 0.2 | H69: 0.4 | I69: 0.6 | J69: 1 | K69: 0.2 | L69: Se programó la rehabilitación de 9 espacios públicos en diferentes zonas de la alcaldía Cuajimalpa de Morelos. | M69: Se realizó la recuperación de 2 espacios públicos en diferentes zonas de la alcaldía Cuajimalpa, lo que representa un avance del 22 por ciento de los 9 programados para el presente ejercicio fiscal. | O69: 02CD05K023
A70: 02CD05 | B70: 02CD05_23 | C70: 02CD05K023_3 | D70: K023 | E70: INFRAESTRUCTURA URBANA | F70: Reencarpetado y balizamiento de vialidades. | G70: 0.2 | H70: 0.4 | I70: 0.6 | J70: 1 | K70: 0.2 | L70: Se programó el balizamiento peatonal y vehicular de 800,000 ML de banquetas y vialidades, mismas que corresponden a: XXX pintas de guarniciones, XXX flechas sobre pavimento, XXX rayas centrales, XXX marca de leyendas preventivas sobre pavimento, XXX pintas de topes, XXX pintas de cebras, XXX señalamientos de reducción de velocidad, XXX pintas de rampas para discapacitados y XXX cajones para discapacidad. | M70: Se realizó el balizamiento peatonal y vehicular de 160,000 ML de banquetas y vialidades lo que representa un avance del 20 por ciento de los 800,000 programados para el presente ejercicio fiscal, mismas que corresponden a: XXX pintas de guarniciones, XXX flechas sobre pavimento, XXX rayas centrales, XXX marca de leyendas preventivas sobre pavimento, XXX pintas de topes, XXX pintas de cebras, XXX señalamientos de reducción de velocidad, XXX pintas de rampas para discapacitados y XXX cajones para discapacidad. | O70: 02CD05K023
A71: 02CD05 | B71: 02CD05_24 | C71: 02CD05K023_4 | D71: K023 | E71: INFRAESTRUCTURA URBANA | F71: Construcción de polideportivo. | G71: 0.2 | H71: 0.4 | I71: 0.6 | J71: 1 | K71: 0.2 | L71: Se realizará la construcción de 1 polideportivo. | M71: Se realizó la construcción del XXX por ciento del polideportivo programado para el presente ejercicio fiscal. | O71: 02CD05K023
A72: 02CD05 | B72: 02CD05_25 | C72: 02CD05K023_5 | D72: K023 | E72: INFRAESTRUCTURA URBANA | F72: Mejora de señalamiento vial y retiro de publicidad. | G72: 0.2 | H72: 0.4 | I72: 0.6 | J72: 1 | K72: 0.2 | L72: Se programó la colocación de 1,000 piezas de señalamientos viales, los cuáles corresponden a: XXX discos de no estacionarse, XXX placas de nomenclatura y XXX postes así como XXX placas informativas. | M72: Se llevó a cabo la colocación de 200 piezas de señalamientos viales lo que representa un avance del 20 por ciento de las 1,000 programadas para el presente ejercicio fiscal, mismas que corresponden a: XXX discos de no estacionarse, XXX placas de nomenclatura y XXX postes así como XXX placas informativas. | O72: 02CD05K023
A73: 02CD05 | B73: 02CD05_26 | C73: 02CD05K026_1 | D73: K026 | E73: INFRAESTRUCTURA DE AGUA POTABLE EN ALCALDIAS | F73: Mantenimiento y sustitución de la red secundaria de agua potable. | G73: 0 | H73: 0.5 | I73: 1 | J73: 1 | K73: 1 | L73: Se programaron 10 proyectos de mantenimiento y sustitución de la Red Secundaria de agua potable. | M73: Se llevaron a cabo XXX proyectos lo que representa un avance del XXX por ciento de los 10 proyectos de mantenimiento y sustitución de la Red Secundaria de agua potable programados para el ejercicio fiscal 2023. | O73: 02CD05K026
A74: 02CD05 | B74: 02CD05_27 | C74: 02CD05K027_1 | D74: K027 | E74: INFRAESTRUCTURA DE DRENAJE, ALCANTARILLADO Y SANEAMIENTO EN ALCALDIAS | F74: Sustitución y mantenimiento de la red de drenaje. | G74: 0 | H74: 0.5 | I74: 1 | J74: 1 | K74: 1 | L74: Se programaron 10 proyectos de sustitución y mantenimiento de la red de drenaje. | M74: Se llevaron a cabo XXX proyectos lo que representa el XXX por ciento de los 10 proyectos de sustitución y mantenimiento de la red de drenaje programados para el ejercicio fiscal 2023. | O74: 02CD05K027
A75: 02CD05 | B75: 02CD05_28 | C75: 02CD05M001_1 | D75: M001 | E75: ACTIVIDADES DE APOYO ADMINISTRATIVO | F75: Recursos materiales, tecnológicos y de infraestructura adquiridos. | G75: 0.25 | H75: 0.5 | I75: 0.75 | J75: 1 | K75: 1 | L75: Se programaron 20 procedimientos de contratación de servicios. | M75: Se realizaron XXX procedimientos de contratación de servicios lo que representa un avance del XXX de los 20 programados para el presente ejercicio fiscal. | O75: 02CD05M001
A76: 02CD05 | B76: 02CD05_29 | C76: 02CD05M002_1 | D76: M002 | E76: PROVISIONES PARA CONTINGENCIAS | F76: Dar seguimiento a los conflictos laborales y el pago de laudos. | G76: 0 | H76: 0.03 | I76: 0.07 | J76: 0.1 | K76: 0.8 | L76: Se estima el pago de 90 sentencias emitidas por los órganos jurisdiccionales. | M76: Se realizó el pago de XXX sentencias emitidas por los órganos jurisdiccionales, lo que representa un avance del XXX de las 90 estimadas para el presente ejercicio fiscal. | O76: 02CD05M002
A77: 02CD05 | B77: 02CD05_30 | C77: 02CD05M002_2 | D77: M002 | E77: PROVISIONES PARA CONTINGENCIAS | F77: Informar al Tribunal de Conciliación y Arbitraje el pago del laudo. | G77: 0 | H77: 0.03 | I77: 0.07 | J77: 0.1 | K77: 0.2 | L77: Se estima informar al tribunal de conciliación y arbitraje sobre el pago de 90 sentencias emitidas por los órganos jurisdiccionales. | M77: Se informó al tribunal de conciliación y arbitraje sobre el pago de XXX sentencias emitidas por los órganos jurisdiccionales, lo que representa un avance del XXX por ciento de las 90 estimadas para el presente ejercicio fiscal. | O77: 02CD05M002
A78: 02CD05 | B78: 02CD05_31 | C78: 02CD05N001_1 | D78: N001 | E78: CUMPLIMIENTO DE LOS PROGRAMAS DE PROTECCION CIVIL | F78: Servicio médico de emergencia. | G78: 0.25 | H78: 0.5 | I78: 0.75 | J78: 1 | K78: 0.5 | L78: Se estima realizar 3,500 servicios de emergencia. | M78: Se realizaron 875 atenciones a servicios de emergencia lo que representa un avance del 25 por ciento de las 3,500 atenciones a servicios de emergencia programados para el presente ejercicio fiscal. | O78: 02CD05N001
A79: 02CD05 | B79: 02CD05_32 | C79: 02CD05N001_2 | D79: N001 | E79: CUMPLIMIENTO DE LOS PROGRAMAS DE PROTECCION CIVIL | F79: Capacitaciones en materia de gestión de riesgos y protección civil. | G79: 0.25 | H79: 0.5 | I79: 0.75 | J79: 1 | K79: 0.5 | L79: Se programaron 10 cursos en materia de gestión de riesgos. | M79: Se realizaron 2 cursos en materia de gestión de riesgos lo que representa un avance del XXX por ciento de los 10 cursos programados para el ejercicio fiscal 2023. | O79: 02CD05N001
A80: 02CD05 | B80: 02CD05_33 | C80: 02CD05R002_1 | D80: R002 | E80: PRESUPUESTO PARTICIPATIVO | F80: Dictaminación de proyectos ciudadanos. | G80: 0 | H80: 0 | I80: 0.5 | J80: 1 | K80: 0.5 | L80: Se programaron 152 dictámenes de proyectos ciudadanos. | M80: Se realizaron XXX dictámenes de proyectos ciudadanos lo que representa un avance del XXX por ciento de los 152 dictámenes de proyectos ciudadanos programados para el presente ejercicio fiscal. | O80: 02CD05R002
A81: 02CD05 | B81: 02CD05_34 | C81: 02CD05R002_2 | D81: R002 | E81: PRESUPUESTO PARTICIPATIVO | F81: Ejecución de los proyectos ciudadanos. | G81: 0 | H81: 0 | I81: 0.5 | J81: 1 | K81: 0.5 | L81: Se programaron 42 proyectos de presupuesto participativo. | M81: Se realizaron XXX proyectos de presupuesto participativo los cuales representan un avance del XXX por ciento de los 42 programados para el presente ejercicio fiscal. | O81: 02CD05R002
A82: 02CD05 | B82: 02CD05_35 | C82: 02CD05S234_1 | D82: S234 | E82: PROGRAMA DE APOYO PARA EL BIENESTAR FAMILIAR | F82: Otorgamiento de apoyos económicos a jefas y jefes de familia que vivan en situación de pobreza y marginación. | G82: 0 | H82: 0.35 | I82: 0.7 | J82: 1 | K82: 0.5 | L82: Se programó la entrega de 7,500 "Apoyos a Jefas y Jefes de Familia". | M82: Se realizó la entrega de XXX apoyos a jefas y jefes de familia lo que representa un avance del XXX por ciento de los 7,500 apoyos a Jefas y Jefes de Familia programados para el presente ejercicio fiscal. | O82: 02CD05S234
A83: 02CD05 | B83: 02CD05_36 | C83: 02CD05S234_2 | D83: S234 | E83: PROGRAMA DE APOYO PARA EL BIENESTAR FAMILIAR | F83: Atención y prevención de la violencia intrafamiliar. | G83: 0 | H83: 0.35 | I83: 0.7 | J83: 1 | K83: 0.5 | L83: Se programaron 6,914 atenciones de prevención de la violencia intrafamiliar mismas que corresponden a: XXX jornadas de servicios de atención y prevención de la violencia intrafamiliar, XXX eventos conmemorativos, XXX atenciones psicológicas y XXX atenciones jurídicas a mujeres víctimas de violencia. | M83: Se realizaron XXX atenciones de prevención de la violencia intrafamiliar, lo que representa un avance del XXX por ciento de las 6,914 programadas para el presente ejercicio fiscal, mismas que corresponden a: XXX jornadas de servicios de atención y prevención de la violencia intrafamiliar, XXX eventos conmemorativos, XXX atenciones psicológicas y XXX atenciones jurídicas a mujeres víctimas de violencia. | O83: 02CD05S234
A84: 02CD05 | B84: 02CD05_37 | C84: 02CD05U048_1 | D84: U048 | E84: APOYOS SOCIALES | F84: Entrega de juguetes a los niños, niñas y adolescentes de esta Alcaldía. | G84: 0.5 | H84: 1 | I84: 1 | J84: 1 | K84: 1 | L84: Se programó la entrega de 32,000 juguetes a niños, niñas y adolescentes. | M84: Se llevó a cabo la entrega de 16,000 juguetes lo que representa un avance del 50 por ciento de los 32,000 programados para el presente ejercicio fiscal. | O84: 02CD05U048
A85: 02CD06 | B85: 02CD06_1 | C85: 02CD06E185_1 | D85: E185 | E85: GOBIERNO Y ATENCION CIUDADANA | F85: Trámites y servicios diversos de gestión. | G85: 0.25 | H85: 0.5 | I85: 0.75 | J85: 1 | K85: 0.25 | L85: Se estima la atención de XXX solicitudes y trámites para la población de la Alcaldía. | M85: Se atendieron XXX solicitudes y trámites lo que representa un avance del XXX por ciento de los XXX estimados para el presente ejercicio fiscal. | O85: 02CD06E185
A86: 02CD06 | B86: 02CD06_2 | C86: 02CD06E185_2 | D86: E185 | E86: GOBIERNO Y ATENCION CIUDADANA | F86: Asuntos y asesorías jurídicas y de orientación a los ciudadanos. | G86: 0.25 | H86: 0.5 | I86: 0.75 | J86: 1 | K86: 0.25 | L86: Se programó la atención de XXX asesorías jurídicas, asuntos de orientación para los ciudadanos, tales como amparos, asesorías de procedimientos sobre derechos humanos, laudos, sentencias civiles, certificados de residencia, copias certificadas, cartillas militares. | M86: Se atendieron XXX asuntos jurídicos para la ciudadanía, lo que representa un avance del XXX por ciento de los XXX programados para el presente ejercicio fiscal, los cuáles corresponden a asesorías jurídicas, asuntos de orientación para los ciudadanos como amparos, atención a procedimientos sobre derechos humanos, laudos, sentencias civiles, certificados de residencia, copias certificadas, cartillas militares. | O86: 02CD06E185
A87: 02CD06 | B87: 02CD06_3 | C87: 02CD06E185_3 | D87: E185 | E87: GOBIERNO Y ATENCION CIUDADANA | F87: Regulación de establecimientos mercantiles y comerciales. | G87: 0.25 | H87: 0.5 | I87: 0.75 | J87: 1 | K87: 0.25 | L87: Se programaron XXX asesorías para la regulación de establecimientos mercantiles y comerciales. | M87: Se brindaron XXX asesorías para regulación de establecimientos mercantiles y comerciales, lo que representa un avance del XXX por ciento de las XXX programadas para el presente ejercicio fiscal. | O87: 02CD06E185
A88: 02CD06 | B88: 02CD06_4 | C88: 02CD06E185_4 | D88: E185 | E88: GOBIERNO Y ATENCION CIUDADANA | F88: Atención de requerimientos relacionados con la Función Pública. | G88: 0.25 | H88: 0.5 | I88: 0.75 | J88: 1 | K88: 0.25 | L88: Se programaron XXX atenciones de requerimientos relacionados con la función pública. | M88: Se brindaron XXX atenciones de requerimientos relacionados con la función pública, lo que representa un avance del XXX por ciento de las XXX estimadas para el presente ejercicio fiscal. | O88: 02CD06E185
A89: 02CD06 | B89: 02CD06_5 | C89: 02CD06E186_1 | D89: E186 | E89: SEGURIDAD EN ALCALDIAS | F89: Operativos en las 33 colonias de la Alcaldía. | G89: 0.25 | H89: 0.5 | I89: 0.75 | J89: 1 | K89: 0.25 | L89: Se programaron XXX operativos en las 33 colonias de la Alcaldía. | M89: Se realizaron XXX operativos en las 33 colonias de la Alcaldía, lo que representa un avance del XXX por ciento de los XXX programados para el presente ejercicio fiscal. | O89: 02CD06E186
A90: 02CD06 | B90: 02CD06_6 | C90: 02CD06E186_2 | D90: E186 | E90: SEGURIDAD EN ALCALDIAS | F90: Presencia en cuadrantes. | G90: 0.25 | H90: 0.5 | I90: 0.75 | J90: 1 | K90: 0.25 | L90: Se programaron XXX rondines de vigilancia en las colonias de la Alcaldía y se llevarán a cabo XXX pláticas en escuelas para promover cultura cívica y de prevención del delito, estas acciones como parte de la presencia en los cuadrantes. | M90: Se realizaron XXX rondines de vigilancia en las colonias de la Alcaldía, lo que representa un avance del XXX por ciento de los XXX programados para el presente ejercicio fiscal. Por otra parte, se llevaron a cabo XXX pláticas en escuelas para promover cultura cívica y de prevención del delito; estas acciones como parte de la presencia en los cuadrantes. | O90: 02CD06E186
A91: 02CD06 | B91: 02CD06_7 | C91: 02CD06E186_3 | D91: E186 | E91: SEGURIDAD EN ALCALDIAS | F91: Mantenimiento y compra de equipo de seguridad y vigilancia. | G91: 0.25 | H91: 0.5 | I91: 0.75 | J91: 1 | K91: 0.25 | L91: Se programó el arrendamiento de 43 equipos de seguridad y el servicio de 300 equipos de radiocomunicación bajo la red tetra. | M91: Se arrendaron XXX equipos de seguridad, lo que representa un avance del XXX por ciento de los XXX estimados para el presente ejercicio fiscal. Asimismo, se contrató el servicio de XXX equipos de radiocomunicación bajo la red tetra. | O91: 02CD06E186
A92: 02CD06 | B92: 02CD06_8 | C92: 02CD06E186_4 | D92: E186 | E92: SEGURIDAD EN ALCALDIAS | F92: Reconocimiento al mérito de la Seguridad Ciudadana y la Gestión Integral del Riesgo y Protección civil. | G92: 0.25 | H92: 0.5 | I92: 0.75 | J92: 1 | K92: 0.25 | L92: Se programaron XXX reconocimientos al mérito de la seguridad ciudadana y la gestión integral del riesgo y protección civil. | M92: Se otorgaron XXX reconocimientos al mérito de la seguridad ciudadana y la gestión integral del riesgo y protección civil, lo que representa un avance del XXX por ciento de los XXX programados para el presente ejercicio fiscal. | O92: 02CD06E186
A93: 02CD06 | B93: 02CD06_9 | C93: 02CD06E187_1 | D93: E187 | E93: SERVICIOS PUBLICOS | F93: Recolección, traslado, tratamiento y disposición final de residuos sólidos y urbanos. | G93: 0.25 | H93: 0.5 | I93: 0.75 | J93: 1 | K93: 0.25 | L93: Se estima la recolección de XXX toneladas de residuos sólidos. | M93: Se recolectaron XXX toneladas de residuos sólidos lo que representa un avance del XXX por ciento de las XXX estimadas programadas para el presente ejercicio fiscal. | O93: 02CD06E187
A94: 02CD06 | B94: 02CD06_10 | C94: 02CD06E187_2 | D94: E187 | E94: SERVICIOS PUBLICOS | F94: Operación de panteones, (Inhumaciones, y Cremaciones). | G94: 0.25 | H94: 0.5 | I94: 0.75 | J94: 1 | K94: 0.25 | L94: Se programaron XXX operaciones en panteones, las cuáles serán para mantenimiento de los mismos y para los servicios de inhumaciones y cremaciones. | M94: Se realizaron XXX operaciones en panteones, lo que representa un avance del XXX por ciento de las XXX programadas para el presente ejercicio fiscal, las cuales fueron para mantenimientos de los mismos y para los servicios de inhumaciones y cremaciones. | O94: 02CD06E187
A95: 02CD06 | B95: 02CD06_11 | C95: 02CD06E187_3 | D95: E187 | E95: SERVICIOS PUBLICOS | F95: Mantenimiento y equipamiento a parques y jardines, servicio de poda de árboles. | G95: 0.25 | H95: 0.5 | I95: 0.75 | J95: 1 | K95: 0.25 | L95: Se programaron XXX mantenimientos para la atención de áreas verdes, que consisten en podas y talas en parques, jardines, plazas, camellones y escuelas de las diferentes colonias de la Alcaldía. | M95: Se realizaron XXX mantenimientos, lo que representa un avance del XXX por ciento de los XXX programados para el presente ejercicio fiscal, para la atención de áreas verdes, que consistieron en podas y talas en parques, jardines, plazas, camellones y escuelas de las diferentes colonias de la Alcaldía. | O95: 02CD06E187
A96: 02CD06 | B96: 02CD06_12 | C96: 02CD06E187_4 | D96: E187 | E96: SERVICIOS PUBLICOS | F96: Mantenimiento, conservación y rehabilitación de banquetas, balizamiento, señalamiento en vialidades y alumbrado público en vialidades. | G96: 0.25 | H96: 0.5 | I96: 0.75 | J96: 1 | K96: 0.25 | L96: Se programaron XXX mantenimientos y rehabilitaciones de banquetas, guarniciones y de alumbrados | M96: Se realizaron XXX mantenimientos, lo que representa un avance del XXX por ciento de las XXX estimadas programadas para el presente ejercicio fiscal, los cuáles fueron para rehabilitaciones de banquetas, guarniciones y de alumbrados. | O96: 02CD06E187
A97: 02CD06 | B97: 02CD06_13 | C97: 02CD06E188_1 | D97: E188 | E97: EDUCACION, CULTURA, DEPORTE Y RECREACION | F97: Eventos y festividades cívicos y de cultura tradicional en la Alcaldía Cuauhtémoc. | G97: 0.25 | H97: 0.5 | I97: 0.75 | J97: 1 | K97: 0.25 | L97: Se programaron un total de XXX eventos culturales en la Alcaldía. | M97: Se realizaron XX eventos culturales en la Alcaldía, lo que representa un avance del XXX por ciento de los XXX programados para el presente ejercicio fiscal. | O97: 02CD06E188
A98: 02CD06 | B98: 02CD06_14 | C98: 02CD06E188_2 | D98: E188 | E98: EDUCACION, CULTURA, DEPORTE Y RECREACION | F98: Presentaciones de Compañías de danza, música, y teatro. | G98: 0.25 | H98: 0.5 | I98: 0.75 | J98: 1 | K98: 0.25 | L98: Se programaron un total de XXX presentaciones de compañías de danza, música y teatro. | M98: Se realizaron XX presentaciones de compañías de danza, música y teatro, lo que representa un avance del XXX por ciento de las XXX programadas para el presente ejercicio fiscal. | O98: 02CD06E188
A99: 02CD06 | B99: 02CD06_15 | C99: 02CD06E188_3 | D99: E188 | E99: EDUCACION, CULTURA, DEPORTE Y RECREACION | F99: Eventos deportivos, competencias y activación física para participantes que habitan en la Alcaldía Cuauhtémoc. | G99: 0.25 | H99: 0.5 | I99: 0.75 | J99: 1 | K99: 0.25 | L99: Se programaron un total de XXX eventos deportivos competencias y activaciones físicas en la Alcaldía. | M99: Se realizaron XX eventos deportivos competencias y activaciones físicas en la Alcaldía, lo que representa un avance del XXX por ciento de los XXX programados para el presente ejercicio fiscal. | O99: 02CD06E188
A100: 02CD06 | B100: 02CD06_16 | C100: 02CD06E188_4 | D100: E188 | E100: EDUCACION, CULTURA, DEPORTE Y RECREACION | F100: Entrega de apoyos económicos a deportistas destacados. | G100: 0.25 | H100: 0.5 | I100: 0.75 | J100: 1 | K100: 0.25 | L100: Se programaron un total de XXX apoyos económicos a deportistas destacados. | M100: Se otorgaron XX apoyos económicos a deportistas destacados, lo que representa un avance del XXX por ciento de los XXX programados para el presente ejercicio fiscal. | O100: 02CD06E188
A101: 02CD06 | B101: 02CD06_17 | C101: 02CD06E189_1 | D101: E189 | E101: SERVICIOS DE SALUD EN ALCALDIAS | F101: Atenciones médicas de primer nivel. | G101: 0.25 | H101: 0.5 | I101: 0.75 | J101: 1 | K101: 0.33 | L101: Se programaron un total de XXX atenciones médicas de primer nivel. | M101: Se realizaron XX atenciones médicas de primer nivel, lo que representa un avance del XXX por ciento de las XXX programadas para el presente ejercicio fiscal. | O101: 02CD06E189
A102: 02CD06 | B102: 02CD06_18 | C102: 02CD06E189_2 | D102: E189 | E102: SERVICIOS DE SALUD EN ALCALDIAS | F102: Jornadas de salud en la Alcaldía. | G102: 0.25 | H102: 0.5 | I102: 0.75 | J102: 1 | K102: 0.33 | L102: Se programaron un total de XXX jornadas de salud en la Alcaldía. | M102: Se realizaron XX jornadas de salud en la Alcaldía, lo que representa un avance del XXX por ciento de las XXX programadas para el presente ejercicio fiscal. | O102: 02CD06E189
A103: 02CD06 | B103: 02CD06_19 | C103: 02CD06E189_3 | D103: E189 | E103: SERVICIOS DE SALUD EN ALCALDIAS | F103: Campañas de planificación familiar y prevención de enfermedades de trasmisión sexual. | G103: 0.25 | H103: 0.5 | I103: 0.75 | J103: 1 | K103: 0.34 | L103: Se programaron un total de XXX campañas de planificación familiar y prevención de enfermedades de trasmisión sexual. | M103: Se realizaron XX campañas de planificación familiar y prevención de enfermedades de trasmisión sexual, lo que representa un avance del XXX por ciento de las XXX programadas para el presente ejercicio fiscal. | O103: 02CD06E189
A104: 02CD06 | B104: 02CD06_20 | C104: 02CD06E190_1 | D104: E190 | E104: SERVICIOS DE ATENCION ANIMAL | F104: Campañas de cirugías, esterilización y vacunación animal gratuita. | G104: 0.25 | H104: 0.5 | I104: 0.75 | J104: 1 | K104: 0.25 | L104: Se programaron un total de XXX campañas de cirugías, esterilización y vacunación animal gratuita. | M104: Se realizaron XX campañas de cirugías, esterilización y vacunación animal gratuita, lo que representa un avance del XXX por ciento de las XXX programadas para el presente ejercicio fiscal. | O104: 02CD06E190
A105: 02CD06 | B105: 02CD06_21 | C105: 02CD06E190_2 | D105: E190 | E105: SERVICIOS DE ATENCION ANIMAL | F105: Jornadas de difusión de tenencia responsable de animales de compañía. | G105: 0.25 | H105: 0.5 | I105: 0.75 | J105: 1 | K105: 0.25 | L105: Se programaron un total de XXX jornadas de difusión para la tenencia responsable de animales de compañía. | M105: Se realizaron XX jornadas de difusión para la tenencia responsable de animales de compañía, lo que representa un avance del XXX por ciento de las XXX programadas para el presente ejercicio fiscal. | O105: 02CD06E190
A106: 02CD06 | B106: 02CD06_22 | C106: 02CD06E190_3 | D106: E190 | E106: SERVICIOS DE ATENCION ANIMAL | F106: Habilitación de áreas para mascotas en parques y jardines en la Alcaldía. | G106: 0.25 | H106: 0.5 | I106: 0.75 | J106: 1 | K106: 0.25 | L106: Se programó habilitar XXX áreas para mascotas en parques y jardines de la Alcaldía. | M106: Se realizó la habilitación de XXX áreas para mascotas en parques y jardines de la Alcaldía, lo que representa un avance del XXX por ciento de las XXX programadas para el presente ejercicio fiscal. | O106: 02CD06E190
A107: 02CD06 | B107: 02CD06_23 | C107: 02CD06E190_4 | D107: E190 | E107: SERVICIOS DE ATENCION ANIMAL | F107: Servicios de adiestramiento y adopción responsable de animales de compañía. | G107: 0.25 | H107: 0.5 | I107: 0.75 | J107: 1 | K107: 0.25 | L107: Se programaron XXX servicios de adiestramiento y adopción responsable de animales de compañía. | M107: Se realizaron XXX servicios de adiestramiento y adopción responsable de animales de compañía, lo que representa un avance del XXX por ciento de las XXX programadas para el presente ejercicio fiscal. | O107: 02CD06E190
A108: 02CD06 | B108: 02CD06_24 | C108: 02CD06E198_1 | D108: E198 | E108: SERVICIOS DE CUIDADO INFANTIL | F108: Atención integral a los infantes de 0 a 5.11 años de edad inscritos en los Centros de desarrollo infantil que operan dentro de la Alcaldía. | G108: 0.25 | H108: 0.5 | I108: 0.75 | J108: 1 | K108: 0.34 | L108: Se programó la atención de XXX menores, siendo XXX niñas y XXX niños en los 18 Centros de Desarrollo Infantil. | M108: Se atendieron XXX menores, lo que representa un avance del XXX por ciento de los XXX programados para el presente ejercicio fiscal, estos corresponden a XXX niñas y XXX niños en los 18 Centros de Desarrollo Infantil. | O108: 02CD06E198
A109: 02CD06 | B109: 02CD06_25 | C109: 02CD06E198_2 | D109: E198 | E109: SERVICIOS DE CUIDADO INFANTIL | F109: Entrega de alimentos nutritivos a los infantes de 0 a 5.11 años de edad inscritos en los Centros de desarrollo infantil que operan dentro de la Alcaldía. | G109: 0.25 | H109: 0.5 | I109: 0.75 | J109: 1 | K109: 0.33 | L109: Se programó la entrega de XXX menús nutritivos para los menores inscritos en los Centros de Desarrollo Infantil. | M109: Se realizó la entrega de XXX menús nutritivos, lo que representa un avance del XXX por ciento de los XXX programados para el presente ejercicio fiscal, para los menores inscritos en los Centros de Desarrollo Infantil. | O109: 02CD06E198
A110: 02CD06 | B110: 02CD06_26 | C110: 02CD06E198_3 | D110: E198 | E110: SERVICIOS DE CUIDADO INFANTIL | F110: Consultas de atención Psicopedagógica a los infantes de 0 a 5.11 años de edad inscritos en los Centros de desarrollo infantil que operan dentro de la Alcaldía. | G110: 0.25 | H110: 0.5 | I110: 0.75 | J110: 1 | K110: 0.33 | L110: Se programaron XXX consultas de atención psicopedagógica a los menores inscritos en los Centros de Desarrollo Infantil. | M110: Se brindaron XXX consultas de atención psicopedagógica, lo que representa un avance del XXX por ciento de las XXX programadas para el presente ejercicio fiscal, a los menores inscritos en los Centros de Desarrollo Infantil. | O110: 02CD06E198
A111: 02CD06 | B111: 02CD06_27 | C111: 02CD06F037_1 | D111: F037 | E111: TURISMO, EMPLEO Y FOMENTO ECONOMICO | F111: Capacitaciones para el trabajo a personas emprendedoras de la Alcaldía. | G111: 0.25 | H111: 0.5 | I111: 0.75 | J111: 1 | K111: 0.25 | L111: Se programaron XXX capacitaciones para el trabajo a personas emprendedoras de la Alcaldía. | M111: Se realizaron XXX capacitaciones para el trabajo, lo que representa un avance del XXX por ciento de las XXX programadas para el presente ejercicio fiscal, las cuales estuvieron dirigidas a personas emprendedoras de la Alcaldía. | O111: 02CD06F037
A112: 02CD06 | B112: 02CD06_28 | C112: 02CD06F037_2 | D112: F037 | E112: TURISMO, EMPLEO Y FOMENTO ECONOMICO | F112: Proyectos presentados “Impulso emprendedor”. | G112: 0.25 | H112: 0.5 | I112: 0.75 | J112: 1 | K112: 0.25 | L112: Se programó la aprobación de XXX proyectos presentados en el marco del proyecto "Impulso emprendedor". | M112: Se aprobaron XXX proyectos, lo que representa un avance del XXX por ciento de los XXX programados para el presente ejercicio fiscal, presentados en el marco del proyecto "Impulso emprendedor". | O112: 02CD06F037
A113: 02CD06 | B113: 02CD06_29 | C113: 02CD06F037_3 | D113: F037 | E113: TURISMO, EMPLEO Y FOMENTO ECONOMICO | F113: Créditos presentados a nuevos emprendedores. | G113: 0.25 | H113: 0.5 | I113: 0.75 | J113: 1 | K113: 0.25 | L113: Se programó otorgar XXX créditos a nuevos emprendedores. | M113: Se otorgaron XXX créditos a nuevos emprendedores, lo que representa un avance del XXX por ciento de los XXX programados para el presente ejercicio fiscal. | O113: 02CD06F037
A114: 02CD06 | B114: 02CD06_30 | C114: 02CD06F037_4 | D114: F037 | E114: TURISMO, EMPLEO Y FOMENTO ECONOMICO | F114: Campañas de capacitación para el trabajo. | G114: 0.25 | H114: 0.5 | I114: 0.75 | J114: 1 | K114: 0.25 | L114: Se programaron XXX campañas de capacitación para el trabajo. | M114: Se realizaron XXX campañas de capacitación para el trabajo, lo que representa un avance del XXX por ciento de los XXX programados para el presente ejercicio fiscal. | O114: 02CD06F037
A115: 02CD06 | B115: 02CD06_31 | C115: 02CD06K023_1 | D115: K023 | E115: INFRAESTRUCTURA URBANA | F115: Construcción de banquetas y repavimentación, rehabilitación integral de vialidades a través de obra pública por contrato. | G115: 0.25 | H115: 0.5 | I115: 0.75 | J115: 1 | K115: 0.25 | L115: Se programaron XXX obras para la construcción de banquetas, repavimentación, rehabilitación integral de vialidades. | M115: Se realizaron XX obras para la Alcaldía, lo que representa un avance del XXX por ciento de las XXX programadas para el presente ejercicio fiscal, las cuales fueron para la construcción de banquetas, repavimentación, rehabilitación integral de vialidades. | O115: 02CD06K023
A116: 02CD06 | B116: 02CD06_32 | C116: 02CD06K023_2 | D116: K023 | E116: INFRAESTRUCTURA URBANA | F116: Rehabilitación de los mercados públicos a través de obra pública por contrato. | G116: 0.25 | H116: 0.5 | I116: 0.75 | J116: 1 | K116: 0.25 | L116: Se programaron XXX obras para la rehabilitación de mercados públicos. | M116: Se realizaron XX obras para la rehabilitación de mercados públicos, lo que representa un avance del XXX por ciento de las XXX programadas para el presente ejercicio fiscal. | O116: 02CD06K023
A117: 02CD06 | B117: 02CD06_33 | C117: 02CD06K023_3 | D117: K023 | E117: INFRAESTRUCTURA URBANA | F117: Construcción, ampliación, mantenimiento y rehabilitación de deportivos a través de obra pública por contrato. | G117: 0.25 | H117: 0.5 | I117: 0.75 | J117: 1 | K117: 0.25 | L117: Se programaron XXX obras para la construcción, ampliación y rehabilitación de deportivos. | M117: Se realizaron XX obras en deportivos, lo que representa un avance del XXX por ciento de las XXX programadas para el presente ejercicio fiscal, las cuales fueron para la construcción, ampliación y rehabilitación de estos espacios. | O117: 02CD06K023
A118: 02CD06 | B118: 02CD06_34 | C118: 02CD06K023_4 | D118: K023 | E118: INFRAESTRUCTURA URBANA | F118: Programa de mejoramiento de las zonas y sitios históricos. | G118: 0.25 | H118: 0.5 | I118: 0.75 | J118: 1 | K118: 0.25 | L118: Se programaron XXX obras para el mejoramiento de las zonas y sitios históricos. | M118: Se realizaron XX obras para el mejoramiento de las zonas y sitios históricos, lo que representa un avance del XXX por ciento de las XXX programadas para el presente ejercicio fiscal. | O118: 02CD06K023
A119: 02CD06 | B119: 02CD06_35 | C119: 02CD06K026_1 | D119: K026 | E119: INFRAESTRUCTURA DE AGUA POTABLE EN ALCALDIAS | F119: Mantenimiento y rehabilitación en la infraestructura hidráulica de la red de agua potable de la Alcaldía Cuauhtémoc. | G119: 0.25 | H119: 0.5 | I119: 0.75 | J119: 1 | K119: 1 | L119: Se programaron XXX mantenimientos para la infraestructura hidráulica de la red de agua potable de la Alcaldía. | M119: Se realizaron XX mantenimientos para la infraestructura hidráulica de la red de agua potable, lo que representa un avance del XXX por ciento de los XXX programados para el presente ejercicio fiscal. | O119: 02CD06K026
A120: 02CD06 | B120: 02CD06_36 | C120: 02CD06K027_1 | D120: K027 | E120: INFRAESTRUCTURA DE DRENAJE, ALCANTARILLADO Y SANEAMIENTO EN ALCALDIAS | F120: Mantenimiento y rehabilitación de la red hidráulica de drenaje y alcantarillado de las 33 colonias de la Alcaldía Cuauhtémoc. | G120: 0.25 | H120: 0.5 | I120: 0.75 | J120: 1 | K120: 1 | L120: Se programaron XXX mantenimientos para la red de drenaje y alcantarillado de la Alcaldía. | M120: Se realizaron XX mantenimientos para la red de drenaje, lo que representa un avance del XXX por ciento de los XXX programados para el presente ejercicio fiscal. | O120: 02CD06K027
A121: 02CD06 | B121: 02CD06_37 | C121: 02CD06M001_1 | D121: M001 | E121: ACTIVIDADES DE APOYO ADMINISTRATIVO | F121: Cursos de capacitación al personal administrativo y operativo de la Alcaldía. | G121: 0.25 | H121: 0.5 | I121: 0.75 | J121: 1 | K121: 0.33 | L121: Se programaron XXX cursos de capacitación al personal administrativo y operativo de la Alcaldía. | M121: Se realizaron XX cursos de capacitación, lo que representa un avance del XXX por ciento de los XXX programados para el presente ejercicio fiscal y que fueron para el personal administrativo y operativo de la Alcaldía. | O121: 02CD06M001
A122: 02CD06 | B122: 02CD06_38 | C122: 02CD06M001_2 | D122: M001 | E122: ACTIVIDADES DE APOYO ADMINISTRATIVO | F122: Recursos Materiales necesarios para la operación de la Alcaldía. | G122: 0.25 | H122: 0.5 | I122: 0.75 | J122: 1 | K122: 0.33 | L122: Se programaron XXX adquisiciones de recursos materiales. | M122: Se realizaron XXX adquisiciones de recursos materiales, lo que representa un avance del XXX por ciento de las XXX programadas para el presente ejercicio fiscal. | O122: 02CD06M001
A123: 02CD06 | B123: 02CD06_39 | C123: 02CD06M001_3 | D123: M001 | E123: ACTIVIDADES DE APOYO ADMINISTRATIVO | F123: Servicios generales necesarios para la operación de la Alcaldía. | G123: 0.25 | H123: 0.5 | I123: 0.75 | J123: 1 | K123: 0.34 | L123: Se programaron XXX servicios generales. | M123: Se realizaron XXX servicios generales, lo que representa un avance del XXX por ciento de los XXX programados para el presente ejercicio fiscal. | O123: 02CD06M001
A124: 02CD06 | B124: 02CD06_40 | C124: 02CD06M002_1 | D124: M002 | E124: PROVISIONES PARA CONTINGENCIAS | F124: Resolución de Laudos y/o sentencias que se tienen en la Alcaldía. | G124: 0 | H124: 0.25 | I124: 0.75 | J124: 1 | K124: 1 | L124: Se estima la atención de XXX resoluciones emitidas por los órganos jurisdiccionales. | M124: Se atendieron XXX resoluciones emitidas por los órganos jurisdiccionales, lo que representa un avance del XXX por ciento de las XXX programadas para el presente ejercicio fiscal. | O124: 02CD06M002
A125: 02CD06 | B125: 02CD06_41 | C125: 02CD06N001_1 | D125: N001 | E125: CUMPLIMIENTO DE LOS PROGRAMAS DE PROTECCION CIVIL | F125: Capacitación en materia de gestión integral de riesgos y protección civil a la población en general. | G125: 0.25 | H125: 0.5 | I125: 0.75 | J125: 1 | K125: 0.25 | L125: Se programaron XXX capacitaciones en materia de Gestión Integral de Riesgos y Protección Civil. | M125: Se realizaron XXX capacitaciones en materia de Gestión Integral de Riesgos y Protección Civil, lo que representa un avance del XXX por ciento de las XXX programadas para el presente ejercicio fiscal. | O125: 02CD06N001
A126: 02CD06 | B126: 02CD06_42 | C126: 02CD06N001_2 | D126: N001 | E126: CUMPLIMIENTO DE LOS PROGRAMAS DE PROTECCION CIVIL | F126: Apoyos a la ciudadanía de la demarcación territorial en caso de riesgo. | G126: 0.25 | H126: 0.5 | I126: 0.75 | J126: 1 | K126: 0.25 | L126: Se programaron XXX apoyos a la ciudadanía de la demarcación territorial en caso de riesgo. | M126: Se otorgaron XXX apoyos a la ciudadanía de la demarcación territorial en caso de riesgo, lo que representa un avance del XXX por ciento de los XXX programados para el presente ejercicio fiscal. | O126: 02CD06N001
A127: 02CD06 | B127: 02CD06_43 | C127: 02CD06N001_3 | D127: N001 | E127: CUMPLIMIENTO DE LOS PROGRAMAS DE PROTECCION CIVIL | F127: Evaluación de inmuebles considerados de riesgo. | G127: 0.25 | H127: 0.5 | I127: 0.75 | J127: 1 | K127: 0.25 | L127: Se programaron XXX evaluaciones de inmuebles considerados de riesgo. | M127: Se realizaron XXX evaluaciones de inmuebles considerados de riesgo, lo que representa un avance del XXX por ciento de las XXX programadas para el presente ejercicio fiscal. | O127: 02CD06N001
A128: 02CD06 | B128: 02CD06_44 | C128: 02CD06N001_4 | D128: N001 | E128: CUMPLIMIENTO DE LOS PROGRAMAS DE PROTECCION CIVIL | F128: Mantenimiento y revisión de extintores que se ubican en los inmuebles de la Alcaldía. | G128: 0.25 | H128: 0.5 | I128: 0.75 | J128: 1 | K128: 0.25 | L128: Se programaron XXX mantenimientos a extintores que se ubican en los inmuebles de la Alcaldía. | M128: Se realizaron XXX mantenimientos a extintores que se ubican en los inmuebles de la Alcaldía, lo que representa un avance del XXX por ciento de los XXX programados para el presente ejercicio fiscal. | O128: 02CD06N001
A129: 02CD06 | B129: 02CD06_45 | C129: 02CD06R002_1 | D129: R002 | E129: PRESUPUESTO PARTICIPATIVO | F129: Proyectos de presupuesto participativo. | G129: 0 | H129: 0.1 | I129: 0.6 | J129: 1 | K129: 1 | L129: Se programaron XXX proyectos para el presupuesto participativo. | M129: Se realizaron XXX proyectos de presupuesto participativo los cuales representan un avance del XXX por ciento de los XXX programados para el presente ejercicio fiscal. | O129: 02CD06R002
A130: 02CD06 | B130: 02CD06_46 | C130: 02CD06S230_1 | D130: S230 | E130: PROGRAMA PARA ENFERMEDADES CRONICO DEGENERATIVAS Y DISCAPACIDAD | F130: Apoyos económicos para personas que cuidan hijos con enfermedades cognitivas, discapacidad y Oncológicas. | G130: 0.25 | H130: 0.5 | I130: 0.75 | J130: 1 | K130: 0.33 | L130: Se programaron XXX apoyos económicos para personas que cuidan hijos con enfermedades cognitivas, discapacidad y oncológicas. | M130: Se otorgaron XXX apoyos económicos para personas que cuidan hijos con enfermedades cognitivas, discapacidad y oncológicas, lo que representa un avance del XXX por ciento de los XXX programados para el presente ejercicio fiscal. | O130: 02CD06S230
A131: 02CD06 | B131: 02CD06_47 | C131: 02CD06S230_2 | D131: S230 | E131: PROGRAMA PARA ENFERMEDADES CRONICO DEGENERATIVAS Y DISCAPACIDAD | F131: Apoyos en especie (medicamentos) a personas con enfermedades crónico degenerativas. | G131: 0.25 | H131: 0.5 | I131: 0.75 | J131: 1 | K131: 0.34 | L131: Se programaron XXX apoyos económicos para que personas con enfermedades crónico degenerativas cuenten con medicamentos. | M131: Se otorgaron XXX apoyos económicos para que personas con enfermedades crónico degenerativas cuenten con medicamentos, lo que representa un avance del XXX por ciento de los XXX programados para el presente ejercicio fiscal. | O131: 02CD06S230
A132: 02CD06 | B132: 02CD06_48 | C132: 02CD06S230_3 | D132: S230 | E132: PROGRAMA PARA ENFERMEDADES CRONICO DEGENERATIVAS Y DISCAPACIDAD | F132: Apoyos económicos para el traslado y suministro de alimentos a personas diagnosticadas con cáncer en situación de vulnerabilidad económica. | G132: 0.25 | H132: 0.5 | I132: 0.75 | J132: 1 | K132: 0.33 | L132: Se programaron XXX apoyos económicos para el traslado y suministro de alimentos a personas diagnosticadas con cáncer en situación de vulnerabilidad económica. | M132: Se otorgaron XXX apoyos económicos para personas que cuidan hijos con enfermedades cognitivas, discapacidad y oncológicas, lo que representa un avance del XXX por ciento de los XXX programados para el presente ejercicio fiscal. | O132: 02CD06S230
A133: 02CD06 | B133: 02CD06_49 | C133: 02CD06S232_1 | D133: S232 | E133: AYUDAS PARA LA COMUNIDAD LGBTTTIQ+ | F133: Ayuda económica para la comunidad LGBTTTIQ+. | G133: 0.25 | H133: 0.5 | I133: 0.75 | J133: 1 | K133: 1 | L133: Se programaron XXX apoyos económicos para la comunidad LGBTTTIQ+. | M133: Se otorgaron XXX apoyos económicos para la comunidad LGBTTTIQ+, lo que representa un avance del XXX por ciento de los XXX programados para el presente ejercicio fiscal. | O133: 02CD06S232
A134: 02CD06 | B134: 02CD06_50 | C134: 02CD06U048_1 | D134: U048 | E134: APOYOS SOCIALES | F134: Acción social. Entrega de aparatos ortopédicos: sillas de ruedas, bastones de cuatro puntos de apoyo y andaderas para adultos mayores. | G134: 0.25 | H134: 0.5 | I134: 0.75 | J134: 1 | K134: 0.2 | L134: Se programaron XXX entregas de aparatos ortopédicos: sillas de ruedas, bastones de cuatro puntos de apoyo y andaderas para adultos mayores. | M134: Se otorgaron XXX entregas de aparatos ortopédicos, lo que representa un avance del XXX por ciento de los XXX programados para el presente ejercicio fiscal, los cuales corresponden a sillas de ruedas, bastones de cuatro puntos de apoyo y andaderas para adultos mayores. | O134: 02CD06U048
A135: 02CD06 | B135: 02CD06_51 | C135: 02CD06U048_2 | D135: U048 | E135: APOYOS SOCIALES | F135: Apoyo alimentario en especie (despensas a familias en situación de vulnerabilidad). | G135: 0.25 | H135: 0.5 | I135: 0.75 | J135: 1 | K135: 0.2 | L135: Se programaron XXX apoyos en especie (despensas a familias en situación de vulnerabilidad). | M135: Se otorgaron XXX apoyos en especie (despensas a familias en situación de vulnerabilidad), lo que representa un avance del XXX por ciento de los XXX programados para el presente ejercicio fiscal. | O135: 02CD06U048
A136: 02CD06 | B136: 02CD06_52 | C136: 02CD06U048_3 | D136: U048 | E136: APOYOS SOCIALES | F136: Acción social. Mantenimiento a viviendas en situación de vulnerabilidad (pintura, herrería, impermeabilidad en techos, trabajos de albañilería). | G136: 0.25 | H136: 0.5 | I136: 0.75 | J136: 1 | K136: 0.2 | L136: Se programaron XXX mantenimientos a viviendas en situación de vulnerabilidad tales como pintura, herrería, impermeabilidad en techos, trabajos de albañilería. | M136: Se otorgaron XXX mantenimientos a viviendas en situación de vulnerabilidad, lo que representa un avance del XXX por ciento de los XXX programados para el presente ejercicio fiscal, los cuales corresponden pintura, herrería, impermeabilidad en techos, trabajos de albañilería. | O136: 02CD06U048
A137: 02CD06 | B137: 02CD06_53 | C137: 02CD06U048_4 | D137: U048 | E137: APOYOS SOCIALES | F137: Acción social: Cambiemos nuestro tinaco. | G137: 0.25 | H137: 0.5 | I137: 0.75 | J137: 1 | K137: 0.2 | L137: Se programaron XXX apoyos para sustituir tinacos en la Alcaldía. | M137: Se otorgaron XXX apoyos para sustituir tinacos, lo que representa un avance del XXX por ciento de los XXX programados para el presente ejercicio fiscal. | O137: 02CD06U048
A138: 02CD06 | B138: 02CD06_54 | C138: 02CD06U048_5 | D138: U048 | E138: APOYOS SOCIALES | F138: Acción social. Apoyos Funerarios a personas en situación vulnerable. | G138: 0.25 | H138: 0.5 | I138: 0.75 | J138: 1 | K138: 0.2 | L138: Se programaron XXX apoyos funerarios a personas en situación vulnerable. | M138: Se otorgaron XXX apoyos funerarios a personas en situación vulnerable, lo que representa un avance del XXX por ciento de los XXX programados para el presente ejercicio fiscal. | O138: 02CD06U048
A139: 02CD07 | B139: 02CD07_1 | C139: 02CD07E185_1 | D139: E185 | E139: GOBIERNO Y ATENCION CIUDADANA | F139: Audiencias públicas realizadas (diálogos maderenses). | G139: 0.3 | H139: 0.5 | I139: 0.7 | J139: 1 | K139: 0.2 | L139: Se programó la realización de 34 audiencias públicas para la promoción de la participación ciudadana en plática directa con las autoridades de la alcaldía, en diferentes colonias de la Alcaldía. | M139: Se realizaron 10 audiencias que representan un avance del 31 por ciento de las 34 programadas para el presente ejercicio fiscal, beneficiando a 9,300 personas. | O139: 02CD07E185
A140: 02CD07 | B140: 02CD07_2 | C140: 02CD07E185_2 | D140: E185 | E140: GOBIERNO Y ATENCION CIUDADANA | F140: Solicitudes y trámites ciudadanos realizados. | G140: 0.3 | H140: 0.5 | I140: 0.7 | J140: 1 | K140: 0.16 | L140: Se programó la realización de 22,600 orientaciones en el marco de las atribuciones de la Ventanilla Única de Trámites (VUT). | M140: Se realizaron 7200 orientaciones de trámites que representan un avance del 32 por ciento de las 22,600 orientaciones programadas para el presente ejercicio fiscal. | O140: 02CD07E185
A141: 02CD07 | B141: 02CD07_3 | C141: 02CD07E185_3 | D141: E185 | E141: GOBIERNO Y ATENCION CIUDADANA | F141: Eventos y talleres para el fomento de la participación ciudadana realizados. | G141: 0.3 | H141: 0.5 | I141: 0.7 | J141: 1 | K141: 0.16 | L141: Se programó la realización de 88 talleres con temas de Cultura Cívica, Iniciativas y Consultas Ciudadanas, Lengua de Señas Mexicanas y Teatro Guiñol, así como la realización de 8 eventos denominados "Mandálas Comunitarias". | M141: Se realizaron XX talleres y X eventos, que representan el 29 por ciento de los 88 talleres y 8 eventos programados para el presente ejercicio fiscal, beneficiando a 6000 personas. | O141: 02CD07E185
A142: 02CD07 | B142: 02CD07_4 | C142: 02CD07E185_4 | D142: E185 | E142: GOBIERNO Y ATENCION CIUDADANA | F142: Atención a solicitudes de información pública realizadas | G142: 0.3 | H142: 0.5 | I142: 0.7 | J142: 1 | K142: 0.16 | L142: Se programó la atención de 8,600 solicitudes de información pública en materia de actos de gobierno, presupuestal, programas y acciones sociales y de personal. | M142: Se atendieron XX solicitudes de información pública, que representan el 29 por ciento de las 8600 programadas para el presente ejercicio fiscal. | O142: 02CD07E185
A143: 02CD07 | B143: 02CD07_5 | C143: 02CD07E185_5 | D143: E185 | E143: GOBIERNO Y ATENCION CIUDADANA | F143: Reordenamiento del comercio en la vía pública ejecutadas. | G143: 0.3 | H143: 0.5 | I143: 0.7 | J143: 1 | K143: 0.16 | L143: Se programó la reordenación de 90 puntos de venta en donde el comercio informal realiza actividades mercantiles, así como un censo de comerciantes formales e informales dentro del perímetro de la Alcaldía | M143: Se reordenaron XX puntos de comercio informal, que representan el 25 por ciento de los 90 reordenamientos y el censo programados para el presente ejercicio fiscal, beneficiando a 8450 personas. | O143: 02CD07E185
A144: 02CD07 | B144: 02CD07_6 | C144: 02CD07E185_6 | D144: E185 | E144: GOBIERNO Y ATENCION CIUDADANA | F144: Apoyos para el desarrollo de habilidades, fomento al desarrollo económico y social de la comunidad (Pro-Social). | G144: 0.3 | H144: 0.5 | I144: 0.7 | J144: 1 | K144: 0.16 | L144: Se programó la contratación de 200 facilitadores de servicios que realizarán actividades relacionadas con la recopilación de resultados, sondeos comunitarios y consolidación de datos referentes a la gestión administrativa, planeación gubernamental, el desarrollo social, la evaluación de políticas, los índices delictivos, e identificación de puntos de mejora en los servicios públicos, la actividad gubernamental, la búsqueda de áreas de oportunidad en la mejora de la gobernabilidad y la gobernanza de la Alcaldía. | M144: Se realizaron XX contrataciones de facilitadores, que representan el 0% de las 200 programadas para el presente ejercicio fiscal | O144: 02CD07E185
A145: 02CD07 | B145: 02CD07_7 | C145: 02CD07E186_1 | D145: E186 | E145: SEGURIDAD EN ALCALDIAS | F145: Acciones para la prevención del delito realizadas. | G145: 0.3 | H145: 0.5 | I145: 0.7 | J145: 1 | K145: 0.5 | L145: Se programó la realización de XX talleres, XX pláticas, XX creaciones de redes vecinales, XX ferias, XX visitas domiciliarias de proximidad social, XX atenciones y orientaciones jurídicas como psicológicas a través del Call Center. | M145: Se realizaron XX talleres, XX pláticas, XX creaciones de redes vecinales, XX ferias, XX visitas domiciliarias de proximidad social, XX atenciones y orientaciones jurídicas como psicológicas, lo que representan un avance del 28 por ciento de las XXX programadas para el presente ejercicio fiscal, beneficiando a 82,689 personas | O145: 02CD07E186
A146: 02CD07 | B146: 02CD07_8 | C146: 02CD07E186_2 | D146: E186 | E146: SEGURIDAD EN ALCALDIAS | F146: Acciones operativas y de prevención de delitos de alto impacto realizadas. | G146: 0.3 | H146: 0.5 | I146: 0.7 | J146: 1 | K146: 0.5 | L146: Se programó la realización de 189,229 operativos de prevención del delito que se realizan a través de visitas, códigos domiciliarios, recorridos, presencia, vigilancia, estudios, retiro de vehículos en calidad de chatarra y reuniones dirigidas a vecinos, población estudiantil y académica, comerciantes, visitantes, pasajeros que viven y transitan en calles y colonias de mayor incidencia en Gustavo A. Madero | M146: Se realizaron 52,000 operativos, lo que representa un avance del 27 por ciento de los 189,229 programados para el presente ejercicio fiscal. | O146: 02CD07E186
A147: 02CD07 | B147: 02CD07_9 | C147: 02CD07E187_1 | D147: E187 | E147: SERVICIOS PUBLICOS | F147: Recolección de basura (orgánica e inorgánica) realizada. | G147: 0.3 | H147: 0.5 | I147: 0.7 | J147: 1 | K147: 0.3 | L147: Se programó la recolección de 1,100,000 toneladas de residuos orgánicos e inorgánicos a través del reforzamiento del servicio público de limpia en sus etapas de barrido manual y recolección de basura en domicilios, planteles educativos, mercados, panteones y edificios públicos. Separación de Residuos Sólidos. Adaptación del servicio de barrido manual y recolección vespertino-nocturno. Programa de “Erradicación de Basureros Clandestinos”, consistente en: Lavar y desinfectar el espacio público. | M147: Se realizó la recolección de 3,410,000 toneladas de residuos, lo que representa un avance del 31 por ciento de las 1,100,000 programadas para el presente ejercicio fiscal | O147: 02CD07E187
A148: 02CD07 | B148: 02CD07_10 | C148: 02CD07E187_2 | D148: E187 | E148: SERVICIOS PUBLICOS | F148: Distribución de agua potable realizada. | G148: 0.3 | H148: 0.5 | I148: 0.7 | J148: 1 | K148: 0.3 | L148: Se programó la distribución de 168,000 metro cúbicos de agua potable a la población de la Alcaldía. | M148: Se distribuyeron 52,000 metros cúbicos, lo que representa un avance del 31 por ciento de los 168,000 programados para el presente periodo fiscal | O148: 02CD07E187
A149: 02CD07 | B149: 02CD07_11 | C149: 02CD07E187_3 | D149: E187 | E149: SERVICIOS PUBLICOS | F149: Mantenimiento y rehabilitación de parques y jardines realizado. | G149: 0.3 | H149: 0.5 | I149: 0.7 | J149: 1 | K149: 0.2 | L149: Se programó el mantenimiento de 2,100,000 metros cuadrados de áreas verdes urbanas ubicadas en la Alcaldía. | M149: Se realizó el mantenimiento de 650,000 metros cuadrados, lo que representa un avance del 31 por ciento de los 2,100,000 programados para el presente ejercicio fiscal. | O149: 02CD07E187
A150: 02CD07 | B150: 02CD07_12 | C150: 02CD07E187_4 | D150: E187 | E150: SERVICIOS PUBLICOS | F150: Atención y servicios de panteones realizados. | G150: 0.3 | H150: 0.5 | I150: 0.7 | J150: 1 | K150: 0.2 | L150: Se programó la atención de 1,555 servicios en los Panteones de la Alcaldía | M150: Se realizaron XXX servicios, lo que representa el 26 por ciento de los 1,555 programados para el presente ejercicio fiscal. | O150: 02CD07E187
A151: 02CD07 | B151: 02CD07_13 | C151: 02CD07E188_1 | D151: E188 | E151: EDUCACION, CULTURA, DEPORTE Y RECREACION | F151: Actividades culturales realizadas. | G151: 0.3 | H151: 0.5 | I151: 0.7 | J151: 1 | K151: 0.2 | L151: Se programó la realización de 1629 eventos culturales en un amplio abanico de atención para la promoción de todo tipo de manifestaciones culturales como son las mesas de diálogo con la comunidad, celebración de aniversarios de recintos culturales, presentaciones de agrupaciones musicales de la alcaldía, talleres comunitarios de laudería y de música para niñas, niños, adolescentes y adultos mayores, exposiciones, cine en espacios públicos, personalidades en la cultura, literatura y la capacitación con este enfoque a talleristas. | M151: Se realizaron 260 eventos, lo que representa el 16 por ciento de los 1,629 programados para el presente ejercicio fiscal. | O151: 02CD07E188
A152: 02CD07 | B152: 02CD07_14 | C152: 02CD07E188_2 | D152: E188 | E152: EDUCACION, CULTURA, DEPORTE Y RECREACION | F152: Organización de torneos y competencias deportivas. | G152: 0.3 | H152: 0.5 | I152: 0.7 | J152: 1 | K152: 0.2 | L152: Ser programó la realización de 1,294 eventos deportivos para el fomento de la actividad física y deportiva. | M152: Se realizaron 64 eventos deportivos, lo que representa un avance del 5 por ciento de los 1,260 programados para el presente ejercicio fiscal | O152: 02CD07E188
A153: 02CD07 | B153: 02CD07_15 | C153: 02CD07E188_3 | D153: E188 | E153: EDUCACION, CULTURA, DEPORTE Y RECREACION | F153: Festividades patrias y recorridos turísticos. | G153: 0.3 | H153: 0.5 | I153: 0.7 | J153: 1 | K153: 0.2 | L153: Se programó la realización de 336 eventos turísticos y distintas festividades patrias tales como el Día de la Bandera, o el Natalicio de Benito Juárez, entre otras, desde las ceremonias institucionales acompañando al alcalde, como bien en versiones para los recintos de la infraestructura cultural de la alcaldía, en estas actividades se considera el acompañamiento en tequios y similares. | M153: Se realizaron 115 eventos, lo que representa un avance del 34 por ciento de los 336 programados para el presente ejercicio fiscal. | O153: 02CD07E188
A154: 02CD07 | B154: 02CD07_16 | C154: 02CD07E188_4 | D154: E188 | E154: EDUCACION, CULTURA, DEPORTE Y RECREACION | F154: Proyectos comunitarios realizados. | G154: 0.3 | H154: 0.5 | I154: 0.7 | J154: 1 | K154: 0.2 | L154: Se programó la realización de 134 eventos comunitarios tendientes a la concientización en aspectos importantes del vínculo del arte con el rescate de espacios públicos. | M154: Se realizaron 22 eventos, lo que representa el 17 por ciento de los 134 programados para el presente ejercicio fiscal. | O154: 02CD07E188
A155: 02CD07 | B155: 02CD07_17 | C155: 02CD07E188_5 | D155: E188 | E155: EDUCACION, CULTURA, DEPORTE Y RECREACION | F155: Regularización académica para el ingreso a la preparatoria. | G155: 0.3 | H155: 0.5 | I155: 0.7 | J155: 1 | K155: 0.2 | L155: Se programó la realización de cursos de ingreso a la educación media superior; y/o cursos y talleres de creación a 300 jóvenes habitantes de la Alcaldía. | M155: Se brindaron cursos y/o talleres a XXX jóvenes, lo que corresponde al 0 por ciento de los 300 programados para el presente ejercicio fiscal. | O155: 02CD07E188
A156: 02CD07 | B156: 02CD07_18 | C156: 02CD07E189_1 | D156: E189 | E156: SERVICIOS DE SALUD EN ALCALDIAS | F156: Consultas de medicina general realizadas. | G156: 0.3 | H156: 0.5 | I156: 0.7 | J156: 1 | K156: 0.35 | L156: Se programó la atención a 2,000 personas en consulta externa en clínicas y dispensarios adscritos a la Alcaldía Gustavo A. Madero y canalización a otros centros más especializados cuando se requiere. | M156: Se realizó la atención a 520 personas, lo que representa un avance del 26 por ciento de las 2,000 programadas para el presente ejercicio fiscal. | O156: 02CD07E189
A157: 02CD07 | B157: 02CD07_19 | C157: 02CD07E189_2 | D157: E189 | E157: SERVICIOS DE SALUD EN ALCALDIAS | F157: Pruebas de detección de enfermedades crónico degenerativas transmisibles y no transmisibles realizadas. | G157: 0.3 | H157: 0.5 | I157: 0.7 | J157: 1 | K157: 0.35 | L157: Se programó la realización de 1,500 pruebas de VIH, sífilis y Hepatitis tipo C, a través de jornadas de pruebas rápidas en colonias de población vulnerable de la Alcaldía Gustavo A. Madero | M157: Se realizaron 300 pruebas, lo que representa un avance del 20 por ciento de las 1500 programadas para el presente ejercicio fiscal, las cuales corresponden a pruebas de VIH, sífilis y Hepatitis tipo C. | O157: 02CD07E189
A158: 02CD07 | B158: 02CD07_20 | C158: 02CD07E189_3 | D158: E189 | E158: SERVICIOS DE SALUD EN ALCALDIAS | F158: Talleres de salud sexual y reproductiva. | G158: 0.3 | H158: 0.5 | I158: 0.7 | J158: 1 | K158: 0.3 | L158: Se programó la realización de 200 talleres con temáticas en educación sexual, prevención del VIH e Infecciones de tipo sexual (ITS) y prevención del embarazo en adolescentes. | M158: Se realizaron 68 talleres, lo que representa un avance del 34 por ciento de los 200 programados para el presente ejercicio fiscal, dichos talleres corresponden a temáticas en educación sexual, prevención del VIH e Infecciones de tipo sexual (ITS) y prevención del embarazo en adolescentes. | O158: 02CD07E189
A159: 02CD07 | B159: 02CD07_21 | C159: 02CD07E190_1 | D159: E190 | E159: SERVICIOS DE ATENCION ANIMAL | F159: Campañas de vacunación y esterilización animal realizadas. | G159: 0.3 | H159: 0.5 | I159: 0.7 | J159: 1 | K159: 1 | L159: Se programó la realización de 4 campañas de aplicación de vacunas antirrábicas, esterilización de perros y gatos y convivencia con animales de compañía. | M159: Se realizaron XX campañas, lo que representa un avance del 0 por ciento de las 4 programadas para el presente ejercicio fiscal. | O159: 02CD07E190
A160: 02CD07 | B160: 02CD07_22 | C160: 02CD07E198_1 | D160: E198 | E160: SERVICIOS DE CUIDADO INFANTIL | F160: Atención a niños de 0 a 5.11 años en CACIS. | G160: 0.3 | H160: 0.5 | I160: 0.7 | J160: 1 | K160: 0.4 | L160: Se programó la atención de 500 servicios educativo-asistencial con perspectiva de género a población infantil de 0 a 5.11 años de edad inscrita en 13 Centros de Atención Infantil adscritos a la Alcaldía, a fin de garantizar el desarrollo integral de capacidades y aprendizaje. | M160: Se realizó la atención de 130 servicios, lo que representa un avance del 26 por ciento de los 500 programados para el presente ejercicio fiscal | O160: 02CD07E198
A161: 02CD07 | B161: 02CD07_23 | C161: 02CD07E198_2 | D161: E198 | E161: SERVICIOS DE CUIDADO INFANTIL | F161: Porciones nutricionales (alimentos) entregados. | G161: 0.3 | H161: 0.5 | I161: 0.7 | J161: 1 | K161: 0.35 | L161: Se programó la entrega de 125,000 porciones nutricionales a población infantil de 0 a 5.11 años de edad inscrita en 13 Centros de Atención Infantil adscritos a la Alcaldía Gustavo A. Madero, supervisadas por el área nutricional de cada unidad administrativa. | M161: Se realizó la entrega de 35,000 porciones nutricionales, lo que representa un avance del 28 por ciento de las 125,000 programadas para el presente ejercicio fiscal, las cuales se entregan a población infantil de 0 a 5.11 años de edad inscrita en 13 Centros de Atención Infantil adscritos a la Alcaldía Gustavo A. Madero, supervisadas por el área nutricional de cada unidad administrativa. | O161: 02CD07E198
A162: 02CD07 | B162: 02CD07_24 | C162: 02CD07E198_3 | D162: E198 | E162: SERVICIOS DE CUIDADO INFANTIL | F162: Atención psicológica proporcionada. | G162: 0.3 | H162: 0.5 | I162: 0.7 | J162: 1 | K162: 0.25 | L162: Se programó la realización de 500 consultas de diagnóstico a niñas y niños de 0 a 5.11 años de edad inscrita en 13 Centros de Atención Infantil adscritos a la Alcaldía Gustavo A. Madero, aplicado por el área de psicopedagogía que fue capacitada por el Hospital Infantil Federico Gómez. | M162: Se realizaron XX consultas, lo que representa un avance del 29 por ciento de las 500 programadas para el presente ejercicio fiscal, las cuales se realizan a niñas y niños de 0 a 5.11 años de edad inscrita en 13 Centros de Atención Infantil adscritos a la Alcaldía Gustavo A. Madero, aplicado por el área de psicopedagogía que fue capacitada por el Hospital Infantil Federico Gómez. | O162: 02CD07E198
A163: 02CD07 | B163: 02CD07_25 | C163: 02CD07F037_1 | D163: F037 | E163: TURISMO, EMPLEO Y FOMENTO ECONOMICO | F163: Gestión créditos para Mipymes y Mercados Públicos ante instancias de gobierno. | G163: 0.1 | H163: 0.5 | I163: 0.75 | J163: 1 | K163: 0.3 | L163: Se programó la gestión ante FONDESO se 1500 créditos para Mipymes y Mercados Públicos; lo anterior para la instalación de un negocio, ampliación y/o en su caso mejoramiento. | M163: Se realizó la gestión de 105 créditos, lo que representa un avance del 7 por ciento de los 1500 programados para el presente ejercicio fiscal. | O163: 02CD07F037
A164: 02CD07 | B164: 02CD07_26 | C164: 02CD07F037_2 | D164: F037 | E164: TURISMO, EMPLEO Y FOMENTO ECONOMICO | F164: Ferias para la promoción del empleo y de bienes y servicios realizadas. | G164: 0.1 | H164: 0.5 | I164: 0.75 | J164: 1 | K164: 0.3 | L164: Se programó la realización de 10 ferias del empleo y de bienes y servicios en la Alcaldía. | M164: Se realizó 1 evento, lo que representa un avance del 10 por ciento de las 10 programadas para el presente ejercicio fiscal. | O164: 02CD07F037
A165: 02CD07 | B165: 02CD07_27 | C165: 02CD07F037_3 | D165: F037 | E165: TURISMO, EMPLEO Y FOMENTO ECONOMICO | F165: Cursos y asesorías para Mipymes y locatarios de mercados realizadas. | G165: 0.1 | H165: 0.5 | I165: 0.75 | J165: 1 | K165: 0.1 | L165: Se programó la realización de 280 cursos para mipymes y locatarios de mercados públicos, para elevar sus conocimientos en gestión empresarial y administración de negocios, así como para la gestión de créditos. | M165: Se realizarón 28 cursos para mipymes y locatarios de mercados públicos, para elevar sus conocimientos en gestión empresarial y administración de negocios, así como para la gestión de créditos. , lo que representa un avance del 10 por ciento de los 280 cursos programados para el presente ejercicio fiscal. | O165: 02CD07F037
A166: 02CD07 | B166: 02CD07_28 | C166: 02CD07F037_4 | D166: F037 | E166: TURISMO, EMPLEO Y FOMENTO ECONOMICO | F166: Mejoramiento de la imagen urbana (PROCOMUR). | G166: 0.1 | H166: 0.5 | I166: 0.75 | J166: 1 | K166: 0.3 | L166: Se programó la contratación de 800 facilitadores de servicios para la operación del Programa Social "Programa comunitario mejoramiento urbano (Procomur). | M166: Se realizó la contratación de 80 facilitadores, lo que representa un avance del 10 por ciento de los 800 programados para el presente ejercicio fiscal. | O166: 02CD07F037
A167: 02CD07 | B167: 02CD07_29 | C167: 02CD07K023_1 | D167: K023 | E167: INFRAESTRUCTURA URBANA | F167: Rehabilitación, mantenimiento y recuperación de espacios públicos. | G167: 0.1 | H167: 0.5 | I167: 0.75 | J167: 1 | K167: 0.3 | L167: Se programó la realización de 2 obras; la rehabilitación de la Avenida 321 El Coyol; así como también en la modificación y ampliación de un puente peatonal. | M167: Se realizaron XXX obras, lo que representa un avance del XXX por ciento de las 2 programadas para el presente ejercicio fiscal. | O167: 02CD07K023
A168: 02CD07 | B168: 02CD07_30 | C168: 02CD07K023_2 | D168: K023 | E168: INFRAESTRUCTURA URBANA | F168: Rehabilitación y mantenimiento de planteles escolares de nivel básico. | G168: 0.1 | H168: 0.5 | I168: 0.75 | J168: 1 | K168: 0.2 | L168: Se programó la atención de rehabilitación de 153 inmuebles de planteles escolares que consiste en impermeabilización, pintura, instalación eléctrica, trabajos de albañilería, mallas sombra y bardas perimetrales. | M168: Se realizó la rehabilitación de XXX inmuebles, lo que representa un avance del 1 por ciento de los 153 programados para el presente ejercicio fiscal. | O168: 02CD07K023
A169: 02CD07 | B169: 02CD07_31 | C169: 02CD07K023_3 | D169: K023 | E169: INFRAESTRUCTURA URBANA | F169: Atención a zonas de riesgo de la Alcaldía. | G169: 0.1 | H169: 0.5 | I169: 0.75 | J169: 1 | K169: 0.25 | L169: Se programó la realización de 16 obras de mitigación de riesgos que consisten en la rehabilitación de escalinatas y construcción de muros de contención. Además de barandales, cimbra, concreto armado, trabajos de albañilería, luminarias y pintura. | M169: Se realizó 1 obra, lo que representa un avance del 9 por ciento de las 16 obras programadas para el presente ejercicio fiscal. | O169: 02CD07K023
A170: 02CD07 | B170: 02CD07_32 | C170: 02CD07K023_4 | D170: K023 | E170: INFRAESTRUCTURA URBANA | F170: Rehabilitación y mantenimiento de edificios públicos. | G170: 0.1 | H170: 0.5 | I170: 0.75 | J170: 1 | K170: 0.25 | L170: Se programó la realización de 26 obras en edificios públicos, la rehabilitación de 1 funeraria; rehabilitación de 5 centros de salud; rehabilitación de 15 centros culturales y la rehabilitación de 4 bibliotecas. Estos trabajos consistirán en pintura, cambio de pisos, instalación eléctrica, luminarias, herrería, cancelería, cambio de muebles sanitarios e impermeabilización. | M170: Se han realizado XXX obras en los edificios públicos, lo que representa un avance del XXX por ciento de las 26 programadas para el presente ejercicio fiscal. | O170: 02CD07K023
A171: 02CD07 | B171: 02CD07_33 | C171: 02CD07K026_1 | D171: K026 | E171: INFRAESTRUCTURA DE AGUA POTABLE EN ALCALDIAS | F171: Rehabilitación y conservación de la red secundaria del sistema de agua potable. | G171: 0.25 | H171: 0.5 | I171: 0.75 | J171: 1 | K171: 1 | L171: Se programó la reparación de 120 fugas de agua y la reconstrucción de 150 metros lineales de agua potable a través del esquema de obras por administración. | M171: Se han reparado XXX fugas y se han reconstruido XXX metros lineales de agua potable, lo que representa un avance del 27 por ciento de las 120 fugas y 150 metros de rehabilitación programados en el presente ejercicio fiscal. | O171: 02CD07K026
A172: 02CD07 | B172: 02CD07_34 | C172: 02CD07K027_1 | D172: K027 | E172: INFRAESTRUCTURA DE DRENAJE, ALCANTARILLADO Y SANEAMIENTO EN ALCALDIAS | F172: Rehabilitación y conservación de la red secundaria del sistema de drenaje y alcantarillado. | G172: 0.1 | H172: 0.5 | I172: 0.75 | J172: 1 | K172: 1 | L172: Se programó el desazolve con equipo hidroneumático y sustitución de accesorios hidráulicos para la reconstrucción de 6 km de la red secundaria de drenaje. | M172: Se realizó el desazolve de 0.54 kilómetros de la red secundaria de drenaje, lo que representa un avance del 9 por ciento respecto de los 6 kilómetros de las obras en el presente ejercicio fiscal. | O172: 02CD07K027
A173: 02CD07 | B173: 02CD07_35 | C173: 02CD07M001_1 | D173: M001 | E173: ACTIVIDADES DE APOYO ADMINISTRATIVO | F173: Adquisiciones realizadas. | G173: 0.3 | H173: 0.5 | I173: 0.7 | J173: 1 | K173: 0.25 | L173: Se programó la formalización de 196 contratos en tres vertientes: 1. Programa de adquisiciones, arrendamiento y contratación de servicios. 2. Cableado Estructurado y Óptica Pasiva. 3. Trabajos a la Construcción e integración de la página web | M173: Se realizó la formalización de XXX de contratos lo que representa un avance del 37 por ciento respecto a los 196 contratos a formalizar en el presente ejercicio fiscal. | O173: 02CD07M001
A174: 02CD07 | B174: 02CD07_36 | C174: 02CD07M001_2 | D174: M001 | E174: ACTIVIDADES DE APOYO ADMINISTRATIVO | F174: Mantenimiento general. | G174: 0.3 | H174: 0.5 | I174: 0.7 | J174: 1 | K174: 0.25 | L174: Se programó la realización de 5 mantenimientos menores en edificios y espacios públicos de la Alcaldía. | M174: Se atendieron XXX mantenimientos menores en edificios y espacios públicos de la alcaldía, lo que representa un avance del XXX por ciento de los 5 programados en el presente ejercicio fiscal. | O174: 02CD07M001
A175: 02CD07 | B175: 02CD07_37 | C175: 02CD07M001_3 | D175: M001 | E175: ACTIVIDADES DE APOYO ADMINISTRATIVO | F175: Cursos de capacitación realizados. | G175: 0.3 | H175: 0.5 | I175: 0.7 | J175: 1 | K175: 0.25 | L175: Se programó la impartición de 40 cursos con la finalidad de ampliar los conocimientos de 1600 trabajadores de la Alcaldía. | M175: Se realizó la impartición de XXX cursos lo que representa un avance del XXX por ciento de los 40 cursos programados en el presente ejercicio fiscal. | O175: 02CD07M001
A176: 02CD07 | B176: 02CD07_38 | C176: 02CD07M001_4 | D176: M001 | E176: ACTIVIDADES DE APOYO ADMINISTRATIVO | F176: Regularización y operación de Centros de Servicios. | G176: 0.3 | H176: 0.5 | I176: 0.7 | J176: 1 | K176: 0.25 | L176: Se programó la actualización de cuotas para el ejercicio 2023 de los Centros Generadores de Servicios e Ingresos de Aplicación Automática. | M176: Se han actualizado XXX las cuotas de los Centros Generadores de Servicios e Ingresos de Aplicación Automática, lo que representa un avance del 26 de las por ciento en el presente ejercicio fiscal. | O176: 02CD07M001
A177: 02CD07 | B177: 02CD07_39 | C177: 02CD07M002_1 | D177: M002 | E177: PROVISIONES PARA CONTINGENCIAS | F177: Juicios laborales y laudos atendidos. | G177: 0 | H177: 0.2 | I177: 0.5 | J177: 1 | K177: 1 | L177: Se programó la atención a 30 resoluciones de los órganos de justicia en materia laboral para el ejercicio 2023. | M177: Se atendieron XXX resoluciones, lo que representa un avance del XXX por ciento de las 30 programadas para el presente ejercicio fiscal. | O177: 02CD07M002
A178: 02CD07 | B178: 02CD07_40 | C178: 02CD07N001_1 | D178: N001 | E178: CUMPLIMIENTO DE LOS PROGRAMAS DE PROTECCION CIVIL | F178: Desarrollo del Programa Anual de Protección Civil. | G178: 0.3 | H178: 0.5 | I178: 0.7 | J178: 1 | K178: 0.2 | L178: Se programó la realización de 12712 servicios operativos de atención de emergencias, pláticas de protección civil, revisiones de tanques de gas en mercados y tianguis; así como también estudios de gestiones integrales de riesgos. | M178: Se realizaron 513 servicios operativos de atención de emergencias, lo que representa un avance del 32 por ciento de los 12712 servicios programados para el presente ejercicio fiscal. | O178: 02CD07N001
A179: 02CD07 | B179: 02CD07_41 | C179: 02CD07N001_2 | D179: N001 | E179: CUMPLIMIENTO DE LOS PROGRAMAS DE PROTECCION CIVIL | F179: Atención de emergencias (siniestros y desastres). | G179: 0.3 | H179: 0.5 | I179: 0.7 | J179: 1 | K179: 0.2 | L179: Se programó la atención de 6000 prehospitalarias de auxilios médicos, siniestros y atención a desastres. | M179: Se realizó la atención de 1740 emergencias prehospitalarias de auxilios médicos, siniestros y atención a desastres, lo que representa un avance del 29 por ciento de las 6000 programadas en el presente ejercicio fiscal. | O179: 02CD07N001
A180: 02CD07 | B180: 02CD07_42 | C180: 02CD07N001_3 | D180: N001 | E180: CUMPLIMIENTO DE LOS PROGRAMAS DE PROTECCION CIVIL | F180: Pláticas y taller en materia de protección civil. | G180: 0.3 | H180: 0.5 | I180: 0.7 | J180: 1 | K180: 0.2 | L180: Se programó la realización de 120 pláticas sobre programas de protección civil en unidades habitacionales, escuelas y la comunidad. | M180: Se realizaron 31 pláticas sobre programas de protección civil, lo que representa un avance del 26 por ciento de las 120 pláticas programadas en el presente ejercicio fiscal. | O180: 02CD07N001
A181: 02CD07 | B181: 02CD07_43 | C181: 02CD07N001_4 | D181: N001 | E181: CUMPLIMIENTO DE LOS PROGRAMAS DE PROTECCION CIVIL | F181: Simulacros realizados. | G181: 0.3 | H181: 0.5 | I181: 0.7 | J181: 1 | K181: 0.2 | L181: Se programó la realización de 60 simulacros de evacuación en casos de sismos y siniestros. | M181: Se realizó el ejercicio de 17 simulacros para casos de siniestros y sismos, lo que representa un avance del 28 por ciento de los 60 simulacros programados en el presente ejercicio fiscal. | O181: 02CD07N001
A182: 02CD07 | B182: 02CD07_44 | C182: 02CD07N001_5 | D182: N001 | E182: CUMPLIMIENTO DE LOS PROGRAMAS DE PROTECCION CIVIL | F182: Revisión de estudios de riesgo y dictaminación. | G182: 0.3 | H182: 0.5 | I182: 0.7 | J182: 1 | K182: 0.2 | L182: Se programó la realización de 1167 revisiones técnicas de riesgos a instalaciones, casas y edificios, así como también a algunos establecimientos mercantiles. | M182: Se han realizado 433 dictámenes de riesgos a instalaciones, casas, edificios y establecimientos mercantiles. Lo que representa un avance del 26 por ciento de los 1167 programados en el presente ejercicio fiscal. | O182: 02CD07N001
A183: 02CD07 | B183: 02CD07_45 | C183: 02CD07R002_1 | D183: R002 | E183: PRESUPUESTO PARTICIPATIVO | F183: Evaluación de proyectos registrados para el Presupuesto participativo. | G183: 0.3 | H183: 0.5 | I183: 0.7 | J183: 1 | K183: 0.5 | L183: Se programó la realización de 14 obras de rehabilitación en proyectos del presupuesto participativo de los Comités Ciudadanos. | M183: Se han realizado XXX obras de rehabilitación en proyectos del Presupuesto Participativo, lo que representa un avance del XXX por ciento de las 14 obras programadas en el presente ejercicio fiscal. | O183: 02CD07R002
A184: 02CD07 | B184: 02CD07_46 | C184: 02CD07R002_2 | D184: R002 | E184: PRESUPUESTO PARTICIPATIVO | F184: Ejecución de proyectos de presupuesto participativo. | G184: 0.3 | H184: 0.5 | I184: 0.7 | J184: 1 | K184: 0.5 | L184: Se programó la ejecución de los proyectos ganadores de los Comités Ciudadanos. | M184: Se realizó la ejecución de XXX proyectos ganadores de los Comités Ciudadanos, lo que representa un avance del XXX por ciento de los proyectos a ejecutar en el presente ejercicio fiscal. | O184: 02CD07R002
